{"text_format":"1","workbook":"xlsx","n_sheets":7,"sheets":["Datos","Tabla de Datos","TD1","CM1","TD2","Graficos","Hoja1"],"not_rendered":{"charts":4,"images":1,"macros":0,"external_links":0,"defined_names":19,"comments":0,"pivot_tables":2},"unopened":[],"bounds":{"document_bytes":16777216,"sheet_cells":100000,"rows_first":2000,"rows_last":500,"rows_between":2000,"halvings":0,"cell_chars":16384,"cell_head_chars":4096},"cells_cut":0,"cells_raw":0,"read":"whole","date_system":"1900"}

{"sheet":"Datos","index":0,"n_rows":442,"n_cols":12,"rows_kept":442,"cut":false,"hidden":false,"merged":[]}
["Alquiler de Coches Benito SA",null,null,null,null,null,"Otros Datos"]
["Campos Importados de Nuestro Programa de Gestion",null,null,null,null,null,"Margen Medio de Canales Sobre Facturación"]
["Fecha de Facturacion","Canales","Nacionalidad","Facturación","Nº de Contratos",null,"Canal","% Ganancia"]
[39692,"Directo","Italia-Francia",388356,1327.5,null,"Internet",0.4]
[40118,"Directo","Benelux",398627,387,null,"Directo",0.4]
[39600,"Internet","Alemania",398072,2947.5,null,"Agencia",0.2]
[40238,"Directo","America Norte-Sur",399219,1413,null,"Hoteles",0.15]
[40360,"Directo","España",399351,678]
[39845,"Directo","Resto de Europa",398575,543]
[39448,"Internet","Reino Unido",302173,2602.5]
[40210,"Directo","Rusia-Paises del Este",397231,1207.5]
[39448,"Directo","Paises Nórdicos",107546,979.5]
[40269,"Directo","Resto de Paises",392909,2503.5]
[39904,"Directo","Italia-Francia",382188,1708.5]
[40422,"Directo","America Norte-Sur",394309,2397]
[40391,"Directo","España",391642,2092.5]
[39814,"Directo","Rusia-Paises del Este",389284,2778]
[39814,"Directo","Resto de Europa",389158,562.5]
[39600,"Directo","America Norte-Sur",387124,1611]
[39479,"Internet","Reino Unido",357681,2506.5]
[40360,"Internet","Alemania",393863,874.5]
[39722,"Internet","Benelux",398576,2508]
[40026,"Directo","Resto de Paises",388601,2548.5]
[39845,"Directo","Resto de Paises",380091,1101]
[39479,"Directo","Reino Unido",172529,2008.5]
[39479,"Directo","Paises Nórdicos",135697,2463]
[39539,"Internet","Benelux",386328,2007]
[39508,"Directo","Resto de Europa",381495,688.5]
[40330,"Directo","Resto de Europa",378552,1905]
[40330,"Directo","America Norte-Sur",366628,781.5]
[39508,"Directo","Paises Nórdicos",245292,736.5]
[39508,"Directo","Reino Unido",384673,1854]
[40026,"Directo","Rusia-Paises del Este",388434,1060.5]
[39873,"Directo","Italia-Francia",378992,2506.5]
[40269,"Directo","España",391310,1083]
[40210,"Internet","Resto de Paises",373816,1837.5,null,null,null,null,"Sucursal 3"]
[40118,"Directo","Alemania",393239,1194,null,null,null,null,"Sucursal 8",null,"Internet"]
[40210,"Directo","Alemania",393204,2379,null,null,null,null,"Sucursal 6",null,"Directo"]
[39508,"Directo","Paises Nórdicos",134965,2661,null,null,null,null,"Sucursal 4",null,"Agencia"]
[39783,"Directo","Rusia-Paises del Este",384646,2584.5,null,null,null,null,"Sucursal 10",null,"Hoteles"]
[39722,"Directo","Resto de Europa",375581,2913,null,null,null,null,"Sucursal 7"]
[39539,"Directo","Reino Unido",291496,1203,null,null,null,null,"Sucursal 9"]
[40391,"Directo","America Norte-Sur",358566,1992,null,null,null,null,"Sucursal 5"]
[39722,"Internet","Benelux",385744,2511,null,null,null,null,"Sucursal 2"]
[39539,"Directo","Paises Nórdicos",280609,1531.5,null,null,null,null,"Sucursal 1"]
[40360,"Internet","Resto de Paises",366443,852]
[39661,"Directo","Rusia-Paises del Este",384590,2023.5]
[40238,"Directo","España",379772,2062.5]
[39600,"Internet","Italia-Francia",378350,2613]
[39965,"Internet","Benelux",382786,763.5]
[40179,"Internet","España",370703,2952]
[40026,"Directo","Alemania",393041,511.5,null,null,null,null,null,null,"Agencia"]
[39569,"Internet","Resto de Paises",366156,735]
[39569,"Directo","Paises Nórdicos",255782,705]
[40148,"Internet","España",369464,2889]
[40269,"Internet","Italia-Francia",375923,507]
[40057,"Internet","Italia-Francia",366502,2508]
[39934,"Directo","Alemania",384066,1003.5,null,null,null,null,null,null,"Hoteles"]
[39479,"Directo","America Norte-Sur",356679,1672.5]
[39995,"Directo","America Norte-Sur",349104,1963.5]
[40026,"Directo","Benelux",382683,2278.5]
[40299,"Directo","Resto de Europa",369353,2293.5]
[40238,"Internet","Resto de Paises",349304,439.5]
[39569,"Directo","Reino Unido",133335,2031]
[40179,"Internet","Rusia-Paises del Este",376174,1810.5]
[39600,"Directo","Resto de Europa",357917,1305]
[40179,"Directo","America Norte-Sur",346430,2922]
[39600,"Directo","Reino Unido",362465,1519.5]
[39600,"Directo","Paises Nórdicos",367549,2220]
[39600,"Directo","Benelux",382655,2392.5]
[39448,"Internet","Italia-Francia",363821,460.5]
[40148,"Directo","Alemania",382590,607.5]
[39630,"Agencia","Resto de Paises",336077,1107]
[39600,"Directo","Reino Unido",230068,2170.5]
[39600,"Internet","Paises Nórdicos",171282,1701]
[39448,"Internet","España",361435,1675.5]
[39965,"Internet","Rusia-Paises del Este",358244,2380.5]
[39508,"Internet","Resto de Europa",347187,592.5]
[39845,"Directo","Benelux",375123,2395.5]
[39479,"Agencia","Resto de Paises",321987,2893.5]
[39965,"Directo","America Norte-Sur",341679,582]
[40330,"Directo","Benelux",373855,1057.5]
[39630,"Internet","Paises Nórdicos",243141,1086]
[40057,"Internet","Italia-Francia",356366,2133]
[39661,"Internet","Rusia-Paises del Este",353624,2418]
[39692,"Internet","España",356644,603]
[39753,"Directo","Alemania",367795,1363.5]
[40269,"Internet","Resto de Europa",343393,2065.5]
[39630,"Directo","Reino Unido",290066,2722.5]
[39904,"Internet","España",347183,1330.5]
[39692,"Internet","Alemania",367069,2079]
[39661,"Directo","Reino Unido",283794,984]
[39845,"Internet","Rusia-Paises del Este",352997,2373]
[39753,"Directo","Italia-Francia",356233,841.5]
[39722,"Internet","Rusia-Paises del Este",344875,1600.5]
[39814,"Internet","España",345052,2392.5]
[39783,"Directo","Italia-Francia",353787,2542.5]
[39814,"Internet","Alemania",360882,1197]
[40210,"Internet","Resto de Europa",336858,2773.5]
[39873,"Directo","Benelux",362464,1365]
[39508,"Directo","America Norte-Sur",336620,610.5]
[40179,"Agencia","Resto de Paises",291362,1387.5]
[39661,"Internet","Paises Nórdicos",100252,1927.5]
[39692,"Hoteles","Resto de Paises",290864,1734]
[40452,"Internet","Resto de Europa",333524,2620.5]
[39845,"Internet","España",343372,717]
[39934,"Internet","Rusia-Paises del Este",340451,549]
[39569,"Directo","Italia-Francia",333757,2377.5]
[39692,"Directo","Reino Unido",396148,1354.5]
[39479,"Internet","Alemania",345627,2611.5]
[39845,"Directo","America Norte-Sur",326460,2908.5]
[39995,"Hoteles","Resto de Paises",280704,3000]
[40330,"Directo","Benelux",355271,1831.5]
[39692,"Internet","Paises Nórdicos",289741,2572.5]
[40087,"Directo","America Norte-Sur",315098,2727]
[39692,"Internet","Paises Nórdicos",108383,1497]
[39692,"Directo","Reino Unido",122408,2203.5]
[39692,"Internet","America Norte-Sur",310169,1801.5]
[39722,"Internet","Paises Nórdicos",336207,1479]
[40422,"Agencia","España",335208,2082]
[39753,"Internet","Rusia-Paises del Este",320775,1338]
[39722,"Directo","Reino Unido",381537,1780.5]
[40330,"Internet","Alemania",344281,2763]
[40422,"Internet","Resto de Europa",326429,2505]
[39479,"Internet","Benelux",348013,2689.5]
[39508,"Internet","Benelux",345735,526.5]
[39600,"Hoteles","Resto de Paises",278829,2436]
[39630,"Internet","Resto de Europa",311104,2635.5]
[40452,"Internet","Alemania",341993,2307]
[40087,"Directo","Italia-Francia",331377,1162.5]
[39965,"Directo","Italia-Francia",326837,601.5]
[39722,"Directo","Resto de Europa",297190,1767]
[40299,"Agencia","Alemania",339525,1612.5]
[40148,"Agencia","Rusia-Paises del Este",313466,2808]
[39753,"Agencia","Paises Nórdicos",188603,855]
[39508,"Agencia","Rusia-Paises del Este",306221,1605]
[40360,"Internet","Benelux",335973,949.5]
[39934,"Internet","America Norte-Sur",307482,459]
[40238,"Hoteles","España",327855,1315.5]
[40210,"Directo","España",327180,1944]
[39845,"Internet","Italia-Francia",318248,1597.5]
[39753,"Directo","Reino Unido",179304,2779.5]
[40330,"Hoteles","Resto de Paises",264161,1599]
[40391,"Agencia","Resto de Paises",260879,843]
[39783,"Agencia","Paises Nórdicos",399207,2626.5]
[39783,"Directo","Reino Unido",397191,2620.5]
[39753,"Agencia","Rusia-Paises del Este",300601,1459.5]
[40391,"Hoteles","Resto de Paises",259971,2313]
[39479,"Internet","Italia-Francia",316426,1312.5]
[40299,"Hoteles","Benelux",327830,421.5]
[39995,"Internet","America Norte-Sur",300132,2119.5]
[39569,"Internet","España",326929,1357.5]
[39783,"Directo","Reino Unido",266317,2784]
[40299,"Internet","America Norte-Sur",277483,1981.5]
[39965,"Agencia","Alemania",327786,2652]
[40087,"Hoteles","Resto de Europa",296475,2700]
[39814,"Agencia","Paises Nórdicos",396280,517.5]
[39995,"Hoteles","Resto de Europa",286631,2068.5]
[40269,"Hoteles","Alemania",308018,724.5]
[39814,"Agencia","Paises Nórdicos",352319,1449]
[40148,"Hoteles","Resto de Europa",269078,774]
[40026,"Internet","España",311359,1906.5]
[39539,"Agencia","Rusia-Paises del Este",296874,1719]
[39722,"Hoteles","Alemania",276529,2631]
[39845,"Agencia","Benelux",306167,871.5]
[39814,"Directo","Reino Unido",297139,2877]
[39479,"Hoteles","Resto de Paises",256549,2388]
[39965,"Internet","Italia-Francia",314699,987]
[40087,"Internet","America Norte-Sur",275379,1095]
[39904,"Hoteles","Resto de Europa",265875,2407.5]
[39630,"Internet","España",305996,2089.5]
[39692,"Directo","Benelux",293367,1791]
[40118,"Hoteles","Resto de Paises",254892,606]
[39845,"Directo","Reino Unido",385975,1585.5]
[40026,"Internet","Italia-Francia",298312,1840.5]
[39630,"Agencia","Rusia-Paises del Este",292630,1708.5]
[39845,"Agencia","Paises Nórdicos",102172,532.5]
[40057,"Agencia","Benelux",291465,1753.5]
[40087,"Hoteles","Alemania",269983,1923]
[40148,"Agencia","Rusia-Paises del Este",271114,1122]
[39539,"Agencia","America Norte-Sur",268883,1270.5]
[40299,"Internet","España",301343,735]
[40087,"Hoteles","Resto de Paises",244667,1207.5]
[39873,"Hoteles","Paises Nórdicos",339466,883.5]
[39873,"Hoteles","Resto de Paises",241046,457.5]
[40179,"Hoteles","Benelux",261382,1719]
[40299,"Agencia","Italia-Francia",295264,2068.5]
[39934,"Agencia","Resto de Europa",259764,2118]
[40452,"Agencia","Rusia-Paises del Este",257216,2955]
[39873,"Directo","Reino Unido",376154,2863.5]
[39753,"Agencia","America Norte-Sur",267673,1993.5]
[40330,"Agencia","Italia-Francia",287183,1554]
[40210,"Agencia","America Norte-Sur",249931,784.5]
[39508,"Internet","España",284319,2907]
[40238,"Hoteles","Alemania",263487,529.5]
[39539,"Hoteles","Resto de Paises",231499,1321.5]
[39539,"Internet","España",273436,2196]
[40330,"Agencia","Alemania",254791,441]
[40360,"Agencia","Italia-Francia",275861,2061]
[39904,"Directo","Reino Unido",358080,1635]
[39904,"Hoteles","Paises Nórdicos",313684,1452]
[39904,"Hoteles","Benelux",259205,2203.5]
[39965,"Agencia","Resto de Europa",259022,1017]
[40360,"Agencia","Resto de Europa",252631,1878]
[40087,"Agencia","Rusia-Paises del Este",256887,2871]
[39904,"Directo","Reino Unido",208243,2401.5]
[40179,"Agencia","America Norte-Sur",241840,1125]
[39904,"Hoteles","Paises Nórdicos",136087,2985]
[39569,"Hoteles","America Norte-Sur",235232,2454]
[40391,"Hoteles","Rusia-Paises del Este",251375,2082]
[40391,"Agencia","Alemania",251548,2856]
[39448,"Hoteles","Benelux",255907,390]
[39934,"Directo","Reino Unido",362713,2185.5]
[40452,"Agencia","Benelux",242044,934.5]
[39783,"Internet","España",266499,2452.5]
[39934,"Hoteles","Paises Nórdicos",355833,2763]
[40299,"Hoteles","Resto de Paises",222172,2394]
[39692,"Agencia","Resto de Europa",250500,379.5]
[39508,"Hoteles","Italia-Francia",273642,1738.5]
[40422,"Agencia","Alemania",245293,651]
[40118,"Internet","España",265073,1908]
[39783,"Hoteles","America Norte-Sur",223163,2568]
[39934,"Hoteles","Italia-Francia",265882,2703]
[40148,"Directo","Benelux",219568,2565]
[40269,"Hoteles","Italia-Francia",252811,2455.5]
[39814,"Agencia","Resto de Europa",232615,1491]
[39479,"Hoteles","Rusia-Paises del Este",244651,1360.5]
[39965,"Internet","Reino Unido",228049,1633.5]
[39569,"Agencia","Alemania",245087,2517]
[39965,"Directo","Paises Nórdicos",317336,2847]
[40452,"Internet","España",259992,1366.5]
[39722,"Agencia","Resto de Paises",221504,1465.5]
[39873,"Hoteles","Rusia-Paises del Este",243565,1804.5]
[39965,"Agencia","Resto de Paises",220389,2665.5]
[39995,"Directo","Paises Nórdicos",368954,1077]
[39995,"Internet","Reino Unido",368937,1477.5]
[39995,"Directo","Paises Nórdicos",366171,1560]
[39995,"Directo","Alemania",244966,1090.5]
[39783,"Hoteles","America Norte-Sur",221410,1890]
[40360,"Hoteles","America Norte-Sur",210379,1344]
[39539,"Agencia","Resto de Europa",216191,783]
[39692,"Hoteles","Rusia-Paises del Este",236646,541.5]
[40238,"Directo","Italia-Francia",251073,2745]
[39569,"Agencia","Resto de Paises",204706,2874]
[40452,"Directo","Benelux",219131,996]
[39661,"Internet","España",255098,2151]
[39995,"Internet","Reino Unido",115488,2325]
[39508,"Directo","Alemania",244610,2830.5]
[39539,"Internet","Benelux",215138,2254.5]
[39873,"Agencia","Resto de Europa",211396,1495.5]
[40118,"Hoteles","Rusia-Paises del Este",227822,1884]
[40026,"Directo","Paises Nórdicos",379575,1315.5]
[39753,"Internet","Benelux",211749,1470]
[39630,"Agencia","Alemania",241144,1950]
[39722,"Internet","España",254824,1134]
[39995,"Directo","Italia-Francia",249405,2394]
[39965,"Agencia","Resto de Paises",196790,2916]
[40026,"Internet","Reino Unido",324117,2376]
[39904,"Agencia","Resto de Europa",205210,1849.5]
[40452,"Agencia","America Norte-Sur",206873,2854.5]
[39508,"Directo","Alemania",226230,2692.5]
[39722,"Agencia","America Norte-Sur",203347,439.5]
[39539,"Hoteles","Rusia-Paises del Este",226466,417]
[40452,"Directo","Italia-Francia",249005,606]
[39630,"Directo","Benelux",206164,871.5]
[40057,"Directo","Paises Nórdicos",278530,1759.5]
[40452,"Internet","España",245514,903]
[40179,"Directo","Italia-Francia",242265,946.5]
[40057,"Internet","Reino Unido",311089,2914.5]
[40148,"Agencia","Resto de Paises",195688,1753.5]
[40026,"Hoteles","Resto de Europa",195920,513]
[39934,"Agencia","España",242306,1839]
[40269,"Hoteles","Rusia-Paises del Este",217349,1806]
[40360,"Directo","Italia-Francia",233351,2911.5]
[40118,"Agencia","America Norte-Sur",192095,1854]
[39753,"Agencia","España",233573,2107.5]
[40057,"Agencia","Resto de Paises",191371,2173.5]
[40087,"Internet","Reino Unido",235053,1270.5]
[40118,"Internet","Alemania",210419,2296.5]
[40238,"Agencia","Benelux",194737,1872]
[39479,"Hoteles","America Norte-Sur",176151,1092]
[40238,"Hoteles","Resto de Europa",194149,654]
[39904,"Agencia","Resto de Paises",189940,532.5]
[40087,"Internet","Reino Unido",279086,2907]
[39904,"Hoteles","Rusia-Paises del Este",212260,2025]
[40087,"Directo","Paises Nórdicos",234993,2667]
[40210,"Hoteles","Benelux",193438,1464]
[40118,"Internet","Reino Unido",284503,510]
[40118,"Directo","Paises Nórdicos",382503,799.5]
[39448,"Agencia","Resto de Paises",182093,2193]
[40057,"Internet","Alemania",208730,435]
[40148,"Internet","Italia-Francia",220829,1441.5]
[39753,"Agencia","España",209568,1822.5]
[39965,"Hoteles","Rusia-Paises del Este",209163,2580]
[39448,"Hoteles","America Norte-Sur",175541,733.5]
[40118,"Internet","Paises Nórdicos",291557,2860.5]
[39661,"Internet","Alemania",199937,2139]
[40026,"Hoteles","Resto de Europa",193726,2391]
[39479,"Directo","Resto de Europa",182711,1068]
[39845,"Directo","Alemania",197283,1267.5]
[40179,"Directo","Resto de Europa",171705,2172]
[40360,"Hoteles","Rusia-Paises del Este",207355,529.5]
[40179,"Internet","Italia-Francia",219347,381]
[40330,"Agencia","España",207811,2740.5]
[40269,"Agencia","Rusia-Paises del Este",200510,1546.5]
[39814,"Internet","Resto de Paises",181389,1813.5]
[40238,"Hoteles","Benelux",187401,622.5]
[39965,"Agencia","España",203635,1875]
[39661,"Hoteles","America Norte-Sur",167356,2814]
[40148,"Internet","Reino Unido",142308,2167.5]
[40148,"Internet","Paises Nórdicos",146173,2352]
[39630,"Hoteles","Benelux",182235,513]
[40210,"Internet","Italia-Francia",206255,2845.5]
[40179,"Agencia","Reino Unido",319192,1231.5]
[39814,"Directo","Italia-Francia",200639,2898]
[40057,"Agencia","America Norte-Sur",164646,741]
[39661,"Directo","Resto de Paises",175883,2986.5]
[40299,"Hoteles","Rusia-Paises del Este",191076,988.5]
[40026,"Agencia","Benelux",178073,432]
[40179,"Internet","Paises Nórdicos",289397,1921.5]
[39539,"Directo","España",202802,2128.5]
[39904,"Hoteles","America Norte-Sur",160498,2598]
[40057,"Directo","Resto de Europa",166997,2221.5]
[39934,"Directo","Resto de Paises",165051,1284]
[39783,"Directo","Alemania",197229,2385]
[40360,"Hoteles","Rusia-Paises del Este",187598,2121]
[40148,"Hoteles","America Norte-Sur",156505,2311.5]
[39873,"Directo","Resto de Paises",161611,448.5]
[40148,"Directo","España",202522,2932.5]
[39934,"Directo","Alemania",187427,2128.5]
[40087,"Agencia","Benelux",177451,1402.5]
[40210,"Internet","Paises Nórdicos",369877,2812.5]
[40210,"Agencia","Reino Unido",325366,2503.5]
[39661,"Directo","Resto de Europa",165619,1998]
[40391,"Directo","Italia-Francia",199606,1681.5]
[40118,"Directo","Resto de Europa",161196,1864.5]
[40210,"Agencia","Reino Unido",111440,1999.5]
[40210,"Internet","Paises Nórdicos",106717,2488.5]
[40422,"Directo","Resto de Paises",160930,1575]
[40179,"Hoteles","Alemania",176790,2335.5]
[39814,"Hoteles","Alemania",175104,1627.5]
[39661,"Hoteles","Benelux",170385,2785.5]
[39569,"Directo","Resto de Europa",151628,1752]
[39692,"Hoteles","America Norte-Sur",153765,1818]
[39479,"Internet","España",200007,979.5]
[40238,"Agencia","Reino Unido",304559,1375.5]
[40057,"Internet","España",195164,2887.5]
[40238,"Internet","Paises Nórdicos",175061,1281]
[39934,"Hoteles","Benelux",163930,784.5]
[39661,"Directo","Italia-Francia",181089,1051.5]
[39845,"Hoteles","Rusia-Paises del Este",187172,967.5]
[39722,"Directo","Italia-Francia",176744,2929.5]
[39448,"Hoteles","Alemania",169918,621]
[39630,"Hoteles","España",155829,2559]
[39448,"Directo","Resto de Europa",148554,796.5]
[40269,"Agencia","Reino Unido",302487,1887]
[39753,"Directo","Resto de Paises",153077,2994]
[39783,"Directo","Resto de Paises",150029,705]
[39448,"Hoteles","Rusia-Paises del Este",184212,1614]
[40422,"Hoteles","Rusia-Paises del Este",166505,1582.5]
[39873,"Directo","Italia-Francia",163430,2121]
[40269,"Hoteles","Paises Nórdicos",241389,2389.5]
[40026,"Agencia","America Norte-Sur",148685,2473.5]
[39934,"Hoteles","Benelux",150516,1035]
[39814,"Hoteles","Benelux",149255,1417.5]
[40299,"Hoteles","Paises Nórdicos",291580,573]
[39600,"Hoteles","España",145675,1665]
[40269,"Agencia","America Norte-Sur",141881,1843.5]
[40238,"Directo","Alemania",155649,384]
[40238,"Hoteles","Rusia-Paises del Este",163791,1962]
[39753,"Internet","Resto de Europa",144678,393]
[40299,"Agencia","Reino Unido",343139,2265]
[40299,"Hoteles","Paises Nórdicos",345026,2385]
[39661,"Directo","Italia-Francia",150792,1363.5]
[40299,"Agencia","America Norte-Sur",134345,427.5]
[40269,"Directo","Resto de Paises",146017,1006.5]
[40299,"Agencia","Reino Unido",214516,2649]
[40026,"Directo","Alemania",152062,912]
[40391,"Agencia","America Norte-Sur",133994,943.5]
[40422,"Agencia","Benelux",148753,2307]
[39600,"Hoteles","Rusia-Paises del Este",158731,2731.5]
[40330,"Internet","Resto de Europa",143550,771]
[39995,"Agencia","Benelux",146413,2041.5]
[40422,"Internet","Resto de Europa",141660,2722.5]
[39753,"Directo","Italia-Francia",144680,2134.5]
[39661,"Directo","Resto de Paises",123097,2596.5]
[40330,"Agencia","Reino Unido",281915,1921.5]
[40330,"Internet","Paises Nórdicos",388014,2884.5]
[40422,"Directo","Alemania",147821,1066.5]
[39995,"Hoteles","España",144573,2187]
[39873,"Agencia","España",137047,2899.5]
[39722,"Agencia","Alemania",143554,745.5]
[39783,"Directo","Resto de Paises",120223,813]
[39995,"Directo","Rusia-Paises del Este",148754,1156.5]
[39569,"Agencia","Benelux",143102,1618.5]
[39569,"Agencia","America Norte-Sur",132018,1428]
[40391,"Internet","Resto de Europa",132315,502.5]
[39539,"Hoteles","Italia-Francia",137633,1249.5]
[40360,"Hoteles","Reino Unido",388531,2946]
[40360,"Internet","Paises Nórdicos",109834,985.5]
[40330,"Directo","Rusia-Paises del Este",137955,526.5]
[39569,"Hoteles","Italia-Francia",119282,817.5]
[39845,"Hoteles","España",128226,1723.5]
[40179,"Directo","Resto de Paises",118805,1557]
[40391,"Hoteles","Reino Unido",177233,607.5]
[40210,"Directo","Resto de Europa",130637,2251.5]
[40360,"Hoteles","España",127537,1873.5]
[39873,"Agencia","America Norte-Sur",131261,1840.5]
[39630,"Hoteles","America Norte-Sur",127850,451.5]
[40057,"Directo","Rusia-Paises del Este",130973,2139]
[40118,"Agencia","Italia-Francia",117256,463.5]
[40452,"Directo","Resto de Paises",114797,2551.5]
[39904,"Agencia","Alemania",138095,589.5]
[40391,"Internet","Paises Nórdicos",109050,1485]
[40391,"Agencia","Benelux",139622,2079]
[40391,"Hoteles","Reino Unido",104816,2958]
[39539,"Agencia","Alemania",126611,1992]
[40422,"Internet","Paises Nórdicos",273999,1476]
[39873,"Hoteles","America Norte-Sur",122301,1273.5]
[40087,"Hoteles","España",125281,580.5]
[39630,"Agencia","Alemania",122044,2272.5]
[39600,"Hoteles","Resto de Europa",126954,2496]
[40057,"Directo","Rusia-Paises del Este",127826,700.5]
[39508,"Directo","Resto de Paises",109036,1119]
[40422,"Internet","Paises Nórdicos",222539,2811]
[39783,"Agencia","Benelux",138587,997.5]
[40118,"Hoteles","Resto de Europa",119434,1422]
[40422,"Agencia","Italia-Francia",113978,2259]
[40422,"Hoteles","Reino Unido",104837,2563.5]
[39630,"Agencia","Italia-Francia",105706,613.5]
[39934,"Agencia","España",111152,2005.5]
[40452,"Hoteles","Reino Unido",265392,996]
[40148,"Agencia","Benelux",119308,2242.5]
[40269,"Agencia","Benelux",117879,1807.5]
[40057,"Agencia","España",102111,694.5]
[39569,"Directo","Rusia-Paises del Este",122974,2970]
[39873,"Agencia","Alemania",108743,2772]
[39783,"Hoteles","Resto de Europa",106386,2556]
[40452,"Internet","Paises Nórdicos",315630,2509.5]
[40452,"Internet","Rusia-Paises del Este",119407,796.5]
[39814,"Hoteles","America Norte-Sur",105921,2569.5]
[40087,"Directo","Resto de Paises",108573,1011]

{"sheet":"Tabla de Datos","index":1,"n_rows":442,"n_cols":12,"rows_kept":442,"cut":false,"hidden":false,"merged":[[1,0,1,4],[1,5,1,8]]}
["Alquiler de Coches Benito SA",null,null,null,null,null,null,null,null,null,"Otros Datos"]
["Campos Importados de Nuestro Programa de Gestion",null,null,null,null,"Campos Calculados",null,null,null,null,"Margen Medio de Canales Sobre Facturación"]
["Fecha de Facturacion","Canales","Nacionalidad","Facturación","Nº de Contratos","Margen","Ganancia","Año","Trimestre",null,"Canal","% Ganancia"]
[39692,"Directo","Italia-Francia",388356,1327.5,{"$f":"VLOOKUP(Rtdos_de_la_Empresa8[[#This Row],[Canales]],Tabla39[],2,FALSE)","v":0.4},{"$f":"Rtdos_de_la_Empresa8[[#This Row],[Margen]]*Rtdos_de_la_Empresa8[[#This Row],[Facturación]]","v":155342.39999999999},{"$f":"YEAR(Rtdos_de_la_Empresa8[[#This Row],[Fecha de Facturacion]])","v":2008},{"$f":"ROUNDUP(MONTH(Rtdos_de_la_Empresa8[[#This Row],[Fecha de Facturacion]])/3, 0)","v":3},null,"Internet",0.4]
[40118,"Directo","Benelux",398627,387,{"$f":"VLOOKUP(Rtdos_de_la_Empresa8[[#This Row],[Canales]],Tabla39[],2,FALSE)","v":0.4},{"$f":"Rtdos_de_la_Empresa8[[#This Row],[Margen]]*Rtdos_de_la_Empresa8[[#This Row],[Facturación]]","v":159450.80000000002},{"$f":"YEAR(Rtdos_de_la_Empresa8[[#This Row],[Fecha de Facturacion]])","v":2009},{"$f":"ROUNDUP(MONTH(Rtdos_de_la_Empresa8[[#This Row],[Fecha de Facturacion]])/3, 0)","v":4},null,"Directo",0.4]
[39600,"Internet","Alemania",398072,2947.5,{"$f":"VLOOKUP(Rtdos_de_la_Empresa8[[#This Row],[Canales]],Tabla39[],2,FALSE)","v":0.4},{"$f":"Rtdos_de_la_Empresa8[[#This Row],[Margen]]*Rtdos_de_la_Empresa8[[#This Row],[Facturación]]","v":159228.80000000002},{"$f":"YEAR(Rtdos_de_la_Empresa8[[#This Row],[Fecha de Facturacion]])","v":2008},{"$f":"ROUNDUP(MONTH(Rtdos_de_la_Empresa8[[#This Row],[Fecha de Facturacion]])/3, 0)","v":2},null,"Agencia",0.2]
[40238,"Directo","America Norte-Sur",399219,1413,{"$f":"VLOOKUP(Rtdos_de_la_Empresa8[[#This Row],[Canales]],Tabla39[],2,FALSE)","v":0.4},{"$f":"Rtdos_de_la_Empresa8[[#This Row],[Margen]]*Rtdos_de_la_Empresa8[[#This Row],[Facturación]]","v":159687.6},{"$f":"YEAR(Rtdos_de_la_Empresa8[[#This Row],[Fecha de Facturacion]])","v":2010},{"$f":"ROUNDUP(MONTH(Rtdos_de_la_Empresa8[[#This Row],[Fecha de Facturacion]])/3, 0)","v":1},null,"Hoteles",0.15]
[40360,"Directo","España",399351,678,{"$f":"VLOOKUP(Rtdos_de_la_Empresa8[[#This Row],[Canales]],Tabla39[],2,FALSE)","v":0.4},{"$f":"Rtdos_de_la_Empresa8[[#This Row],[Margen]]*Rtdos_de_la_Empresa8[[#This Row],[Facturación]]","v":159740.40000000002},{"$f":"YEAR(Rtdos_de_la_Empresa8[[#This Row],[Fecha de Facturacion]])","v":2010},{"$f":"ROUNDUP(MONTH(Rtdos_de_la_Empresa8[[#This Row],[Fecha de Facturacion]])/3, 0)","v":3}]
[39845,"Directo","Resto de Europa",398575,543,{"$f":"VLOOKUP(Rtdos_de_la_Empresa8[[#This Row],[Canales]],Tabla39[],2,FALSE)","v":0.4},{"$f":"Rtdos_de_la_Empresa8[[#This Row],[Margen]]*Rtdos_de_la_Empresa8[[#This Row],[Facturación]]","v":159430},{"$f":"YEAR(Rtdos_de_la_Empresa8[[#This Row],[Fecha de Facturacion]])","v":2009},{"$f":"ROUNDUP(MONTH(Rtdos_de_la_Empresa8[[#This Row],[Fecha de Facturacion]])/3, 0)","v":1}]
[39448,"Internet","Reino Unido",302173,2602.5,{"$f":"VLOOKUP(Rtdos_de_la_Empresa8[[#This Row],[Canales]],Tabla39[],2,FALSE)","v":0.4},{"$f":"Rtdos_de_la_Empresa8[[#This Row],[Margen]]*Rtdos_de_la_Empresa8[[#This Row],[Facturación]]","v":120869.20000000001},{"$f":"YEAR(Rtdos_de_la_Empresa8[[#This Row],[Fecha de Facturacion]])","v":2008},{"$f":"ROUNDUP(MONTH(Rtdos_de_la_Empresa8[[#This Row],[Fecha de Facturacion]])/3, 0)","v":1}]
[40210,"Directo","Rusia-Paises del Este",397231,1207.5,{"$f":"VLOOKUP(Rtdos_de_la_Empresa8[[#This Row],[Canales]],Tabla39[],2,FALSE)","v":0.4},{"$f":"Rtdos_de_la_Empresa8[[#This Row],[Margen]]*Rtdos_de_la_Empresa8[[#This Row],[Facturación]]","v":158892.40000000002},{"$f":"YEAR(Rtdos_de_la_Empresa8[[#This Row],[Fecha de Facturacion]])","v":2010},{"$f":"ROUNDUP(MONTH(Rtdos_de_la_Empresa8[[#This Row],[Fecha de Facturacion]])/3, 0)","v":1}]
[39448,"Directo","Paises Nórdicos",107546,979.5,{"$f":"VLOOKUP(Rtdos_de_la_Empresa8[[#This Row],[Canales]],Tabla39[],2,FALSE)","v":0.4},{"$f":"Rtdos_de_la_Empresa8[[#This Row],[Margen]]*Rtdos_de_la_Empresa8[[#This Row],[Facturación]]","v":43018.400000000001},{"$f":"YEAR(Rtdos_de_la_Empresa8[[#This Row],[Fecha de Facturacion]])","v":2008},{"$f":"ROUNDUP(MONTH(Rtdos_de_la_Empresa8[[#This Row],[Fecha de Facturacion]])/3, 0)","v":1}]
[40269,"Directo","Resto de Paises",392909,2503.5,{"$f":"VLOOKUP(Rtdos_de_la_Empresa8[[#This Row],[Canales]],Tabla39[],2,FALSE)","v":0.4},{"$f":"Rtdos_de_la_Empresa8[[#This Row],[Margen]]*Rtdos_de_la_Empresa8[[#This Row],[Facturación]]","v":157163.6},{"$f":"YEAR(Rtdos_de_la_Empresa8[[#This Row],[Fecha de Facturacion]])","v":2010},{"$f":"ROUNDUP(MONTH(Rtdos_de_la_Empresa8[[#This Row],[Fecha de Facturacion]])/3, 0)","v":2}]
[39904,"Directo","Italia-Francia",382188,1708.5,{"$f":"VLOOKUP(Rtdos_de_la_Empresa8[[#This Row],[Canales]],Tabla39[],2,FALSE)","v":0.4},{"$f":"Rtdos_de_la_Empresa8[[#This Row],[Margen]]*Rtdos_de_la_Empresa8[[#This Row],[Facturación]]","v":152875.20000000001},{"$f":"YEAR(Rtdos_de_la_Empresa8[[#This Row],[Fecha de Facturacion]])","v":2009},{"$f":"ROUNDUP(MONTH(Rtdos_de_la_Empresa8[[#This Row],[Fecha de Facturacion]])/3, 0)","v":2}]
[40422,"Directo","America Norte-Sur",394309,2397,{"$f":"VLOOKUP(Rtdos_de_la_Empresa8[[#This Row],[Canales]],Tabla39[],2,FALSE)","v":0.4},{"$f":"Rtdos_de_la_Empresa8[[#This Row],[Margen]]*Rtdos_de_la_Empresa8[[#This Row],[Facturación]]","v":157723.6},{"$f":"YEAR(Rtdos_de_la_Empresa8[[#This Row],[Fecha de Facturacion]])","v":2010},{"$f":"ROUNDUP(MONTH(Rtdos_de_la_Empresa8[[#This Row],[Fecha de Facturacion]])/3, 0)","v":3}]
[40391,"Directo","España",391642,2092.5,{"$f":"VLOOKUP(Rtdos_de_la_Empresa8[[#This Row],[Canales]],Tabla39[],2,FALSE)","v":0.4},{"$f":"Rtdos_de_la_Empresa8[[#This Row],[Margen]]*Rtdos_de_la_Empresa8[[#This Row],[Facturación]]","v":156656.80000000002},{"$f":"YEAR(Rtdos_de_la_Empresa8[[#This Row],[Fecha de Facturacion]])","v":2010},{"$f":"ROUNDUP(MONTH(Rtdos_de_la_Empresa8[[#This Row],[Fecha de Facturacion]])/3, 0)","v":3}]
[39814,"Directo","Rusia-Paises del Este",389284,2778,{"$f":"VLOOKUP(Rtdos_de_la_Empresa8[[#This Row],[Canales]],Tabla39[],2,FALSE)","v":0.4},{"$f":"Rtdos_de_la_Empresa8[[#This Row],[Margen]]*Rtdos_de_la_Empresa8[[#This Row],[Facturación]]","v":155713.60000000001},{"$f":"YEAR(Rtdos_de_la_Empresa8[[#This Row],[Fecha de Facturacion]])","v":2009},{"$f":"ROUNDUP(MONTH(Rtdos_de_la_Empresa8[[#This Row],[Fecha de Facturacion]])/3, 0)","v":1}]
[39814,"Directo","Resto de Europa",389158,562.5,{"$f":"VLOOKUP(Rtdos_de_la_Empresa8[[#This Row],[Canales]],Tabla39[],2,FALSE)","v":0.4},{"$f":"Rtdos_de_la_Empresa8[[#This Row],[Margen]]*Rtdos_de_la_Empresa8[[#This Row],[Facturación]]","v":155663.20000000001},{"$f":"YEAR(Rtdos_de_la_Empresa8[[#This Row],[Fecha de Facturacion]])","v":2009},{"$f":"ROUNDUP(MONTH(Rtdos_de_la_Empresa8[[#This Row],[Fecha de Facturacion]])/3, 0)","v":1}]
[39600,"Directo","America Norte-Sur",387124,1611,{"$f":"VLOOKUP(Rtdos_de_la_Empresa8[[#This Row],[Canales]],Tabla39[],2,FALSE)","v":0.4},{"$f":"Rtdos_de_la_Empresa8[[#This Row],[Margen]]*Rtdos_de_la_Empresa8[[#This Row],[Facturación]]","v":154849.60000000001},{"$f":"YEAR(Rtdos_de_la_Empresa8[[#This Row],[Fecha de Facturacion]])","v":2008},{"$f":"ROUNDUP(MONTH(Rtdos_de_la_Empresa8[[#This Row],[Fecha de Facturacion]])/3, 0)","v":2}]
[39479,"Internet","Reino Unido",357681,2506.5,{"$f":"VLOOKUP(Rtdos_de_la_Empresa8[[#This Row],[Canales]],Tabla39[],2,FALSE)","v":0.4},{"$f":"Rtdos_de_la_Empresa8[[#This Row],[Margen]]*Rtdos_de_la_Empresa8[[#This Row],[Facturación]]","v":143072.4},{"$f":"YEAR(Rtdos_de_la_Empresa8[[#This Row],[Fecha de Facturacion]])","v":2008},{"$f":"ROUNDUP(MONTH(Rtdos_de_la_Empresa8[[#This Row],[Fecha de Facturacion]])/3, 0)","v":1}]
[40360,"Internet","Alemania",393863,874.5,{"$f":"VLOOKUP(Rtdos_de_la_Empresa8[[#This Row],[Canales]],Tabla39[],2,FALSE)","v":0.4},{"$f":"Rtdos_de_la_Empresa8[[#This Row],[Margen]]*Rtdos_de_la_Empresa8[[#This Row],[Facturación]]","v":157545.20000000001},{"$f":"YEAR(Rtdos_de_la_Empresa8[[#This Row],[Fecha de Facturacion]])","v":2010},{"$f":"ROUNDUP(MONTH(Rtdos_de_la_Empresa8[[#This Row],[Fecha de Facturacion]])/3, 0)","v":3}]
[39722,"Internet","Benelux",398576,2508,{"$f":"VLOOKUP(Rtdos_de_la_Empresa8[[#This Row],[Canales]],Tabla39[],2,FALSE)","v":0.4},{"$f":"Rtdos_de_la_Empresa8[[#This Row],[Margen]]*Rtdos_de_la_Empresa8[[#This Row],[Facturación]]","v":159430.40000000002},{"$f":"YEAR(Rtdos_de_la_Empresa8[[#This Row],[Fecha de Facturacion]])","v":2008},{"$f":"ROUNDUP(MONTH(Rtdos_de_la_Empresa8[[#This Row],[Fecha de Facturacion]])/3, 0)","v":4}]
[40026,"Directo","Resto de Paises",388601,2548.5,{"$f":"VLOOKUP(Rtdos_de_la_Empresa8[[#This Row],[Canales]],Tabla39[],2,FALSE)","v":0.4},{"$f":"Rtdos_de_la_Empresa8[[#This Row],[Margen]]*Rtdos_de_la_Empresa8[[#This Row],[Facturación]]","v":155440.4},{"$f":"YEAR(Rtdos_de_la_Empresa8[[#This Row],[Fecha de Facturacion]])","v":2009},{"$f":"ROUNDUP(MONTH(Rtdos_de_la_Empresa8[[#This Row],[Fecha de Facturacion]])/3, 0)","v":3}]
[39845,"Directo","Resto de Paises",380091,1101,{"$f":"VLOOKUP(Rtdos_de_la_Empresa8[[#This Row],[Canales]],Tabla39[],2,FALSE)","v":0.4},{"$f":"Rtdos_de_la_Empresa8[[#This Row],[Margen]]*Rtdos_de_la_Empresa8[[#This Row],[Facturación]]","v":152036.4},{"$f":"YEAR(Rtdos_de_la_Empresa8[[#This Row],[Fecha de Facturacion]])","v":2009},{"$f":"ROUNDUP(MONTH(Rtdos_de_la_Empresa8[[#This Row],[Fecha de Facturacion]])/3, 0)","v":1}]
[39479,"Directo","Reino Unido",172529,2008.5,{"$f":"VLOOKUP(Rtdos_de_la_Empresa8[[#This Row],[Canales]],Tabla39[],2,FALSE)","v":0.4},{"$f":"Rtdos_de_la_Empresa8[[#This Row],[Margen]]*Rtdos_de_la_Empresa8[[#This Row],[Facturación]]","v":69011.600000000006},{"$f":"YEAR(Rtdos_de_la_Empresa8[[#This Row],[Fecha de Facturacion]])","v":2008},{"$f":"ROUNDUP(MONTH(Rtdos_de_la_Empresa8[[#This Row],[Fecha de Facturacion]])/3, 0)","v":1}]
[39479,"Directo","Paises Nórdicos",135697,2463,{"$f":"VLOOKUP(Rtdos_de_la_Empresa8[[#This Row],[Canales]],Tabla39[],2,FALSE)","v":0.4},{"$f":"Rtdos_de_la_Empresa8[[#This Row],[Margen]]*Rtdos_de_la_Empresa8[[#This Row],[Facturación]]","v":54278.8},{"$f":"YEAR(Rtdos_de_la_Empresa8[[#This Row],[Fecha de Facturacion]])","v":2008},{"$f":"ROUNDUP(MONTH(Rtdos_de_la_Empresa8[[#This Row],[Fecha de Facturacion]])/3, 0)","v":1}]
[39539,"Internet","Benelux",386328,2007,{"$f":"VLOOKUP(Rtdos_de_la_Empresa8[[#This Row],[Canales]],Tabla39[],2,FALSE)","v":0.4},{"$f":"Rtdos_de_la_Empresa8[[#This Row],[Margen]]*Rtdos_de_la_Empresa8[[#This Row],[Facturación]]","v":154531.20000000001},{"$f":"YEAR(Rtdos_de_la_Empresa8[[#This Row],[Fecha de Facturacion]])","v":2008},{"$f":"ROUNDUP(MONTH(Rtdos_de_la_Empresa8[[#This Row],[Fecha de Facturacion]])/3, 0)","v":2}]
[39508,"Directo","Resto de Europa",381495,688.5,{"$f":"VLOOKUP(Rtdos_de_la_Empresa8[[#This Row],[Canales]],Tabla39[],2,FALSE)","v":0.4},{"$f":"Rtdos_de_la_Empresa8[[#This Row],[Margen]]*Rtdos_de_la_Empresa8[[#This Row],[Facturación]]","v":152598},{"$f":"YEAR(Rtdos_de_la_Empresa8[[#This Row],[Fecha de Facturacion]])","v":2008},{"$f":"ROUNDUP(MONTH(Rtdos_de_la_Empresa8[[#This Row],[Fecha de Facturacion]])/3, 0)","v":1}]
[40330,"Directo","Resto de Europa",378552,1905,{"$f":"VLOOKUP(Rtdos_de_la_Empresa8[[#This Row],[Canales]],Tabla39[],2,FALSE)","v":0.4},{"$f":"Rtdos_de_la_Empresa8[[#This Row],[Margen]]*Rtdos_de_la_Empresa8[[#This Row],[Facturación]]","v":151420.80000000002},{"$f":"YEAR(Rtdos_de_la_Empresa8[[#This Row],[Fecha de Facturacion]])","v":2010},{"$f":"ROUNDUP(MONTH(Rtdos_de_la_Empresa8[[#This Row],[Fecha de Facturacion]])/3, 0)","v":2}]
[40330,"Directo","America Norte-Sur",366628,781.5,{"$f":"VLOOKUP(Rtdos_de_la_Empresa8[[#This Row],[Canales]],Tabla39[],2,FALSE)","v":0.4},{"$f":"Rtdos_de_la_Empresa8[[#This Row],[Margen]]*Rtdos_de_la_Empresa8[[#This Row],[Facturación]]","v":146651.20000000001},{"$f":"YEAR(Rtdos_de_la_Empresa8[[#This Row],[Fecha de Facturacion]])","v":2010},{"$f":"ROUNDUP(MONTH(Rtdos_de_la_Empresa8[[#This Row],[Fecha de Facturacion]])/3, 0)","v":2}]
[39508,"Directo","Paises Nórdicos",245292,736.5,{"$f":"VLOOKUP(Rtdos_de_la_Empresa8[[#This Row],[Canales]],Tabla39[],2,FALSE)","v":0.4},{"$f":"Rtdos_de_la_Empresa8[[#This Row],[Margen]]*Rtdos_de_la_Empresa8[[#This Row],[Facturación]]","v":98116.800000000003},{"$f":"YEAR(Rtdos_de_la_Empresa8[[#This Row],[Fecha de Facturacion]])","v":2008},{"$f":"ROUNDUP(MONTH(Rtdos_de_la_Empresa8[[#This Row],[Fecha de Facturacion]])/3, 0)","v":1}]
[39508,"Directo","Reino Unido",384673,1854,{"$f":"VLOOKUP(Rtdos_de_la_Empresa8[[#This Row],[Canales]],Tabla39[],2,FALSE)","v":0.4},{"$f":"Rtdos_de_la_Empresa8[[#This Row],[Margen]]*Rtdos_de_la_Empresa8[[#This Row],[Facturación]]","v":153869.20000000001},{"$f":"YEAR(Rtdos_de_la_Empresa8[[#This Row],[Fecha de Facturacion]])","v":2008},{"$f":"ROUNDUP(MONTH(Rtdos_de_la_Empresa8[[#This Row],[Fecha de Facturacion]])/3, 0)","v":1}]
[40026,"Directo","Rusia-Paises del Este",388434,1060.5,{"$f":"VLOOKUP(Rtdos_de_la_Empresa8[[#This Row],[Canales]],Tabla39[],2,FALSE)","v":0.4},{"$f":"Rtdos_de_la_Empresa8[[#This Row],[Margen]]*Rtdos_de_la_Empresa8[[#This Row],[Facturación]]","v":155373.6},{"$f":"YEAR(Rtdos_de_la_Empresa8[[#This Row],[Fecha de Facturacion]])","v":2009},{"$f":"ROUNDUP(MONTH(Rtdos_de_la_Empresa8[[#This Row],[Fecha de Facturacion]])/3, 0)","v":3}]
[39873,"Directo","Italia-Francia",378992,2506.5,{"$f":"VLOOKUP(Rtdos_de_la_Empresa8[[#This Row],[Canales]],Tabla39[],2,FALSE)","v":0.4},{"$f":"Rtdos_de_la_Empresa8[[#This Row],[Margen]]*Rtdos_de_la_Empresa8[[#This Row],[Facturación]]","v":151596.80000000002},{"$f":"YEAR(Rtdos_de_la_Empresa8[[#This Row],[Fecha de Facturacion]])","v":2009},{"$f":"ROUNDUP(MONTH(Rtdos_de_la_Empresa8[[#This Row],[Fecha de Facturacion]])/3, 0)","v":1}]
[40269,"Directo","España",391310,1083,{"$f":"VLOOKUP(Rtdos_de_la_Empresa8[[#This Row],[Canales]],Tabla39[],2,FALSE)","v":0.4},{"$f":"Rtdos_de_la_Empresa8[[#This Row],[Margen]]*Rtdos_de_la_Empresa8[[#This Row],[Facturación]]","v":156524},{"$f":"YEAR(Rtdos_de_la_Empresa8[[#This Row],[Fecha de Facturacion]])","v":2010},{"$f":"ROUNDUP(MONTH(Rtdos_de_la_Empresa8[[#This Row],[Fecha de Facturacion]])/3, 0)","v":2}]
[40210,"Internet","Resto de Paises",373816,1837.5,{"$f":"VLOOKUP(Rtdos_de_la_Empresa8[[#This Row],[Canales]],Tabla39[],2,FALSE)","v":0.4},{"$f":"Rtdos_de_la_Empresa8[[#This Row],[Margen]]*Rtdos_de_la_Empresa8[[#This Row],[Facturación]]","v":149526.39999999999},{"$f":"YEAR(Rtdos_de_la_Empresa8[[#This Row],[Fecha de Facturacion]])","v":2010},{"$f":"ROUNDUP(MONTH(Rtdos_de_la_Empresa8[[#This Row],[Fecha de Facturacion]])/3, 0)","v":1}]
[40118,"Directo","Alemania",393239,1194,{"$f":"VLOOKUP(Rtdos_de_la_Empresa8[[#This Row],[Canales]],Tabla39[],2,FALSE)","v":0.4},{"$f":"Rtdos_de_la_Empresa8[[#This Row],[Margen]]*Rtdos_de_la_Empresa8[[#This Row],[Facturación]]","v":157295.6},{"$f":"YEAR(Rtdos_de_la_Empresa8[[#This Row],[Fecha de Facturacion]])","v":2009},{"$f":"ROUNDUP(MONTH(Rtdos_de_la_Empresa8[[#This Row],[Fecha de Facturacion]])/3, 0)","v":4}]
[40210,"Directo","Alemania",393204,2379,{"$f":"VLOOKUP(Rtdos_de_la_Empresa8[[#This Row],[Canales]],Tabla39[],2,FALSE)","v":0.4},{"$f":"Rtdos_de_la_Empresa8[[#This Row],[Margen]]*Rtdos_de_la_Empresa8[[#This Row],[Facturación]]","v":157281.60000000001},{"$f":"YEAR(Rtdos_de_la_Empresa8[[#This Row],[Fecha de Facturacion]])","v":2010},{"$f":"ROUNDUP(MONTH(Rtdos_de_la_Empresa8[[#This Row],[Fecha de Facturacion]])/3, 0)","v":1}]
[39508,"Directo","Paises Nórdicos",134965,2661,{"$f":"VLOOKUP(Rtdos_de_la_Empresa8[[#This Row],[Canales]],Tabla39[],2,FALSE)","v":0.4},{"$f":"Rtdos_de_la_Empresa8[[#This Row],[Margen]]*Rtdos_de_la_Empresa8[[#This Row],[Facturación]]","v":53986},{"$f":"YEAR(Rtdos_de_la_Empresa8[[#This Row],[Fecha de Facturacion]])","v":2008},{"$f":"ROUNDUP(MONTH(Rtdos_de_la_Empresa8[[#This Row],[Fecha de Facturacion]])/3, 0)","v":1}]
[39783,"Directo","Rusia-Paises del Este",384646,2584.5,{"$f":"VLOOKUP(Rtdos_de_la_Empresa8[[#This Row],[Canales]],Tabla39[],2,FALSE)","v":0.4},{"$f":"Rtdos_de_la_Empresa8[[#This Row],[Margen]]*Rtdos_de_la_Empresa8[[#This Row],[Facturación]]","v":153858.4},{"$f":"YEAR(Rtdos_de_la_Empresa8[[#This Row],[Fecha de Facturacion]])","v":2008},{"$f":"ROUNDUP(MONTH(Rtdos_de_la_Empresa8[[#This Row],[Fecha de Facturacion]])/3, 0)","v":4}]
[39722,"Directo","Resto de Europa",375581,2913,{"$f":"VLOOKUP(Rtdos_de_la_Empresa8[[#This Row],[Canales]],Tabla39[],2,FALSE)","v":0.4},{"$f":"Rtdos_de_la_Empresa8[[#This Row],[Margen]]*Rtdos_de_la_Empresa8[[#This Row],[Facturación]]","v":150232.4},{"$f":"YEAR(Rtdos_de_la_Empresa8[[#This Row],[Fecha de Facturacion]])","v":2008},{"$f":"ROUNDUP(MONTH(Rtdos_de_la_Empresa8[[#This Row],[Fecha de Facturacion]])/3, 0)","v":4}]
[39539,"Directo","Reino Unido",291496,1203,{"$f":"VLOOKUP(Rtdos_de_la_Empresa8[[#This Row],[Canales]],Tabla39[],2,FALSE)","v":0.4},{"$f":"Rtdos_de_la_Empresa8[[#This Row],[Margen]]*Rtdos_de_la_Empresa8[[#This Row],[Facturación]]","v":116598.40000000001},{"$f":"YEAR(Rtdos_de_la_Empresa8[[#This Row],[Fecha de Facturacion]])","v":2008},{"$f":"ROUNDUP(MONTH(Rtdos_de_la_Empresa8[[#This Row],[Fecha de Facturacion]])/3, 0)","v":2}]
[40391,"Directo","America Norte-Sur",358566,1992,{"$f":"VLOOKUP(Rtdos_de_la_Empresa8[[#This Row],[Canales]],Tabla39[],2,FALSE)","v":0.4},{"$f":"Rtdos_de_la_Empresa8[[#This Row],[Margen]]*Rtdos_de_la_Empresa8[[#This Row],[Facturación]]","v":143426.4},{"$f":"YEAR(Rtdos_de_la_Empresa8[[#This Row],[Fecha de Facturacion]])","v":2010},{"$f":"ROUNDUP(MONTH(Rtdos_de_la_Empresa8[[#This Row],[Fecha de Facturacion]])/3, 0)","v":3}]
[39722,"Internet","Benelux",385744,2511,{"$f":"VLOOKUP(Rtdos_de_la_Empresa8[[#This Row],[Canales]],Tabla39[],2,FALSE)","v":0.4},{"$f":"Rtdos_de_la_Empresa8[[#This Row],[Margen]]*Rtdos_de_la_Empresa8[[#This Row],[Facturación]]","v":154297.60000000001},{"$f":"YEAR(Rtdos_de_la_Empresa8[[#This Row],[Fecha de Facturacion]])","v":2008},{"$f":"ROUNDUP(MONTH(Rtdos_de_la_Empresa8[[#This Row],[Fecha de Facturacion]])/3, 0)","v":4}]
[39539,"Directo","Paises Nórdicos",280609,1531.5,{"$f":"VLOOKUP(Rtdos_de_la_Empresa8[[#This Row],[Canales]],Tabla39[],2,FALSE)","v":0.4},{"$f":"Rtdos_de_la_Empresa8[[#This Row],[Margen]]*Rtdos_de_la_Empresa8[[#This Row],[Facturación]]","v":112243.6},{"$f":"YEAR(Rtdos_de_la_Empresa8[[#This Row],[Fecha de Facturacion]])","v":2008},{"$f":"ROUNDUP(MONTH(Rtdos_de_la_Empresa8[[#This Row],[Fecha de Facturacion]])/3, 0)","v":2}]
[40360,"Internet","Resto de Paises",366443,852,{"$f":"VLOOKUP(Rtdos_de_la_Empresa8[[#This Row],[Canales]],Tabla39[],2,FALSE)","v":0.4},{"$f":"Rtdos_de_la_Empresa8[[#This Row],[Margen]]*Rtdos_de_la_Empresa8[[#This Row],[Facturación]]","v":146577.20000000001},{"$f":"YEAR(Rtdos_de_la_Empresa8[[#This Row],[Fecha de Facturacion]])","v":2010},{"$f":"ROUNDUP(MONTH(Rtdos_de_la_Empresa8[[#This Row],[Fecha de Facturacion]])/3, 0)","v":3}]
[39661,"Directo","Rusia-Paises del Este",384590,2023.5,{"$f":"VLOOKUP(Rtdos_de_la_Empresa8[[#This Row],[Canales]],Tabla39[],2,FALSE)","v":0.4},{"$f":"Rtdos_de_la_Empresa8[[#This Row],[Margen]]*Rtdos_de_la_Empresa8[[#This Row],[Facturación]]","v":153836},{"$f":"YEAR(Rtdos_de_la_Empresa8[[#This Row],[Fecha de Facturacion]])","v":2008},{"$f":"ROUNDUP(MONTH(Rtdos_de_la_Empresa8[[#This Row],[Fecha de Facturacion]])/3, 0)","v":3}]
[40238,"Directo","España",379772,2062.5,{"$f":"VLOOKUP(Rtdos_de_la_Empresa8[[#This Row],[Canales]],Tabla39[],2,FALSE)","v":0.4},{"$f":"Rtdos_de_la_Empresa8[[#This Row],[Margen]]*Rtdos_de_la_Empresa8[[#This Row],[Facturación]]","v":151908.80000000002},{"$f":"YEAR(Rtdos_de_la_Empresa8[[#This Row],[Fecha de Facturacion]])","v":2010},{"$f":"ROUNDUP(MONTH(Rtdos_de_la_Empresa8[[#This Row],[Fecha de Facturacion]])/3, 0)","v":1}]
[39600,"Internet","Italia-Francia",378350,2613,{"$f":"VLOOKUP(Rtdos_de_la_Empresa8[[#This Row],[Canales]],Tabla39[],2,FALSE)","v":0.4},{"$f":"Rtdos_de_la_Empresa8[[#This Row],[Margen]]*Rtdos_de_la_Empresa8[[#This Row],[Facturación]]","v":151340},{"$f":"YEAR(Rtdos_de_la_Empresa8[[#This Row],[Fecha de Facturacion]])","v":2008},{"$f":"ROUNDUP(MONTH(Rtdos_de_la_Empresa8[[#This Row],[Fecha de Facturacion]])/3, 0)","v":2}]
[39965,"Internet","Benelux",382786,763.5,{"$f":"VLOOKUP(Rtdos_de_la_Empresa8[[#This Row],[Canales]],Tabla39[],2,FALSE)","v":0.4},{"$f":"Rtdos_de_la_Empresa8[[#This Row],[Margen]]*Rtdos_de_la_Empresa8[[#This Row],[Facturación]]","v":153114.4},{"$f":"YEAR(Rtdos_de_la_Empresa8[[#This Row],[Fecha de Facturacion]])","v":2009},{"$f":"ROUNDUP(MONTH(Rtdos_de_la_Empresa8[[#This Row],[Fecha de Facturacion]])/3, 0)","v":2}]
[40179,"Internet","España",370703,2952,{"$f":"VLOOKUP(Rtdos_de_la_Empresa8[[#This Row],[Canales]],Tabla39[],2,FALSE)","v":0.4},{"$f":"Rtdos_de_la_Empresa8[[#This Row],[Margen]]*Rtdos_de_la_Empresa8[[#This Row],[Facturación]]","v":148281.20000000001},{"$f":"YEAR(Rtdos_de_la_Empresa8[[#This Row],[Fecha de Facturacion]])","v":2010},{"$f":"ROUNDUP(MONTH(Rtdos_de_la_Empresa8[[#This Row],[Fecha de Facturacion]])/3, 0)","v":1}]
[40026,"Directo","Alemania",393041,511.5,{"$f":"VLOOKUP(Rtdos_de_la_Empresa8[[#This Row],[Canales]],Tabla39[],2,FALSE)","v":0.4},{"$f":"Rtdos_de_la_Empresa8[[#This Row],[Margen]]*Rtdos_de_la_Empresa8[[#This Row],[Facturación]]","v":157216.40000000002},{"$f":"YEAR(Rtdos_de_la_Empresa8[[#This Row],[Fecha de Facturacion]])","v":2009},{"$f":"ROUNDUP(MONTH(Rtdos_de_la_Empresa8[[#This Row],[Fecha de Facturacion]])/3, 0)","v":3}]
[39569,"Internet","Resto de Paises",366156,735,{"$f":"VLOOKUP(Rtdos_de_la_Empresa8[[#This Row],[Canales]],Tabla39[],2,FALSE)","v":0.4},{"$f":"Rtdos_de_la_Empresa8[[#This Row],[Margen]]*Rtdos_de_la_Empresa8[[#This Row],[Facturación]]","v":146462.39999999999},{"$f":"YEAR(Rtdos_de_la_Empresa8[[#This Row],[Fecha de Facturacion]])","v":2008},{"$f":"ROUNDUP(MONTH(Rtdos_de_la_Empresa8[[#This Row],[Fecha de Facturacion]])/3, 0)","v":2}]
[39569,"Directo","Paises Nórdicos",255782,705,{"$f":"VLOOKUP(Rtdos_de_la_Empresa8[[#This Row],[Canales]],Tabla39[],2,FALSE)","v":0.4},{"$f":"Rtdos_de_la_Empresa8[[#This Row],[Margen]]*Rtdos_de_la_Empresa8[[#This Row],[Facturación]]","v":102312.8},{"$f":"YEAR(Rtdos_de_la_Empresa8[[#This Row],[Fecha de Facturacion]])","v":2008},{"$f":"ROUNDUP(MONTH(Rtdos_de_la_Empresa8[[#This Row],[Fecha de Facturacion]])/3, 0)","v":2}]
[40148,"Internet","España",369464,2889,{"$f":"VLOOKUP(Rtdos_de_la_Empresa8[[#This Row],[Canales]],Tabla39[],2,FALSE)","v":0.4},{"$f":"Rtdos_de_la_Empresa8[[#This Row],[Margen]]*Rtdos_de_la_Empresa8[[#This Row],[Facturación]]","v":147785.60000000001},{"$f":"YEAR(Rtdos_de_la_Empresa8[[#This Row],[Fecha de Facturacion]])","v":2009},{"$f":"ROUNDUP(MONTH(Rtdos_de_la_Empresa8[[#This Row],[Fecha de Facturacion]])/3, 0)","v":4}]
[40269,"Internet","Italia-Francia",375923,507,{"$f":"VLOOKUP(Rtdos_de_la_Empresa8[[#This Row],[Canales]],Tabla39[],2,FALSE)","v":0.4},{"$f":"Rtdos_de_la_Empresa8[[#This Row],[Margen]]*Rtdos_de_la_Empresa8[[#This Row],[Facturación]]","v":150369.20000000001},{"$f":"YEAR(Rtdos_de_la_Empresa8[[#This Row],[Fecha de Facturacion]])","v":2010},{"$f":"ROUNDUP(MONTH(Rtdos_de_la_Empresa8[[#This Row],[Fecha de Facturacion]])/3, 0)","v":2}]
[40057,"Internet","Italia-Francia",366502,2508,{"$f":"VLOOKUP(Rtdos_de_la_Empresa8[[#This Row],[Canales]],Tabla39[],2,FALSE)","v":0.4},{"$f":"Rtdos_de_la_Empresa8[[#This Row],[Margen]]*Rtdos_de_la_Empresa8[[#This Row],[Facturación]]","v":146600.80000000002},{"$f":"YEAR(Rtdos_de_la_Empresa8[[#This Row],[Fecha de Facturacion]])","v":2009},{"$f":"ROUNDUP(MONTH(Rtdos_de_la_Empresa8[[#This Row],[Fecha de Facturacion]])/3, 0)","v":3}]
[39934,"Directo","Alemania",384066,1003.5,{"$f":"VLOOKUP(Rtdos_de_la_Empresa8[[#This Row],[Canales]],Tabla39[],2,FALSE)","v":0.4},{"$f":"Rtdos_de_la_Empresa8[[#This Row],[Margen]]*Rtdos_de_la_Empresa8[[#This Row],[Facturación]]","v":153626.4},{"$f":"YEAR(Rtdos_de_la_Empresa8[[#This Row],[Fecha de Facturacion]])","v":2009},{"$f":"ROUNDUP(MONTH(Rtdos_de_la_Empresa8[[#This Row],[Fecha de Facturacion]])/3, 0)","v":2}]
[39479,"Directo","America Norte-Sur",356679,1672.5,{"$f":"VLOOKUP(Rtdos_de_la_Empresa8[[#This Row],[Canales]],Tabla39[],2,FALSE)","v":0.4},{"$f":"Rtdos_de_la_Empresa8[[#This Row],[Margen]]*Rtdos_de_la_Empresa8[[#This Row],[Facturación]]","v":142671.6},{"$f":"YEAR(Rtdos_de_la_Empresa8[[#This Row],[Fecha de Facturacion]])","v":2008},{"$f":"ROUNDUP(MONTH(Rtdos_de_la_Empresa8[[#This Row],[Fecha de Facturacion]])/3, 0)","v":1}]
[39995,"Directo","America Norte-Sur",349104,1963.5,{"$f":"VLOOKUP(Rtdos_de_la_Empresa8[[#This Row],[Canales]],Tabla39[],2,FALSE)","v":0.4},{"$f":"Rtdos_de_la_Empresa8[[#This Row],[Margen]]*Rtdos_de_la_Empresa8[[#This Row],[Facturación]]","v":139641.60000000001},{"$f":"YEAR(Rtdos_de_la_Empresa8[[#This Row],[Fecha de Facturacion]])","v":2009},{"$f":"ROUNDUP(MONTH(Rtdos_de_la_Empresa8[[#This Row],[Fecha de Facturacion]])/3, 0)","v":3}]
[40026,"Directo","Benelux",382683,2278.5,{"$f":"VLOOKUP(Rtdos_de_la_Empresa8[[#This Row],[Canales]],Tabla39[],2,FALSE)","v":0.4},{"$f":"Rtdos_de_la_Empresa8[[#This Row],[Margen]]*Rtdos_de_la_Empresa8[[#This Row],[Facturación]]","v":153073.20000000001},{"$f":"YEAR(Rtdos_de_la_Empresa8[[#This Row],[Fecha de Facturacion]])","v":2009},{"$f":"ROUNDUP(MONTH(Rtdos_de_la_Empresa8[[#This Row],[Fecha de Facturacion]])/3, 0)","v":3}]
[40299,"Directo","Resto de Europa",369353,2293.5,{"$f":"VLOOKUP(Rtdos_de_la_Empresa8[[#This Row],[Canales]],Tabla39[],2,FALSE)","v":0.4},{"$f":"Rtdos_de_la_Empresa8[[#This Row],[Margen]]*Rtdos_de_la_Empresa8[[#This Row],[Facturación]]","v":147741.20000000001},{"$f":"YEAR(Rtdos_de_la_Empresa8[[#This Row],[Fecha de Facturacion]])","v":2010},{"$f":"ROUNDUP(MONTH(Rtdos_de_la_Empresa8[[#This Row],[Fecha de Facturacion]])/3, 0)","v":2}]
[40238,"Internet","Resto de Paises",349304,439.5,{"$f":"VLOOKUP(Rtdos_de_la_Empresa8[[#This Row],[Canales]],Tabla39[],2,FALSE)","v":0.4},{"$f":"Rtdos_de_la_Empresa8[[#This Row],[Margen]]*Rtdos_de_la_Empresa8[[#This Row],[Facturación]]","v":139721.60000000001},{"$f":"YEAR(Rtdos_de_la_Empresa8[[#This Row],[Fecha de Facturacion]])","v":2010},{"$f":"ROUNDUP(MONTH(Rtdos_de_la_Empresa8[[#This Row],[Fecha de Facturacion]])/3, 0)","v":1}]
[39569,"Directo","Reino Unido",133335,2031,{"$f":"VLOOKUP(Rtdos_de_la_Empresa8[[#This Row],[Canales]],Tabla39[],2,FALSE)","v":0.4},{"$f":"Rtdos_de_la_Empresa8[[#This Row],[Margen]]*Rtdos_de_la_Empresa8[[#This Row],[Facturación]]","v":53334},{"$f":"YEAR(Rtdos_de_la_Empresa8[[#This Row],[Fecha de Facturacion]])","v":2008},{"$f":"ROUNDUP(MONTH(Rtdos_de_la_Empresa8[[#This Row],[Fecha de Facturacion]])/3, 0)","v":2}]
[40179,"Internet","Rusia-Paises del Este",376174,1810.5,{"$f":"VLOOKUP(Rtdos_de_la_Empresa8[[#This Row],[Canales]],Tabla39[],2,FALSE)","v":0.4},{"$f":"Rtdos_de_la_Empresa8[[#This Row],[Margen]]*Rtdos_de_la_Empresa8[[#This Row],[Facturación]]","v":150469.6},{"$f":"YEAR(Rtdos_de_la_Empresa8[[#This Row],[Fecha de Facturacion]])","v":2010},{"$f":"ROUNDUP(MONTH(Rtdos_de_la_Empresa8[[#This Row],[Fecha de Facturacion]])/3, 0)","v":1}]
[39600,"Directo","Resto de Europa",357917,1305,{"$f":"VLOOKUP(Rtdos_de_la_Empresa8[[#This Row],[Canales]],Tabla39[],2,FALSE)","v":0.4},{"$f":"Rtdos_de_la_Empresa8[[#This Row],[Margen]]*Rtdos_de_la_Empresa8[[#This Row],[Facturación]]","v":143166.80000000002},{"$f":"YEAR(Rtdos_de_la_Empresa8[[#This Row],[Fecha de Facturacion]])","v":2008},{"$f":"ROUNDUP(MONTH(Rtdos_de_la_Empresa8[[#This Row],[Fecha de Facturacion]])/3, 0)","v":2}]
[40179,"Directo","America Norte-Sur",346430,2922,{"$f":"VLOOKUP(Rtdos_de_la_Empresa8[[#This Row],[Canales]],Tabla39[],2,FALSE)","v":0.4},{"$f":"Rtdos_de_la_Empresa8[[#This Row],[Margen]]*Rtdos_de_la_Empresa8[[#This Row],[Facturación]]","v":138572},{"$f":"YEAR(Rtdos_de_la_Empresa8[[#This Row],[Fecha de Facturacion]])","v":2010},{"$f":"ROUNDUP(MONTH(Rtdos_de_la_Empresa8[[#This Row],[Fecha de Facturacion]])/3, 0)","v":1}]
[39600,"Directo","Reino Unido",362465,1519.5,{"$f":"VLOOKUP(Rtdos_de_la_Empresa8[[#This Row],[Canales]],Tabla39[],2,FALSE)","v":0.4},{"$f":"Rtdos_de_la_Empresa8[[#This Row],[Margen]]*Rtdos_de_la_Empresa8[[#This Row],[Facturación]]","v":144986},{"$f":"YEAR(Rtdos_de_la_Empresa8[[#This Row],[Fecha de Facturacion]])","v":2008},{"$f":"ROUNDUP(MONTH(Rtdos_de_la_Empresa8[[#This Row],[Fecha de Facturacion]])/3, 0)","v":2}]
[39600,"Directo","Paises Nórdicos",367549,2220,{"$f":"VLOOKUP(Rtdos_de_la_Empresa8[[#This Row],[Canales]],Tabla39[],2,FALSE)","v":0.4},{"$f":"Rtdos_de_la_Empresa8[[#This Row],[Margen]]*Rtdos_de_la_Empresa8[[#This Row],[Facturación]]","v":147019.6},{"$f":"YEAR(Rtdos_de_la_Empresa8[[#This Row],[Fecha de Facturacion]])","v":2008},{"$f":"ROUNDUP(MONTH(Rtdos_de_la_Empresa8[[#This Row],[Fecha de Facturacion]])/3, 0)","v":2}]
[39600,"Directo","Benelux",382655,2392.5,{"$f":"VLOOKUP(Rtdos_de_la_Empresa8[[#This Row],[Canales]],Tabla39[],2,FALSE)","v":0.4},{"$f":"Rtdos_de_la_Empresa8[[#This Row],[Margen]]*Rtdos_de_la_Empresa8[[#This Row],[Facturación]]","v":153062},{"$f":"YEAR(Rtdos_de_la_Empresa8[[#This Row],[Fecha de Facturacion]])","v":2008},{"$f":"ROUNDUP(MONTH(Rtdos_de_la_Empresa8[[#This Row],[Fecha de Facturacion]])/3, 0)","v":2}]
[39448,"Internet","Italia-Francia",363821,460.5,{"$f":"VLOOKUP(Rtdos_de_la_Empresa8[[#This Row],[Canales]],Tabla39[],2,FALSE)","v":0.4},{"$f":"Rtdos_de_la_Empresa8[[#This Row],[Margen]]*Rtdos_de_la_Empresa8[[#This Row],[Facturación]]","v":145528.4},{"$f":"YEAR(Rtdos_de_la_Empresa8[[#This Row],[Fecha de Facturacion]])","v":2008},{"$f":"ROUNDUP(MONTH(Rtdos_de_la_Empresa8[[#This Row],[Fecha de Facturacion]])/3, 0)","v":1}]
[40148,"Directo","Alemania",382590,607.5,{"$f":"VLOOKUP(Rtdos_de_la_Empresa8[[#This Row],[Canales]],Tabla39[],2,FALSE)","v":0.4},{"$f":"Rtdos_de_la_Empresa8[[#This Row],[Margen]]*Rtdos_de_la_Empresa8[[#This Row],[Facturación]]","v":153036},{"$f":"YEAR(Rtdos_de_la_Empresa8[[#This Row],[Fecha de Facturacion]])","v":2009},{"$f":"ROUNDUP(MONTH(Rtdos_de_la_Empresa8[[#This Row],[Fecha de Facturacion]])/3, 0)","v":4}]
[39630,"Agencia","Resto de Paises",336077,1107,{"$f":"VLOOKUP(Rtdos_de_la_Empresa8[[#This Row],[Canales]],Tabla39[],2,FALSE)","v":0.2},{"$f":"Rtdos_de_la_Empresa8[[#This Row],[Margen]]*Rtdos_de_la_Empresa8[[#This Row],[Facturación]]","v":67215.400000000009},{"$f":"YEAR(Rtdos_de_la_Empresa8[[#This Row],[Fecha de Facturacion]])","v":2008},{"$f":"ROUNDUP(MONTH(Rtdos_de_la_Empresa8[[#This Row],[Fecha de Facturacion]])/3, 0)","v":3}]
[39600,"Directo","Reino Unido",230068,2170.5,{"$f":"VLOOKUP(Rtdos_de_la_Empresa8[[#This Row],[Canales]],Tabla39[],2,FALSE)","v":0.4},{"$f":"Rtdos_de_la_Empresa8[[#This Row],[Margen]]*Rtdos_de_la_Empresa8[[#This Row],[Facturación]]","v":92027.200000000012},{"$f":"YEAR(Rtdos_de_la_Empresa8[[#This Row],[Fecha de Facturacion]])","v":2008},{"$f":"ROUNDUP(MONTH(Rtdos_de_la_Empresa8[[#This Row],[Fecha de Facturacion]])/3, 0)","v":2}]
[39600,"Internet","Paises Nórdicos",171282,1701,{"$f":"VLOOKUP(Rtdos_de_la_Empresa8[[#This Row],[Canales]],Tabla39[],2,FALSE)","v":0.4},{"$f":"Rtdos_de_la_Empresa8[[#This Row],[Margen]]*Rtdos_de_la_Empresa8[[#This Row],[Facturación]]","v":68512.800000000003},{"$f":"YEAR(Rtdos_de_la_Empresa8[[#This Row],[Fecha de Facturacion]])","v":2008},{"$f":"ROUNDUP(MONTH(Rtdos_de_la_Empresa8[[#This Row],[Fecha de Facturacion]])/3, 0)","v":2}]
[39448,"Internet","España",361435,1675.5,{"$f":"VLOOKUP(Rtdos_de_la_Empresa8[[#This Row],[Canales]],Tabla39[],2,FALSE)","v":0.4},{"$f":"Rtdos_de_la_Empresa8[[#This Row],[Margen]]*Rtdos_de_la_Empresa8[[#This Row],[Facturación]]","v":144574},{"$f":"YEAR(Rtdos_de_la_Empresa8[[#This Row],[Fecha de Facturacion]])","v":2008},{"$f":"ROUNDUP(MONTH(Rtdos_de_la_Empresa8[[#This Row],[Fecha de Facturacion]])/3, 0)","v":1}]
[39965,"Internet","Rusia-Paises del Este",358244,2380.5,{"$f":"VLOOKUP(Rtdos_de_la_Empresa8[[#This Row],[Canales]],Tabla39[],2,FALSE)","v":0.4},{"$f":"Rtdos_de_la_Empresa8[[#This Row],[Margen]]*Rtdos_de_la_Empresa8[[#This Row],[Facturación]]","v":143297.60000000001},{"$f":"YEAR(Rtdos_de_la_Empresa8[[#This Row],[Fecha de Facturacion]])","v":2009},{"$f":"ROUNDUP(MONTH(Rtdos_de_la_Empresa8[[#This Row],[Fecha de Facturacion]])/3, 0)","v":2}]
[39508,"Internet","Resto de Europa",347187,592.5,{"$f":"VLOOKUP(Rtdos_de_la_Empresa8[[#This Row],[Canales]],Tabla39[],2,FALSE)","v":0.4},{"$f":"Rtdos_de_la_Empresa8[[#This Row],[Margen]]*Rtdos_de_la_Empresa8[[#This Row],[Facturación]]","v":138874.80000000002},{"$f":"YEAR(Rtdos_de_la_Empresa8[[#This Row],[Fecha de Facturacion]])","v":2008},{"$f":"ROUNDUP(MONTH(Rtdos_de_la_Empresa8[[#This Row],[Fecha de Facturacion]])/3, 0)","v":1}]
[39845,"Directo","Benelux",375123,2395.5,{"$f":"VLOOKUP(Rtdos_de_la_Empresa8[[#This Row],[Canales]],Tabla39[],2,FALSE)","v":0.4},{"$f":"Rtdos_de_la_Empresa8[[#This Row],[Margen]]*Rtdos_de_la_Empresa8[[#This Row],[Facturación]]","v":150049.20000000001},{"$f":"YEAR(Rtdos_de_la_Empresa8[[#This Row],[Fecha de Facturacion]])","v":2009},{"$f":"ROUNDUP(MONTH(Rtdos_de_la_Empresa8[[#This Row],[Fecha de Facturacion]])/3, 0)","v":1}]
[39479,"Agencia","Resto de Paises",321987,2893.5,{"$f":"VLOOKUP(Rtdos_de_la_Empresa8[[#This Row],[Canales]],Tabla39[],2,FALSE)","v":0.2},{"$f":"Rtdos_de_la_Empresa8[[#This Row],[Margen]]*Rtdos_de_la_Empresa8[[#This Row],[Facturación]]","v":64397.4},{"$f":"YEAR(Rtdos_de_la_Empresa8[[#This Row],[Fecha de Facturacion]])","v":2008},{"$f":"ROUNDUP(MONTH(Rtdos_de_la_Empresa8[[#This Row],[Fecha de Facturacion]])/3, 0)","v":1}]
[39965,"Directo","America Norte-Sur",341679,582,{"$f":"VLOOKUP(Rtdos_de_la_Empresa8[[#This Row],[Canales]],Tabla39[],2,FALSE)","v":0.4},{"$f":"Rtdos_de_la_Empresa8[[#This Row],[Margen]]*Rtdos_de_la_Empresa8[[#This Row],[Facturación]]","v":136671.6},{"$f":"YEAR(Rtdos_de_la_Empresa8[[#This Row],[Fecha de Facturacion]])","v":2009},{"$f":"ROUNDUP(MONTH(Rtdos_de_la_Empresa8[[#This Row],[Fecha de Facturacion]])/3, 0)","v":2}]
[40330,"Directo","Benelux",373855,1057.5,{"$f":"VLOOKUP(Rtdos_de_la_Empresa8[[#This Row],[Canales]],Tabla39[],2,FALSE)","v":0.4},{"$f":"Rtdos_de_la_Empresa8[[#This Row],[Margen]]*Rtdos_de_la_Empresa8[[#This Row],[Facturación]]","v":149542},{"$f":"YEAR(Rtdos_de_la_Empresa8[[#This Row],[Fecha de Facturacion]])","v":2010},{"$f":"ROUNDUP(MONTH(Rtdos_de_la_Empresa8[[#This Row],[Fecha de Facturacion]])/3, 0)","v":2}]
[39630,"Internet","Paises Nórdicos",243141,1086,{"$f":"VLOOKUP(Rtdos_de_la_Empresa8[[#This Row],[Canales]],Tabla39[],2,FALSE)","v":0.4},{"$f":"Rtdos_de_la_Empresa8[[#This Row],[Margen]]*Rtdos_de_la_Empresa8[[#This Row],[Facturación]]","v":97256.400000000009},{"$f":"YEAR(Rtdos_de_la_Empresa8[[#This Row],[Fecha de Facturacion]])","v":2008},{"$f":"ROUNDUP(MONTH(Rtdos_de_la_Empresa8[[#This Row],[Fecha de Facturacion]])/3, 0)","v":3}]
[40057,"Internet","Italia-Francia",356366,2133,{"$f":"VLOOKUP(Rtdos_de_la_Empresa8[[#This Row],[Canales]],Tabla39[],2,FALSE)","v":0.4},{"$f":"Rtdos_de_la_Empresa8[[#This Row],[Margen]]*Rtdos_de_la_Empresa8[[#This Row],[Facturación]]","v":142546.4},{"$f":"YEAR(Rtdos_de_la_Empresa8[[#This Row],[Fecha de Facturacion]])","v":2009},{"$f":"ROUNDUP(MONTH(Rtdos_de_la_Empresa8[[#This Row],[Fecha de Facturacion]])/3, 0)","v":3}]
[39661,"Internet","Rusia-Paises del Este",353624,2418,{"$f":"VLOOKUP(Rtdos_de_la_Empresa8[[#This Row],[Canales]],Tabla39[],2,FALSE)","v":0.4},{"$f":"Rtdos_de_la_Empresa8[[#This Row],[Margen]]*Rtdos_de_la_Empresa8[[#This Row],[Facturación]]","v":141449.60000000001},{"$f":"YEAR(Rtdos_de_la_Empresa8[[#This Row],[Fecha de Facturacion]])","v":2008},{"$f":"ROUNDUP(MONTH(Rtdos_de_la_Empresa8[[#This Row],[Fecha de Facturacion]])/3, 0)","v":3}]
[39692,"Internet","España",356644,603,{"$f":"VLOOKUP(Rtdos_de_la_Empresa8[[#This Row],[Canales]],Tabla39[],2,FALSE)","v":0.4},{"$f":"Rtdos_de_la_Empresa8[[#This Row],[Margen]]*Rtdos_de_la_Empresa8[[#This Row],[Facturación]]","v":142657.60000000001},{"$f":"YEAR(Rtdos_de_la_Empresa8[[#This Row],[Fecha de Facturacion]])","v":2008},{"$f":"ROUNDUP(MONTH(Rtdos_de_la_Empresa8[[#This Row],[Fecha de Facturacion]])/3, 0)","v":3}]
[39753,"Directo","Alemania",367795,1363.5,{"$f":"VLOOKUP(Rtdos_de_la_Empresa8[[#This Row],[Canales]],Tabla39[],2,FALSE)","v":0.4},{"$f":"Rtdos_de_la_Empresa8[[#This Row],[Margen]]*Rtdos_de_la_Empresa8[[#This Row],[Facturación]]","v":147118},{"$f":"YEAR(Rtdos_de_la_Empresa8[[#This Row],[Fecha de Facturacion]])","v":2008},{"$f":"ROUNDUP(MONTH(Rtdos_de_la_Empresa8[[#This Row],[Fecha de Facturacion]])/3, 0)","v":4}]
[40269,"Internet","Resto de Europa",343393,2065.5,{"$f":"VLOOKUP(Rtdos_de_la_Empresa8[[#This Row],[Canales]],Tabla39[],2,FALSE)","v":0.4},{"$f":"Rtdos_de_la_Empresa8[[#This Row],[Margen]]*Rtdos_de_la_Empresa8[[#This Row],[Facturación]]","v":137357.20000000001},{"$f":"YEAR(Rtdos_de_la_Empresa8[[#This Row],[Fecha de Facturacion]])","v":2010},{"$f":"ROUNDUP(MONTH(Rtdos_de_la_Empresa8[[#This Row],[Fecha de Facturacion]])/3, 0)","v":2}]
[39630,"Directo","Reino Unido",290066,2722.5,{"$f":"VLOOKUP(Rtdos_de_la_Empresa8[[#This Row],[Canales]],Tabla39[],2,FALSE)","v":0.4},{"$f":"Rtdos_de_la_Empresa8[[#This Row],[Margen]]*Rtdos_de_la_Empresa8[[#This Row],[Facturación]]","v":116026.40000000001},{"$f":"YEAR(Rtdos_de_la_Empresa8[[#This Row],[Fecha de Facturacion]])","v":2008},{"$f":"ROUNDUP(MONTH(Rtdos_de_la_Empresa8[[#This Row],[Fecha de Facturacion]])/3, 0)","v":3}]
[39904,"Internet","España",347183,1330.5,{"$f":"VLOOKUP(Rtdos_de_la_Empresa8[[#This Row],[Canales]],Tabla39[],2,FALSE)","v":0.4},{"$f":"Rtdos_de_la_Empresa8[[#This Row],[Margen]]*Rtdos_de_la_Empresa8[[#This Row],[Facturación]]","v":138873.20000000001},{"$f":"YEAR(Rtdos_de_la_Empresa8[[#This Row],[Fecha de Facturacion]])","v":2009},{"$f":"ROUNDUP(MONTH(Rtdos_de_la_Empresa8[[#This Row],[Fecha de Facturacion]])/3, 0)","v":2}]
[39692,"Internet","Alemania",367069,2079,{"$f":"VLOOKUP(Rtdos_de_la_Empresa8[[#This Row],[Canales]],Tabla39[],2,FALSE)","v":0.4},{"$f":"Rtdos_de_la_Empresa8[[#This Row],[Margen]]*Rtdos_de_la_Empresa8[[#This Row],[Facturación]]","v":146827.6},{"$f":"YEAR(Rtdos_de_la_Empresa8[[#This Row],[Fecha de Facturacion]])","v":2008},{"$f":"ROUNDUP(MONTH(Rtdos_de_la_Empresa8[[#This Row],[Fecha de Facturacion]])/3, 0)","v":3}]
[39661,"Directo","Reino Unido",283794,984,{"$f":"VLOOKUP(Rtdos_de_la_Empresa8[[#This Row],[Canales]],Tabla39[],2,FALSE)","v":0.4},{"$f":"Rtdos_de_la_Empresa8[[#This Row],[Margen]]*Rtdos_de_la_Empresa8[[#This Row],[Facturación]]","v":113517.6},{"$f":"YEAR(Rtdos_de_la_Empresa8[[#This Row],[Fecha de Facturacion]])","v":2008},{"$f":"ROUNDUP(MONTH(Rtdos_de_la_Empresa8[[#This Row],[Fecha de Facturacion]])/3, 0)","v":3}]
[39845,"Internet","Rusia-Paises del Este",352997,2373,{"$f":"VLOOKUP(Rtdos_de_la_Empresa8[[#This Row],[Canales]],Tabla39[],2,FALSE)","v":0.4},{"$f":"Rtdos_de_la_Empresa8[[#This Row],[Margen]]*Rtdos_de_la_Empresa8[[#This Row],[Facturación]]","v":141198.80000000002},{"$f":"YEAR(Rtdos_de_la_Empresa8[[#This Row],[Fecha de Facturacion]])","v":2009},{"$f":"ROUNDUP(MONTH(Rtdos_de_la_Empresa8[[#This Row],[Fecha de Facturacion]])/3, 0)","v":1}]
[39753,"Directo","Italia-Francia",356233,841.5,{"$f":"VLOOKUP(Rtdos_de_la_Empresa8[[#This Row],[Canales]],Tabla39[],2,FALSE)","v":0.4},{"$f":"Rtdos_de_la_Empresa8[[#This Row],[Margen]]*Rtdos_de_la_Empresa8[[#This Row],[Facturación]]","v":142493.20000000001},{"$f":"YEAR(Rtdos_de_la_Empresa8[[#This Row],[Fecha de Facturacion]])","v":2008},{"$f":"ROUNDUP(MONTH(Rtdos_de_la_Empresa8[[#This Row],[Fecha de Facturacion]])/3, 0)","v":4}]
[39722,"Internet","Rusia-Paises del Este",344875,1600.5,{"$f":"VLOOKUP(Rtdos_de_la_Empresa8[[#This Row],[Canales]],Tabla39[],2,FALSE)","v":0.4},{"$f":"Rtdos_de_la_Empresa8[[#This Row],[Margen]]*Rtdos_de_la_Empresa8[[#This Row],[Facturación]]","v":137950},{"$f":"YEAR(Rtdos_de_la_Empresa8[[#This Row],[Fecha de Facturacion]])","v":2008},{"$f":"ROUNDUP(MONTH(Rtdos_de_la_Empresa8[[#This Row],[Fecha de Facturacion]])/3, 0)","v":4}]
[39814,"Internet","España",345052,2392.5,{"$f":"VLOOKUP(Rtdos_de_la_Empresa8[[#This Row],[Canales]],Tabla39[],2,FALSE)","v":0.4},{"$f":"Rtdos_de_la_Empresa8[[#This Row],[Margen]]*Rtdos_de_la_Empresa8[[#This Row],[Facturación]]","v":138020.80000000002},{"$f":"YEAR(Rtdos_de_la_Empresa8[[#This Row],[Fecha de Facturacion]])","v":2009},{"$f":"ROUNDUP(MONTH(Rtdos_de_la_Empresa8[[#This Row],[Fecha de Facturacion]])/3, 0)","v":1}]
[39783,"Directo","Italia-Francia",353787,2542.5,{"$f":"VLOOKUP(Rtdos_de_la_Empresa8[[#This Row],[Canales]],Tabla39[],2,FALSE)","v":0.4},{"$f":"Rtdos_de_la_Empresa8[[#This Row],[Margen]]*Rtdos_de_la_Empresa8[[#This Row],[Facturación]]","v":141514.80000000002},{"$f":"YEAR(Rtdos_de_la_Empresa8[[#This Row],[Fecha de Facturacion]])","v":2008},{"$f":"ROUNDUP(MONTH(Rtdos_de_la_Empresa8[[#This Row],[Fecha de Facturacion]])/3, 0)","v":4}]
[39814,"Internet","Alemania",360882,1197,{"$f":"VLOOKUP(Rtdos_de_la_Empresa8[[#This Row],[Canales]],Tabla39[],2,FALSE)","v":0.4},{"$f":"Rtdos_de_la_Empresa8[[#This Row],[Margen]]*Rtdos_de_la_Empresa8[[#This Row],[Facturación]]","v":144352.80000000002},{"$f":"YEAR(Rtdos_de_la_Empresa8[[#This Row],[Fecha de Facturacion]])","v":2009},{"$f":"ROUNDUP(MONTH(Rtdos_de_la_Empresa8[[#This Row],[Fecha de Facturacion]])/3, 0)","v":1}]
[40210,"Internet","Resto de Europa",336858,2773.5,{"$f":"VLOOKUP(Rtdos_de_la_Empresa8[[#This Row],[Canales]],Tabla39[],2,FALSE)","v":0.4},{"$f":"Rtdos_de_la_Empresa8[[#This Row],[Margen]]*Rtdos_de_la_Empresa8[[#This Row],[Facturación]]","v":134743.20000000001},{"$f":"YEAR(Rtdos_de_la_Empresa8[[#This Row],[Fecha de Facturacion]])","v":2010},{"$f":"ROUNDUP(MONTH(Rtdos_de_la_Empresa8[[#This Row],[Fecha de Facturacion]])/3, 0)","v":1}]
[39873,"Directo","Benelux",362464,1365,{"$f":"VLOOKUP(Rtdos_de_la_Empresa8[[#This Row],[Canales]],Tabla39[],2,FALSE)","v":0.4},{"$f":"Rtdos_de_la_Empresa8[[#This Row],[Margen]]*Rtdos_de_la_Empresa8[[#This Row],[Facturación]]","v":144985.60000000001},{"$f":"YEAR(Rtdos_de_la_Empresa8[[#This Row],[Fecha de Facturacion]])","v":2009},{"$f":"ROUNDUP(MONTH(Rtdos_de_la_Empresa8[[#This Row],[Fecha de Facturacion]])/3, 0)","v":1}]
[39508,"Directo","America Norte-Sur",336620,610.5,{"$f":"VLOOKUP(Rtdos_de_la_Empresa8[[#This Row],[Canales]],Tabla39[],2,FALSE)","v":0.4},{"$f":"Rtdos_de_la_Empresa8[[#This Row],[Margen]]*Rtdos_de_la_Empresa8[[#This Row],[Facturación]]","v":134648},{"$f":"YEAR(Rtdos_de_la_Empresa8[[#This Row],[Fecha de Facturacion]])","v":2008},{"$f":"ROUNDUP(MONTH(Rtdos_de_la_Empresa8[[#This Row],[Fecha de Facturacion]])/3, 0)","v":1}]
[40179,"Agencia","Resto de Paises",291362,1387.5,{"$f":"VLOOKUP(Rtdos_de_la_Empresa8[[#This Row],[Canales]],Tabla39[],2,FALSE)","v":0.2},{"$f":"Rtdos_de_la_Empresa8[[#This Row],[Margen]]*Rtdos_de_la_Empresa8[[#This Row],[Facturación]]","v":58272.4},{"$f":"YEAR(Rtdos_de_la_Empresa8[[#This Row],[Fecha de Facturacion]])","v":2010},{"$f":"ROUNDUP(MONTH(Rtdos_de_la_Empresa8[[#This Row],[Fecha de Facturacion]])/3, 0)","v":1}]
[39661,"Internet","Paises Nórdicos",100252,1927.5,{"$f":"VLOOKUP(Rtdos_de_la_Empresa8[[#This Row],[Canales]],Tabla39[],2,FALSE)","v":0.4},{"$f":"Rtdos_de_la_Empresa8[[#This Row],[Margen]]*Rtdos_de_la_Empresa8[[#This Row],[Facturación]]","v":40100.800000000003},{"$f":"YEAR(Rtdos_de_la_Empresa8[[#This Row],[Fecha de Facturacion]])","v":2008},{"$f":"ROUNDUP(MONTH(Rtdos_de_la_Empresa8[[#This Row],[Fecha de Facturacion]])/3, 0)","v":3}]
[39692,"Hoteles","Resto de Paises",290864,1734,{"$f":"VLOOKUP(Rtdos_de_la_Empresa8[[#This Row],[Canales]],Tabla39[],2,FALSE)","v":0.15},{"$f":"Rtdos_de_la_Empresa8[[#This Row],[Margen]]*Rtdos_de_la_Empresa8[[#This Row],[Facturación]]","v":43629.599999999999},{"$f":"YEAR(Rtdos_de_la_Empresa8[[#This Row],[Fecha de Facturacion]])","v":2008},{"$f":"ROUNDUP(MONTH(Rtdos_de_la_Empresa8[[#This Row],[Fecha de Facturacion]])/3, 0)","v":3}]
[40452,"Internet","Resto de Europa",333524,2620.5,{"$f":"VLOOKUP(Rtdos_de_la_Empresa8[[#This Row],[Canales]],Tabla39[],2,FALSE)","v":0.4},{"$f":"Rtdos_de_la_Empresa8[[#This Row],[Margen]]*Rtdos_de_la_Empresa8[[#This Row],[Facturación]]","v":133409.60000000001},{"$f":"YEAR(Rtdos_de_la_Empresa8[[#This Row],[Fecha de Facturacion]])","v":2010},{"$f":"ROUNDUP(MONTH(Rtdos_de_la_Empresa8[[#This Row],[Fecha de Facturacion]])/3, 0)","v":4}]
[39845,"Internet","España",343372,717,{"$f":"VLOOKUP(Rtdos_de_la_Empresa8[[#This Row],[Canales]],Tabla39[],2,FALSE)","v":0.4},{"$f":"Rtdos_de_la_Empresa8[[#This Row],[Margen]]*Rtdos_de_la_Empresa8[[#This Row],[Facturación]]","v":137348.80000000002},{"$f":"YEAR(Rtdos_de_la_Empresa8[[#This Row],[Fecha de Facturacion]])","v":2009},{"$f":"ROUNDUP(MONTH(Rtdos_de_la_Empresa8[[#This Row],[Fecha de Facturacion]])/3, 0)","v":1}]
[39934,"Internet","Rusia-Paises del Este",340451,549,{"$f":"VLOOKUP(Rtdos_de_la_Empresa8[[#This Row],[Canales]],Tabla39[],2,FALSE)","v":0.4},{"$f":"Rtdos_de_la_Empresa8[[#This Row],[Margen]]*Rtdos_de_la_Empresa8[[#This Row],[Facturación]]","v":136180.4},{"$f":"YEAR(Rtdos_de_la_Empresa8[[#This Row],[Fecha de Facturacion]])","v":2009},{"$f":"ROUNDUP(MONTH(Rtdos_de_la_Empresa8[[#This Row],[Fecha de Facturacion]])/3, 0)","v":2}]
[39569,"Directo","Italia-Francia",333757,2377.5,{"$f":"VLOOKUP(Rtdos_de_la_Empresa8[[#This Row],[Canales]],Tabla39[],2,FALSE)","v":0.4},{"$f":"Rtdos_de_la_Empresa8[[#This Row],[Margen]]*Rtdos_de_la_Empresa8[[#This Row],[Facturación]]","v":133502.80000000002},{"$f":"YEAR(Rtdos_de_la_Empresa8[[#This Row],[Fecha de Facturacion]])","v":2008},{"$f":"ROUNDUP(MONTH(Rtdos_de_la_Empresa8[[#This Row],[Fecha de Facturacion]])/3, 0)","v":2}]
[39692,"Directo","Reino Unido",396148,1354.5,{"$f":"VLOOKUP(Rtdos_de_la_Empresa8[[#This Row],[Canales]],Tabla39[],2,FALSE)","v":0.4},{"$f":"Rtdos_de_la_Empresa8[[#This Row],[Margen]]*Rtdos_de_la_Empresa8[[#This Row],[Facturación]]","v":158459.20000000001},{"$f":"YEAR(Rtdos_de_la_Empresa8[[#This Row],[Fecha de Facturacion]])","v":2008},{"$f":"ROUNDUP(MONTH(Rtdos_de_la_Empresa8[[#This Row],[Fecha de Facturacion]])/3, 0)","v":3}]
[39479,"Internet","Alemania",345627,2611.5,{"$f":"VLOOKUP(Rtdos_de_la_Empresa8[[#This Row],[Canales]],Tabla39[],2,FALSE)","v":0.4},{"$f":"Rtdos_de_la_Empresa8[[#This Row],[Margen]]*Rtdos_de_la_Empresa8[[#This Row],[Facturación]]","v":138250.80000000002},{"$f":"YEAR(Rtdos_de_la_Empresa8[[#This Row],[Fecha de Facturacion]])","v":2008},{"$f":"ROUNDUP(MONTH(Rtdos_de_la_Empresa8[[#This Row],[Fecha de Facturacion]])/3, 0)","v":1}]
[39845,"Directo","America Norte-Sur",326460,2908.5,{"$f":"VLOOKUP(Rtdos_de_la_Empresa8[[#This Row],[Canales]],Tabla39[],2,FALSE)","v":0.4},{"$f":"Rtdos_de_la_Empresa8[[#This Row],[Margen]]*Rtdos_de_la_Empresa8[[#This Row],[Facturación]]","v":130584},{"$f":"YEAR(Rtdos_de_la_Empresa8[[#This Row],[Fecha de Facturacion]])","v":2009},{"$f":"ROUNDUP(MONTH(Rtdos_de_la_Empresa8[[#This Row],[Fecha de Facturacion]])/3, 0)","v":1}]
[39995,"Hoteles","Resto de Paises",280704,3000,{"$f":"VLOOKUP(Rtdos_de_la_Empresa8[[#This Row],[Canales]],Tabla39[],2,FALSE)","v":0.15},{"$f":"Rtdos_de_la_Empresa8[[#This Row],[Margen]]*Rtdos_de_la_Empresa8[[#This Row],[Facturación]]","v":42105.599999999999},{"$f":"YEAR(Rtdos_de_la_Empresa8[[#This Row],[Fecha de Facturacion]])","v":2009},{"$f":"ROUNDUP(MONTH(Rtdos_de_la_Empresa8[[#This Row],[Fecha de Facturacion]])/3, 0)","v":3}]
[40330,"Directo","Benelux",355271,1831.5,{"$f":"VLOOKUP(Rtdos_de_la_Empresa8[[#This Row],[Canales]],Tabla39[],2,FALSE)","v":0.4},{"$f":"Rtdos_de_la_Empresa8[[#This Row],[Margen]]*Rtdos_de_la_Empresa8[[#This Row],[Facturación]]","v":142108.4},{"$f":"YEAR(Rtdos_de_la_Empresa8[[#This Row],[Fecha de Facturacion]])","v":2010},{"$f":"ROUNDUP(MONTH(Rtdos_de_la_Empresa8[[#This Row],[Fecha de Facturacion]])/3, 0)","v":2}]
[39692,"Internet","Paises Nórdicos",289741,2572.5,{"$f":"VLOOKUP(Rtdos_de_la_Empresa8[[#This Row],[Canales]],Tabla39[],2,FALSE)","v":0.4},{"$f":"Rtdos_de_la_Empresa8[[#This Row],[Margen]]*Rtdos_de_la_Empresa8[[#This Row],[Facturación]]","v":115896.40000000001},{"$f":"YEAR(Rtdos_de_la_Empresa8[[#This Row],[Fecha de Facturacion]])","v":2008},{"$f":"ROUNDUP(MONTH(Rtdos_de_la_Empresa8[[#This Row],[Fecha de Facturacion]])/3, 0)","v":3}]
[40087,"Directo","America Norte-Sur",315098,2727,{"$f":"VLOOKUP(Rtdos_de_la_Empresa8[[#This Row],[Canales]],Tabla39[],2,FALSE)","v":0.4},{"$f":"Rtdos_de_la_Empresa8[[#This Row],[Margen]]*Rtdos_de_la_Empresa8[[#This Row],[Facturación]]","v":126039.20000000001},{"$f":"YEAR(Rtdos_de_la_Empresa8[[#This Row],[Fecha de Facturacion]])","v":2009},{"$f":"ROUNDUP(MONTH(Rtdos_de_la_Empresa8[[#This Row],[Fecha de Facturacion]])/3, 0)","v":4}]
[39692,"Internet","Paises Nórdicos",108383,1497,{"$f":"VLOOKUP(Rtdos_de_la_Empresa8[[#This Row],[Canales]],Tabla39[],2,FALSE)","v":0.4},{"$f":"Rtdos_de_la_Empresa8[[#This Row],[Margen]]*Rtdos_de_la_Empresa8[[#This Row],[Facturación]]","v":43353.200000000004},{"$f":"YEAR(Rtdos_de_la_Empresa8[[#This Row],[Fecha de Facturacion]])","v":2008},{"$f":"ROUNDUP(MONTH(Rtdos_de_la_Empresa8[[#This Row],[Fecha de Facturacion]])/3, 0)","v":3}]
[39692,"Directo","Reino Unido",122408,2203.5,{"$f":"VLOOKUP(Rtdos_de_la_Empresa8[[#This Row],[Canales]],Tabla39[],2,FALSE)","v":0.4},{"$f":"Rtdos_de_la_Empresa8[[#This Row],[Margen]]*Rtdos_de_la_Empresa8[[#This Row],[Facturación]]","v":48963.200000000004},{"$f":"YEAR(Rtdos_de_la_Empresa8[[#This Row],[Fecha de Facturacion]])","v":2008},{"$f":"ROUNDUP(MONTH(Rtdos_de_la_Empresa8[[#This Row],[Fecha de Facturacion]])/3, 0)","v":3}]
[39692,"Internet","America Norte-Sur",310169,1801.5,{"$f":"VLOOKUP(Rtdos_de_la_Empresa8[[#This Row],[Canales]],Tabla39[],2,FALSE)","v":0.4},{"$f":"Rtdos_de_la_Empresa8[[#This Row],[Margen]]*Rtdos_de_la_Empresa8[[#This Row],[Facturación]]","v":124067.6},{"$f":"YEAR(Rtdos_de_la_Empresa8[[#This Row],[Fecha de Facturacion]])","v":2008},{"$f":"ROUNDUP(MONTH(Rtdos_de_la_Empresa8[[#This Row],[Fecha de Facturacion]])/3, 0)","v":3}]
[39722,"Internet","Paises Nórdicos",336207,1479,{"$f":"VLOOKUP(Rtdos_de_la_Empresa8[[#This Row],[Canales]],Tabla39[],2,FALSE)","v":0.4},{"$f":"Rtdos_de_la_Empresa8[[#This Row],[Margen]]*Rtdos_de_la_Empresa8[[#This Row],[Facturación]]","v":134482.80000000002},{"$f":"YEAR(Rtdos_de_la_Empresa8[[#This Row],[Fecha de Facturacion]])","v":2008},{"$f":"ROUNDUP(MONTH(Rtdos_de_la_Empresa8[[#This Row],[Fecha de Facturacion]])/3, 0)","v":4}]
[40422,"Agencia","España",335208,2082,{"$f":"VLOOKUP(Rtdos_de_la_Empresa8[[#This Row],[Canales]],Tabla39[],2,FALSE)","v":0.2},{"$f":"Rtdos_de_la_Empresa8[[#This Row],[Margen]]*Rtdos_de_la_Empresa8[[#This Row],[Facturación]]","v":67041.600000000006},{"$f":"YEAR(Rtdos_de_la_Empresa8[[#This Row],[Fecha de Facturacion]])","v":2010},{"$f":"ROUNDUP(MONTH(Rtdos_de_la_Empresa8[[#This Row],[Fecha de Facturacion]])/3, 0)","v":3}]
[39753,"Internet","Rusia-Paises del Este",320775,1338,{"$f":"VLOOKUP(Rtdos_de_la_Empresa8[[#This Row],[Canales]],Tabla39[],2,FALSE)","v":0.4},{"$f":"Rtdos_de_la_Empresa8[[#This Row],[Margen]]*Rtdos_de_la_Empresa8[[#This Row],[Facturación]]","v":128310},{"$f":"YEAR(Rtdos_de_la_Empresa8[[#This Row],[Fecha de Facturacion]])","v":2008},{"$f":"ROUNDUP(MONTH(Rtdos_de_la_Empresa8[[#This Row],[Fecha de Facturacion]])/3, 0)","v":4}]
[39722,"Directo","Reino Unido",381537,1780.5,{"$f":"VLOOKUP(Rtdos_de_la_Empresa8[[#This Row],[Canales]],Tabla39[],2,FALSE)","v":0.4},{"$f":"Rtdos_de_la_Empresa8[[#This Row],[Margen]]*Rtdos_de_la_Empresa8[[#This Row],[Facturación]]","v":152614.80000000002},{"$f":"YEAR(Rtdos_de_la_Empresa8[[#This Row],[Fecha de Facturacion]])","v":2008},{"$f":"ROUNDUP(MONTH(Rtdos_de_la_Empresa8[[#This Row],[Fecha de Facturacion]])/3, 0)","v":4}]
[40330,"Internet","Alemania",344281,2763,{"$f":"VLOOKUP(Rtdos_de_la_Empresa8[[#This Row],[Canales]],Tabla39[],2,FALSE)","v":0.4},{"$f":"Rtdos_de_la_Empresa8[[#This Row],[Margen]]*Rtdos_de_la_Empresa8[[#This Row],[Facturación]]","v":137712.4},{"$f":"YEAR(Rtdos_de_la_Empresa8[[#This Row],[Fecha de Facturacion]])","v":2010},{"$f":"ROUNDUP(MONTH(Rtdos_de_la_Empresa8[[#This Row],[Fecha de Facturacion]])/3, 0)","v":2}]
[40422,"Internet","Resto de Europa",326429,2505,{"$f":"VLOOKUP(Rtdos_de_la_Empresa8[[#This Row],[Canales]],Tabla39[],2,FALSE)","v":0.4},{"$f":"Rtdos_de_la_Empresa8[[#This Row],[Margen]]*Rtdos_de_la_Empresa8[[#This Row],[Facturación]]","v":130571.6},{"$f":"YEAR(Rtdos_de_la_Empresa8[[#This Row],[Fecha de Facturacion]])","v":2010},{"$f":"ROUNDUP(MONTH(Rtdos_de_la_Empresa8[[#This Row],[Fecha de Facturacion]])/3, 0)","v":3}]
[39479,"Internet","Benelux",348013,2689.5,{"$f":"VLOOKUP(Rtdos_de_la_Empresa8[[#This Row],[Canales]],Tabla39[],2,FALSE)","v":0.4},{"$f":"Rtdos_de_la_Empresa8[[#This Row],[Margen]]*Rtdos_de_la_Empresa8[[#This Row],[Facturación]]","v":139205.20000000001},{"$f":"YEAR(Rtdos_de_la_Empresa8[[#This Row],[Fecha de Facturacion]])","v":2008},{"$f":"ROUNDUP(MONTH(Rtdos_de_la_Empresa8[[#This Row],[Fecha de Facturacion]])/3, 0)","v":1}]
[39508,"Internet","Benelux",345735,526.5,{"$f":"VLOOKUP(Rtdos_de_la_Empresa8[[#This Row],[Canales]],Tabla39[],2,FALSE)","v":0.4},{"$f":"Rtdos_de_la_Empresa8[[#This Row],[Margen]]*Rtdos_de_la_Empresa8[[#This Row],[Facturación]]","v":138294},{"$f":"YEAR(Rtdos_de_la_Empresa8[[#This Row],[Fecha de Facturacion]])","v":2008},{"$f":"ROUNDUP(MONTH(Rtdos_de_la_Empresa8[[#This Row],[Fecha de Facturacion]])/3, 0)","v":1}]
[39600,"Hoteles","Resto de Paises",278829,2436,{"$f":"VLOOKUP(Rtdos_de_la_Empresa8[[#This Row],[Canales]],Tabla39[],2,FALSE)","v":0.15},{"$f":"Rtdos_de_la_Empresa8[[#This Row],[Margen]]*Rtdos_de_la_Empresa8[[#This Row],[Facturación]]","v":41824.35},{"$f":"YEAR(Rtdos_de_la_Empresa8[[#This Row],[Fecha de Facturacion]])","v":2008},{"$f":"ROUNDUP(MONTH(Rtdos_de_la_Empresa8[[#This Row],[Fecha de Facturacion]])/3, 0)","v":2}]
[39630,"Internet","Resto de Europa",311104,2635.5,{"$f":"VLOOKUP(Rtdos_de_la_Empresa8[[#This Row],[Canales]],Tabla39[],2,FALSE)","v":0.4},{"$f":"Rtdos_de_la_Empresa8[[#This Row],[Margen]]*Rtdos_de_la_Empresa8[[#This Row],[Facturación]]","v":124441.60000000001},{"$f":"YEAR(Rtdos_de_la_Empresa8[[#This Row],[Fecha de Facturacion]])","v":2008},{"$f":"ROUNDUP(MONTH(Rtdos_de_la_Empresa8[[#This Row],[Fecha de Facturacion]])/3, 0)","v":3}]
[40452,"Internet","Alemania",341993,2307,{"$f":"VLOOKUP(Rtdos_de_la_Empresa8[[#This Row],[Canales]],Tabla39[],2,FALSE)","v":0.4},{"$f":"Rtdos_de_la_Empresa8[[#This Row],[Margen]]*Rtdos_de_la_Empresa8[[#This Row],[Facturación]]","v":136797.20000000001},{"$f":"YEAR(Rtdos_de_la_Empresa8[[#This Row],[Fecha de Facturacion]])","v":2010},{"$f":"ROUNDUP(MONTH(Rtdos_de_la_Empresa8[[#This Row],[Fecha de Facturacion]])/3, 0)","v":4}]
[40087,"Directo","Italia-Francia",331377,1162.5,{"$f":"VLOOKUP(Rtdos_de_la_Empresa8[[#This Row],[Canales]],Tabla39[],2,FALSE)","v":0.4},{"$f":"Rtdos_de_la_Empresa8[[#This Row],[Margen]]*Rtdos_de_la_Empresa8[[#This Row],[Facturación]]","v":132550.80000000002},{"$f":"YEAR(Rtdos_de_la_Empresa8[[#This Row],[Fecha de Facturacion]])","v":2009},{"$f":"ROUNDUP(MONTH(Rtdos_de_la_Empresa8[[#This Row],[Fecha de Facturacion]])/3, 0)","v":4}]
[39965,"Directo","Italia-Francia",326837,601.5,{"$f":"VLOOKUP(Rtdos_de_la_Empresa8[[#This Row],[Canales]],Tabla39[],2,FALSE)","v":0.4},{"$f":"Rtdos_de_la_Empresa8[[#This Row],[Margen]]*Rtdos_de_la_Empresa8[[#This Row],[Facturación]]","v":130734.8},{"$f":"YEAR(Rtdos_de_la_Empresa8[[#This Row],[Fecha de Facturacion]])","v":2009},{"$f":"ROUNDUP(MONTH(Rtdos_de_la_Empresa8[[#This Row],[Fecha de Facturacion]])/3, 0)","v":2}]
[39722,"Directo","Resto de Europa",297190,1767,{"$f":"VLOOKUP(Rtdos_de_la_Empresa8[[#This Row],[Canales]],Tabla39[],2,FALSE)","v":0.4},{"$f":"Rtdos_de_la_Empresa8[[#This Row],[Margen]]*Rtdos_de_la_Empresa8[[#This Row],[Facturación]]","v":118876},{"$f":"YEAR(Rtdos_de_la_Empresa8[[#This Row],[Fecha de Facturacion]])","v":2008},{"$f":"ROUNDUP(MONTH(Rtdos_de_la_Empresa8[[#This Row],[Fecha de Facturacion]])/3, 0)","v":4}]
[40299,"Agencia","Alemania",339525,1612.5,{"$f":"VLOOKUP(Rtdos_de_la_Empresa8[[#This Row],[Canales]],Tabla39[],2,FALSE)","v":0.2},{"$f":"Rtdos_de_la_Empresa8[[#This Row],[Margen]]*Rtdos_de_la_Empresa8[[#This Row],[Facturación]]","v":67905},{"$f":"YEAR(Rtdos_de_la_Empresa8[[#This Row],[Fecha de Facturacion]])","v":2010},{"$f":"ROUNDUP(MONTH(Rtdos_de_la_Empresa8[[#This Row],[Fecha de Facturacion]])/3, 0)","v":2}]
[40148,"Agencia","Rusia-Paises del Este",313466,2808,{"$f":"VLOOKUP(Rtdos_de_la_Empresa8[[#This Row],[Canales]],Tabla39[],2,FALSE)","v":0.2},{"$f":"Rtdos_de_la_Empresa8[[#This Row],[Margen]]*Rtdos_de_la_Empresa8[[#This Row],[Facturación]]","v":62693.200000000004},{"$f":"YEAR(Rtdos_de_la_Empresa8[[#This Row],[Fecha de Facturacion]])","v":2009},{"$f":"ROUNDUP(MONTH(Rtdos_de_la_Empresa8[[#This Row],[Fecha de Facturacion]])/3, 0)","v":4}]
[39753,"Agencia","Paises Nórdicos",188603,855,{"$f":"VLOOKUP(Rtdos_de_la_Empresa8[[#This Row],[Canales]],Tabla39[],2,FALSE)","v":0.2},{"$f":"Rtdos_de_la_Empresa8[[#This Row],[Margen]]*Rtdos_de_la_Empresa8[[#This Row],[Facturación]]","v":37720.6},{"$f":"YEAR(Rtdos_de_la_Empresa8[[#This Row],[Fecha de Facturacion]])","v":2008},{"$f":"ROUNDUP(MONTH(Rtdos_de_la_Empresa8[[#This Row],[Fecha de Facturacion]])/3, 0)","v":4}]
[39508,"Agencia","Rusia-Paises del Este",306221,1605,{"$f":"VLOOKUP(Rtdos_de_la_Empresa8[[#This Row],[Canales]],Tabla39[],2,FALSE)","v":0.2},{"$f":"Rtdos_de_la_Empresa8[[#This Row],[Margen]]*Rtdos_de_la_Empresa8[[#This Row],[Facturación]]","v":61244.200000000004},{"$f":"YEAR(Rtdos_de_la_Empresa8[[#This Row],[Fecha de Facturacion]])","v":2008},{"$f":"ROUNDUP(MONTH(Rtdos_de_la_Empresa8[[#This Row],[Fecha de Facturacion]])/3, 0)","v":1}]
[40360,"Internet","Benelux",335973,949.5,{"$f":"VLOOKUP(Rtdos_de_la_Empresa8[[#This Row],[Canales]],Tabla39[],2,FALSE)","v":0.4},{"$f":"Rtdos_de_la_Empresa8[[#This Row],[Margen]]*Rtdos_de_la_Empresa8[[#This Row],[Facturación]]","v":134389.20000000001},{"$f":"YEAR(Rtdos_de_la_Empresa8[[#This Row],[Fecha de Facturacion]])","v":2010},{"$f":"ROUNDUP(MONTH(Rtdos_de_la_Empresa8[[#This Row],[Fecha de Facturacion]])/3, 0)","v":3}]
[39934,"Internet","America Norte-Sur",307482,459,{"$f":"VLOOKUP(Rtdos_de_la_Empresa8[[#This Row],[Canales]],Tabla39[],2,FALSE)","v":0.4},{"$f":"Rtdos_de_la_Empresa8[[#This Row],[Margen]]*Rtdos_de_la_Empresa8[[#This Row],[Facturación]]","v":122992.8},{"$f":"YEAR(Rtdos_de_la_Empresa8[[#This Row],[Fecha de Facturacion]])","v":2009},{"$f":"ROUNDUP(MONTH(Rtdos_de_la_Empresa8[[#This Row],[Fecha de Facturacion]])/3, 0)","v":2}]
[40238,"Hoteles","España",327855,1315.5,{"$f":"VLOOKUP(Rtdos_de_la_Empresa8[[#This Row],[Canales]],Tabla39[],2,FALSE)","v":0.15},{"$f":"Rtdos_de_la_Empresa8[[#This Row],[Margen]]*Rtdos_de_la_Empresa8[[#This Row],[Facturación]]","v":49178.25},{"$f":"YEAR(Rtdos_de_la_Empresa8[[#This Row],[Fecha de Facturacion]])","v":2010},{"$f":"ROUNDUP(MONTH(Rtdos_de_la_Empresa8[[#This Row],[Fecha de Facturacion]])/3, 0)","v":1}]
[40210,"Directo","España",327180,1944,{"$f":"VLOOKUP(Rtdos_de_la_Empresa8[[#This Row],[Canales]],Tabla39[],2,FALSE)","v":0.4},{"$f":"Rtdos_de_la_Empresa8[[#This Row],[Margen]]*Rtdos_de_la_Empresa8[[#This Row],[Facturación]]","v":130872},{"$f":"YEAR(Rtdos_de_la_Empresa8[[#This Row],[Fecha de Facturacion]])","v":2010},{"$f":"ROUNDUP(MONTH(Rtdos_de_la_Empresa8[[#This Row],[Fecha de Facturacion]])/3, 0)","v":1}]
[39845,"Internet","Italia-Francia",318248,1597.5,{"$f":"VLOOKUP(Rtdos_de_la_Empresa8[[#This Row],[Canales]],Tabla39[],2,FALSE)","v":0.4},{"$f":"Rtdos_de_la_Empresa8[[#This Row],[Margen]]*Rtdos_de_la_Empresa8[[#This Row],[Facturación]]","v":127299.20000000001},{"$f":"YEAR(Rtdos_de_la_Empresa8[[#This Row],[Fecha de Facturacion]])","v":2009},{"$f":"ROUNDUP(MONTH(Rtdos_de_la_Empresa8[[#This Row],[Fecha de Facturacion]])/3, 0)","v":1}]
[39753,"Directo","Reino Unido",179304,2779.5,{"$f":"VLOOKUP(Rtdos_de_la_Empresa8[[#This Row],[Canales]],Tabla39[],2,FALSE)","v":0.4},{"$f":"Rtdos_de_la_Empresa8[[#This Row],[Margen]]*Rtdos_de_la_Empresa8[[#This Row],[Facturación]]","v":71721.600000000006},{"$f":"YEAR(Rtdos_de_la_Empresa8[[#This Row],[Fecha de Facturacion]])","v":2008},{"$f":"ROUNDUP(MONTH(Rtdos_de_la_Empresa8[[#This Row],[Fecha de Facturacion]])/3, 0)","v":4}]
[40330,"Hoteles","Resto de Paises",264161,1599,{"$f":"VLOOKUP(Rtdos_de_la_Empresa8[[#This Row],[Canales]],Tabla39[],2,FALSE)","v":0.15},{"$f":"Rtdos_de_la_Empresa8[[#This Row],[Margen]]*Rtdos_de_la_Empresa8[[#This Row],[Facturación]]","v":39624.15},{"$f":"YEAR(Rtdos_de_la_Empresa8[[#This Row],[Fecha de Facturacion]])","v":2010},{"$f":"ROUNDUP(MONTH(Rtdos_de_la_Empresa8[[#This Row],[Fecha de Facturacion]])/3, 0)","v":2}]
[40391,"Agencia","Resto de Paises",260879,843,{"$f":"VLOOKUP(Rtdos_de_la_Empresa8[[#This Row],[Canales]],Tabla39[],2,FALSE)","v":0.2},{"$f":"Rtdos_de_la_Empresa8[[#This Row],[Margen]]*Rtdos_de_la_Empresa8[[#This Row],[Facturación]]","v":52175.8},{"$f":"YEAR(Rtdos_de_la_Empresa8[[#This Row],[Fecha de Facturacion]])","v":2010},{"$f":"ROUNDUP(MONTH(Rtdos_de_la_Empresa8[[#This Row],[Fecha de Facturacion]])/3, 0)","v":3}]
[39783,"Agencia","Paises Nórdicos",399207,2626.5,{"$f":"VLOOKUP(Rtdos_de_la_Empresa8[[#This Row],[Canales]],Tabla39[],2,FALSE)","v":0.2},{"$f":"Rtdos_de_la_Empresa8[[#This Row],[Margen]]*Rtdos_de_la_Empresa8[[#This Row],[Facturación]]","v":79841.400000000009},{"$f":"YEAR(Rtdos_de_la_Empresa8[[#This Row],[Fecha de Facturacion]])","v":2008},{"$f":"ROUNDUP(MONTH(Rtdos_de_la_Empresa8[[#This Row],[Fecha de Facturacion]])/3, 0)","v":4}]
[39783,"Directo","Reino Unido",397191,2620.5,{"$f":"VLOOKUP(Rtdos_de_la_Empresa8[[#This Row],[Canales]],Tabla39[],2,FALSE)","v":0.4},{"$f":"Rtdos_de_la_Empresa8[[#This Row],[Margen]]*Rtdos_de_la_Empresa8[[#This Row],[Facturación]]","v":158876.40000000002},{"$f":"YEAR(Rtdos_de_la_Empresa8[[#This Row],[Fecha de Facturacion]])","v":2008},{"$f":"ROUNDUP(MONTH(Rtdos_de_la_Empresa8[[#This Row],[Fecha de Facturacion]])/3, 0)","v":4}]
[39753,"Agencia","Rusia-Paises del Este",300601,1459.5,{"$f":"VLOOKUP(Rtdos_de_la_Empresa8[[#This Row],[Canales]],Tabla39[],2,FALSE)","v":0.2},{"$f":"Rtdos_de_la_Empresa8[[#This Row],[Margen]]*Rtdos_de_la_Empresa8[[#This Row],[Facturación]]","v":60120.200000000004},{"$f":"YEAR(Rtdos_de_la_Empresa8[[#This Row],[Fecha de Facturacion]])","v":2008},{"$f":"ROUNDUP(MONTH(Rtdos_de_la_Empresa8[[#This Row],[Fecha de Facturacion]])/3, 0)","v":4}]
[40391,"Hoteles","Resto de Paises",259971,2313,{"$f":"VLOOKUP(Rtdos_de_la_Empresa8[[#This Row],[Canales]],Tabla39[],2,FALSE)","v":0.15},{"$f":"Rtdos_de_la_Empresa8[[#This Row],[Margen]]*Rtdos_de_la_Empresa8[[#This Row],[Facturación]]","v":38995.65},{"$f":"YEAR(Rtdos_de_la_Empresa8[[#This Row],[Fecha de Facturacion]])","v":2010},{"$f":"ROUNDUP(MONTH(Rtdos_de_la_Empresa8[[#This Row],[Fecha de Facturacion]])/3, 0)","v":3}]
[39479,"Internet","Italia-Francia",316426,1312.5,{"$f":"VLOOKUP(Rtdos_de_la_Empresa8[[#This Row],[Canales]],Tabla39[],2,FALSE)","v":0.4},{"$f":"Rtdos_de_la_Empresa8[[#This Row],[Margen]]*Rtdos_de_la_Empresa8[[#This Row],[Facturación]]","v":126570.40000000001},{"$f":"YEAR(Rtdos_de_la_Empresa8[[#This Row],[Fecha de Facturacion]])","v":2008},{"$f":"ROUNDUP(MONTH(Rtdos_de_la_Empresa8[[#This Row],[Fecha de Facturacion]])/3, 0)","v":1}]
[40299,"Hoteles","Benelux",327830,421.5,{"$f":"VLOOKUP(Rtdos_de_la_Empresa8[[#This Row],[Canales]],Tabla39[],2,FALSE)","v":0.15},{"$f":"Rtdos_de_la_Empresa8[[#This Row],[Margen]]*Rtdos_de_la_Empresa8[[#This Row],[Facturación]]","v":49174.5},{"$f":"YEAR(Rtdos_de_la_Empresa8[[#This Row],[Fecha de Facturacion]])","v":2010},{"$f":"ROUNDUP(MONTH(Rtdos_de_la_Empresa8[[#This Row],[Fecha de Facturacion]])/3, 0)","v":2}]
[39995,"Internet","America Norte-Sur",300132,2119.5,{"$f":"VLOOKUP(Rtdos_de_la_Empresa8[[#This Row],[Canales]],Tabla39[],2,FALSE)","v":0.4},{"$f":"Rtdos_de_la_Empresa8[[#This Row],[Margen]]*Rtdos_de_la_Empresa8[[#This Row],[Facturación]]","v":120052.8},{"$f":"YEAR(Rtdos_de_la_Empresa8[[#This Row],[Fecha de Facturacion]])","v":2009},{"$f":"ROUNDUP(MONTH(Rtdos_de_la_Empresa8[[#This Row],[Fecha de Facturacion]])/3, 0)","v":3}]
[39569,"Internet","España",326929,1357.5,{"$f":"VLOOKUP(Rtdos_de_la_Empresa8[[#This Row],[Canales]],Tabla39[],2,FALSE)","v":0.4},{"$f":"Rtdos_de_la_Empresa8[[#This Row],[Margen]]*Rtdos_de_la_Empresa8[[#This Row],[Facturación]]","v":130771.6},{"$f":"YEAR(Rtdos_de_la_Empresa8[[#This Row],[Fecha de Facturacion]])","v":2008},{"$f":"ROUNDUP(MONTH(Rtdos_de_la_Empresa8[[#This Row],[Fecha de Facturacion]])/3, 0)","v":2}]
[39783,"Directo","Reino Unido",266317,2784,{"$f":"VLOOKUP(Rtdos_de_la_Empresa8[[#This Row],[Canales]],Tabla39[],2,FALSE)","v":0.4},{"$f":"Rtdos_de_la_Empresa8[[#This Row],[Margen]]*Rtdos_de_la_Empresa8[[#This Row],[Facturación]]","v":106526.8},{"$f":"YEAR(Rtdos_de_la_Empresa8[[#This Row],[Fecha de Facturacion]])","v":2008},{"$f":"ROUNDUP(MONTH(Rtdos_de_la_Empresa8[[#This Row],[Fecha de Facturacion]])/3, 0)","v":4}]
[40299,"Internet","America Norte-Sur",277483,1981.5,{"$f":"VLOOKUP(Rtdos_de_la_Empresa8[[#This Row],[Canales]],Tabla39[],2,FALSE)","v":0.4},{"$f":"Rtdos_de_la_Empresa8[[#This Row],[Margen]]*Rtdos_de_la_Empresa8[[#This Row],[Facturación]]","v":110993.20000000001},{"$f":"YEAR(Rtdos_de_la_Empresa8[[#This Row],[Fecha de Facturacion]])","v":2010},{"$f":"ROUNDUP(MONTH(Rtdos_de_la_Empresa8[[#This Row],[Fecha de Facturacion]])/3, 0)","v":2}]
[39965,"Agencia","Alemania",327786,2652,{"$f":"VLOOKUP(Rtdos_de_la_Empresa8[[#This Row],[Canales]],Tabla39[],2,FALSE)","v":0.2},{"$f":"Rtdos_de_la_Empresa8[[#This Row],[Margen]]*Rtdos_de_la_Empresa8[[#This Row],[Facturación]]","v":65557.2},{"$f":"YEAR(Rtdos_de_la_Empresa8[[#This Row],[Fecha de Facturacion]])","v":2009},{"$f":"ROUNDUP(MONTH(Rtdos_de_la_Empresa8[[#This Row],[Fecha de Facturacion]])/3, 0)","v":2}]
[40087,"Hoteles","Resto de Europa",296475,2700,{"$f":"VLOOKUP(Rtdos_de_la_Empresa8[[#This Row],[Canales]],Tabla39[],2,FALSE)","v":0.15},{"$f":"Rtdos_de_la_Empresa8[[#This Row],[Margen]]*Rtdos_de_la_Empresa8[[#This Row],[Facturación]]","v":44471.25},{"$f":"YEAR(Rtdos_de_la_Empresa8[[#This Row],[Fecha de Facturacion]])","v":2009},{"$f":"ROUNDUP(MONTH(Rtdos_de_la_Empresa8[[#This Row],[Fecha de Facturacion]])/3, 0)","v":4}]
[39814,"Agencia","Paises Nórdicos",396280,517.5,{"$f":"VLOOKUP(Rtdos_de_la_Empresa8[[#This Row],[Canales]],Tabla39[],2,FALSE)","v":0.2},{"$f":"Rtdos_de_la_Empresa8[[#This Row],[Margen]]*Rtdos_de_la_Empresa8[[#This Row],[Facturación]]","v":79256},{"$f":"YEAR(Rtdos_de_la_Empresa8[[#This Row],[Fecha de Facturacion]])","v":2009},{"$f":"ROUNDUP(MONTH(Rtdos_de_la_Empresa8[[#This Row],[Fecha de Facturacion]])/3, 0)","v":1}]
[39995,"Hoteles","Resto de Europa",286631,2068.5,{"$f":"VLOOKUP(Rtdos_de_la_Empresa8[[#This Row],[Canales]],Tabla39[],2,FALSE)","v":0.15},{"$f":"Rtdos_de_la_Empresa8[[#This Row],[Margen]]*Rtdos_de_la_Empresa8[[#This Row],[Facturación]]","v":42994.65},{"$f":"YEAR(Rtdos_de_la_Empresa8[[#This Row],[Fecha de Facturacion]])","v":2009},{"$f":"ROUNDUP(MONTH(Rtdos_de_la_Empresa8[[#This Row],[Fecha de Facturacion]])/3, 0)","v":3}]
[40269,"Hoteles","Alemania",308018,724.5,{"$f":"VLOOKUP(Rtdos_de_la_Empresa8[[#This Row],[Canales]],Tabla39[],2,FALSE)","v":0.15},{"$f":"Rtdos_de_la_Empresa8[[#This Row],[Margen]]*Rtdos_de_la_Empresa8[[#This Row],[Facturación]]","v":46202.7},{"$f":"YEAR(Rtdos_de_la_Empresa8[[#This Row],[Fecha de Facturacion]])","v":2010},{"$f":"ROUNDUP(MONTH(Rtdos_de_la_Empresa8[[#This Row],[Fecha de Facturacion]])/3, 0)","v":2}]
[39814,"Agencia","Paises Nórdicos",352319,1449,{"$f":"VLOOKUP(Rtdos_de_la_Empresa8[[#This Row],[Canales]],Tabla39[],2,FALSE)","v":0.2},{"$f":"Rtdos_de_la_Empresa8[[#This Row],[Margen]]*Rtdos_de_la_Empresa8[[#This Row],[Facturación]]","v":70463.8},{"$f":"YEAR(Rtdos_de_la_Empresa8[[#This Row],[Fecha de Facturacion]])","v":2009},{"$f":"ROUNDUP(MONTH(Rtdos_de_la_Empresa8[[#This Row],[Fecha de Facturacion]])/3, 0)","v":1}]
[40148,"Hoteles","Resto de Europa",269078,774,{"$f":"VLOOKUP(Rtdos_de_la_Empresa8[[#This Row],[Canales]],Tabla39[],2,FALSE)","v":0.15},{"$f":"Rtdos_de_la_Empresa8[[#This Row],[Margen]]*Rtdos_de_la_Empresa8[[#This Row],[Facturación]]","v":40361.699999999997},{"$f":"YEAR(Rtdos_de_la_Empresa8[[#This Row],[Fecha de Facturacion]])","v":2009},{"$f":"ROUNDUP(MONTH(Rtdos_de_la_Empresa8[[#This Row],[Fecha de Facturacion]])/3, 0)","v":4}]
[40026,"Internet","España",311359,1906.5,{"$f":"VLOOKUP(Rtdos_de_la_Empresa8[[#This Row],[Canales]],Tabla39[],2,FALSE)","v":0.4},{"$f":"Rtdos_de_la_Empresa8[[#This Row],[Margen]]*Rtdos_de_la_Empresa8[[#This Row],[Facturación]]","v":124543.6},{"$f":"YEAR(Rtdos_de_la_Empresa8[[#This Row],[Fecha de Facturacion]])","v":2009},{"$f":"ROUNDUP(MONTH(Rtdos_de_la_Empresa8[[#This Row],[Fecha de Facturacion]])/3, 0)","v":3}]
[39539,"Agencia","Rusia-Paises del Este",296874,1719,{"$f":"VLOOKUP(Rtdos_de_la_Empresa8[[#This Row],[Canales]],Tabla39[],2,FALSE)","v":0.2},{"$f":"Rtdos_de_la_Empresa8[[#This Row],[Margen]]*Rtdos_de_la_Empresa8[[#This Row],[Facturación]]","v":59374.8},{"$f":"YEAR(Rtdos_de_la_Empresa8[[#This Row],[Fecha de Facturacion]])","v":2008},{"$f":"ROUNDUP(MONTH(Rtdos_de_la_Empresa8[[#This Row],[Fecha de Facturacion]])/3, 0)","v":2}]
[39722,"Hoteles","Alemania",276529,2631,{"$f":"VLOOKUP(Rtdos_de_la_Empresa8[[#This Row],[Canales]],Tabla39[],2,FALSE)","v":0.15},{"$f":"Rtdos_de_la_Empresa8[[#This Row],[Margen]]*Rtdos_de_la_Empresa8[[#This Row],[Facturación]]","v":41479.35},{"$f":"YEAR(Rtdos_de_la_Empresa8[[#This Row],[Fecha de Facturacion]])","v":2008},{"$f":"ROUNDUP(MONTH(Rtdos_de_la_Empresa8[[#This Row],[Fecha de Facturacion]])/3, 0)","v":4}]
[39845,"Agencia","Benelux",306167,871.5,{"$f":"VLOOKUP(Rtdos_de_la_Empresa8[[#This Row],[Canales]],Tabla39[],2,FALSE)","v":0.2},{"$f":"Rtdos_de_la_Empresa8[[#This Row],[Margen]]*Rtdos_de_la_Empresa8[[#This Row],[Facturación]]","v":61233.4},{"$f":"YEAR(Rtdos_de_la_Empresa8[[#This Row],[Fecha de Facturacion]])","v":2009},{"$f":"ROUNDUP(MONTH(Rtdos_de_la_Empresa8[[#This Row],[Fecha de Facturacion]])/3, 0)","v":1}]
[39814,"Directo","Reino Unido",297139,2877,{"$f":"VLOOKUP(Rtdos_de_la_Empresa8[[#This Row],[Canales]],Tabla39[],2,FALSE)","v":0.4},{"$f":"Rtdos_de_la_Empresa8[[#This Row],[Margen]]*Rtdos_de_la_Empresa8[[#This Row],[Facturación]]","v":118855.6},{"$f":"YEAR(Rtdos_de_la_Empresa8[[#This Row],[Fecha de Facturacion]])","v":2009},{"$f":"ROUNDUP(MONTH(Rtdos_de_la_Empresa8[[#This Row],[Fecha de Facturacion]])/3, 0)","v":1}]
[39479,"Hoteles","Resto de Paises",256549,2388,{"$f":"VLOOKUP(Rtdos_de_la_Empresa8[[#This Row],[Canales]],Tabla39[],2,FALSE)","v":0.15},{"$f":"Rtdos_de_la_Empresa8[[#This Row],[Margen]]*Rtdos_de_la_Empresa8[[#This Row],[Facturación]]","v":38482.35},{"$f":"YEAR(Rtdos_de_la_Empresa8[[#This Row],[Fecha de Facturacion]])","v":2008},{"$f":"ROUNDUP(MONTH(Rtdos_de_la_Empresa8[[#This Row],[Fecha de Facturacion]])/3, 0)","v":1}]
[39965,"Internet","Italia-Francia",314699,987,{"$f":"VLOOKUP(Rtdos_de_la_Empresa8[[#This Row],[Canales]],Tabla39[],2,FALSE)","v":0.4},{"$f":"Rtdos_de_la_Empresa8[[#This Row],[Margen]]*Rtdos_de_la_Empresa8[[#This Row],[Facturación]]","v":125879.6},{"$f":"YEAR(Rtdos_de_la_Empresa8[[#This Row],[Fecha de Facturacion]])","v":2009},{"$f":"ROUNDUP(MONTH(Rtdos_de_la_Empresa8[[#This Row],[Fecha de Facturacion]])/3, 0)","v":2}]
[40087,"Internet","America Norte-Sur",275379,1095,{"$f":"VLOOKUP(Rtdos_de_la_Empresa8[[#This Row],[Canales]],Tabla39[],2,FALSE)","v":0.4},{"$f":"Rtdos_de_la_Empresa8[[#This Row],[Margen]]*Rtdos_de_la_Empresa8[[#This Row],[Facturación]]","v":110151.6},{"$f":"YEAR(Rtdos_de_la_Empresa8[[#This Row],[Fecha de Facturacion]])","v":2009},{"$f":"ROUNDUP(MONTH(Rtdos_de_la_Empresa8[[#This Row],[Fecha de Facturacion]])/3, 0)","v":4}]
[39904,"Hoteles","Resto de Europa",265875,2407.5,{"$f":"VLOOKUP(Rtdos_de_la_Empresa8[[#This Row],[Canales]],Tabla39[],2,FALSE)","v":0.15},{"$f":"Rtdos_de_la_Empresa8[[#This Row],[Margen]]*Rtdos_de_la_Empresa8[[#This Row],[Facturación]]","v":39881.25},{"$f":"YEAR(Rtdos_de_la_Empresa8[[#This Row],[Fecha de Facturacion]])","v":2009},{"$f":"ROUNDUP(MONTH(Rtdos_de_la_Empresa8[[#This Row],[Fecha de Facturacion]])/3, 0)","v":2}]
[39630,"Internet","España",305996,2089.5,{"$f":"VLOOKUP(Rtdos_de_la_Empresa8[[#This Row],[Canales]],Tabla39[],2,FALSE)","v":0.4},{"$f":"Rtdos_de_la_Empresa8[[#This Row],[Margen]]*Rtdos_de_la_Empresa8[[#This Row],[Facturación]]","v":122398.40000000001},{"$f":"YEAR(Rtdos_de_la_Empresa8[[#This Row],[Fecha de Facturacion]])","v":2008},{"$f":"ROUNDUP(MONTH(Rtdos_de_la_Empresa8[[#This Row],[Fecha de Facturacion]])/3, 0)","v":3}]
[39692,"Directo","Benelux",293367,1791,{"$f":"VLOOKUP(Rtdos_de_la_Empresa8[[#This Row],[Canales]],Tabla39[],2,FALSE)","v":0.4},{"$f":"Rtdos_de_la_Empresa8[[#This Row],[Margen]]*Rtdos_de_la_Empresa8[[#This Row],[Facturación]]","v":117346.8},{"$f":"YEAR(Rtdos_de_la_Empresa8[[#This Row],[Fecha de Facturacion]])","v":2008},{"$f":"ROUNDUP(MONTH(Rtdos_de_la_Empresa8[[#This Row],[Fecha de Facturacion]])/3, 0)","v":3}]
[40118,"Hoteles","Resto de Paises",254892,606,{"$f":"VLOOKUP(Rtdos_de_la_Empresa8[[#This Row],[Canales]],Tabla39[],2,FALSE)","v":0.15},{"$f":"Rtdos_de_la_Empresa8[[#This Row],[Margen]]*Rtdos_de_la_Empresa8[[#This Row],[Facturación]]","v":38233.799999999996},{"$f":"YEAR(Rtdos_de_la_Empresa8[[#This Row],[Fecha de Facturacion]])","v":2009},{"$f":"ROUNDUP(MONTH(Rtdos_de_la_Empresa8[[#This Row],[Fecha de Facturacion]])/3, 0)","v":4}]
[39845,"Directo","Reino Unido",385975,1585.5,{"$f":"VLOOKUP(Rtdos_de_la_Empresa8[[#This Row],[Canales]],Tabla39[],2,FALSE)","v":0.4},{"$f":"Rtdos_de_la_Empresa8[[#This Row],[Margen]]*Rtdos_de_la_Empresa8[[#This Row],[Facturación]]","v":154390},{"$f":"YEAR(Rtdos_de_la_Empresa8[[#This Row],[Fecha de Facturacion]])","v":2009},{"$f":"ROUNDUP(MONTH(Rtdos_de_la_Empresa8[[#This Row],[Fecha de Facturacion]])/3, 0)","v":1}]
[40026,"Internet","Italia-Francia",298312,1840.5,{"$f":"VLOOKUP(Rtdos_de_la_Empresa8[[#This Row],[Canales]],Tabla39[],2,FALSE)","v":0.4},{"$f":"Rtdos_de_la_Empresa8[[#This Row],[Margen]]*Rtdos_de_la_Empresa8[[#This Row],[Facturación]]","v":119324.8},{"$f":"YEAR(Rtdos_de_la_Empresa8[[#This Row],[Fecha de Facturacion]])","v":2009},{"$f":"ROUNDUP(MONTH(Rtdos_de_la_Empresa8[[#This Row],[Fecha de Facturacion]])/3, 0)","v":3}]
[39630,"Agencia","Rusia-Paises del Este",292630,1708.5,{"$f":"VLOOKUP(Rtdos_de_la_Empresa8[[#This Row],[Canales]],Tabla39[],2,FALSE)","v":0.2},{"$f":"Rtdos_de_la_Empresa8[[#This Row],[Margen]]*Rtdos_de_la_Empresa8[[#This Row],[Facturación]]","v":58526},{"$f":"YEAR(Rtdos_de_la_Empresa8[[#This Row],[Fecha de Facturacion]])","v":2008},{"$f":"ROUNDUP(MONTH(Rtdos_de_la_Empresa8[[#This Row],[Fecha de Facturacion]])/3, 0)","v":3}]
[39845,"Agencia","Paises Nórdicos",102172,532.5,{"$f":"VLOOKUP(Rtdos_de_la_Empresa8[[#This Row],[Canales]],Tabla39[],2,FALSE)","v":0.2},{"$f":"Rtdos_de_la_Empresa8[[#This Row],[Margen]]*Rtdos_de_la_Empresa8[[#This Row],[Facturación]]","v":20434.400000000001},{"$f":"YEAR(Rtdos_de_la_Empresa8[[#This Row],[Fecha de Facturacion]])","v":2009},{"$f":"ROUNDUP(MONTH(Rtdos_de_la_Empresa8[[#This Row],[Fecha de Facturacion]])/3, 0)","v":1}]
[40057,"Agencia","Benelux",291465,1753.5,{"$f":"VLOOKUP(Rtdos_de_la_Empresa8[[#This Row],[Canales]],Tabla39[],2,FALSE)","v":0.2},{"$f":"Rtdos_de_la_Empresa8[[#This Row],[Margen]]*Rtdos_de_la_Empresa8[[#This Row],[Facturación]]","v":58293},{"$f":"YEAR(Rtdos_de_la_Empresa8[[#This Row],[Fecha de Facturacion]])","v":2009},{"$f":"ROUNDUP(MONTH(Rtdos_de_la_Empresa8[[#This Row],[Fecha de Facturacion]])/3, 0)","v":3}]
[40087,"Hoteles","Alemania",269983,1923,{"$f":"VLOOKUP(Rtdos_de_la_Empresa8[[#This Row],[Canales]],Tabla39[],2,FALSE)","v":0.15},{"$f":"Rtdos_de_la_Empresa8[[#This Row],[Margen]]*Rtdos_de_la_Empresa8[[#This Row],[Facturación]]","v":40497.449999999997},{"$f":"YEAR(Rtdos_de_la_Empresa8[[#This Row],[Fecha de Facturacion]])","v":2009},{"$f":"ROUNDUP(MONTH(Rtdos_de_la_Empresa8[[#This Row],[Fecha de Facturacion]])/3, 0)","v":4}]
[40148,"Agencia","Rusia-Paises del Este",271114,1122,{"$f":"VLOOKUP(Rtdos_de_la_Empresa8[[#This Row],[Canales]],Tabla39[],2,FALSE)","v":0.2},{"$f":"Rtdos_de_la_Empresa8[[#This Row],[Margen]]*Rtdos_de_la_Empresa8[[#This Row],[Facturación]]","v":54222.8},{"$f":"YEAR(Rtdos_de_la_Empresa8[[#This Row],[Fecha de Facturacion]])","v":2009},{"$f":"ROUNDUP(MONTH(Rtdos_de_la_Empresa8[[#This Row],[Fecha de Facturacion]])/3, 0)","v":4}]
[39539,"Agencia","America Norte-Sur",268883,1270.5,{"$f":"VLOOKUP(Rtdos_de_la_Empresa8[[#This Row],[Canales]],Tabla39[],2,FALSE)","v":0.2},{"$f":"Rtdos_de_la_Empresa8[[#This Row],[Margen]]*Rtdos_de_la_Empresa8[[#This Row],[Facturación]]","v":53776.600000000006},{"$f":"YEAR(Rtdos_de_la_Empresa8[[#This Row],[Fecha de Facturacion]])","v":2008},{"$f":"ROUNDUP(MONTH(Rtdos_de_la_Empresa8[[#This Row],[Fecha de Facturacion]])/3, 0)","v":2}]
[40299,"Internet","España",301343,735,{"$f":"VLOOKUP(Rtdos_de_la_Empresa8[[#This Row],[Canales]],Tabla39[],2,FALSE)","v":0.4},{"$f":"Rtdos_de_la_Empresa8[[#This Row],[Margen]]*Rtdos_de_la_Empresa8[[#This Row],[Facturación]]","v":120537.20000000001},{"$f":"YEAR(Rtdos_de_la_Empresa8[[#This Row],[Fecha de Facturacion]])","v":2010},{"$f":"ROUNDUP(MONTH(Rtdos_de_la_Empresa8[[#This Row],[Fecha de Facturacion]])/3, 0)","v":2}]
[40087,"Hoteles","Resto de Paises",244667,1207.5,{"$f":"VLOOKUP(Rtdos_de_la_Empresa8[[#This Row],[Canales]],Tabla39[],2,FALSE)","v":0.15},{"$f":"Rtdos_de_la_Empresa8[[#This Row],[Margen]]*Rtdos_de_la_Empresa8[[#This Row],[Facturación]]","v":36700.049999999996},{"$f":"YEAR(Rtdos_de_la_Empresa8[[#This Row],[Fecha de Facturacion]])","v":2009},{"$f":"ROUNDUP(MONTH(Rtdos_de_la_Empresa8[[#This Row],[Fecha de Facturacion]])/3, 0)","v":4}]
[39873,"Hoteles","Paises Nórdicos",339466,883.5,{"$f":"VLOOKUP(Rtdos_de_la_Empresa8[[#This Row],[Canales]],Tabla39[],2,FALSE)","v":0.15},{"$f":"Rtdos_de_la_Empresa8[[#This Row],[Margen]]*Rtdos_de_la_Empresa8[[#This Row],[Facturación]]","v":50919.9},{"$f":"YEAR(Rtdos_de_la_Empresa8[[#This Row],[Fecha de Facturacion]])","v":2009},{"$f":"ROUNDUP(MONTH(Rtdos_de_la_Empresa8[[#This Row],[Fecha de Facturacion]])/3, 0)","v":1}]
[39873,"Hoteles","Resto de Paises",241046,457.5,{"$f":"VLOOKUP(Rtdos_de_la_Empresa8[[#This Row],[Canales]],Tabla39[],2,FALSE)","v":0.15},{"$f":"Rtdos_de_la_Empresa8[[#This Row],[Margen]]*Rtdos_de_la_Empresa8[[#This Row],[Facturación]]","v":36156.9},{"$f":"YEAR(Rtdos_de_la_Empresa8[[#This Row],[Fecha de Facturacion]])","v":2009},{"$f":"ROUNDUP(MONTH(Rtdos_de_la_Empresa8[[#This Row],[Fecha de Facturacion]])/3, 0)","v":1}]
[40179,"Hoteles","Benelux",261382,1719,{"$f":"VLOOKUP(Rtdos_de_la_Empresa8[[#This Row],[Canales]],Tabla39[],2,FALSE)","v":0.15},{"$f":"Rtdos_de_la_Empresa8[[#This Row],[Margen]]*Rtdos_de_la_Empresa8[[#This Row],[Facturación]]","v":39207.299999999996},{"$f":"YEAR(Rtdos_de_la_Empresa8[[#This Row],[Fecha de Facturacion]])","v":2010},{"$f":"ROUNDUP(MONTH(Rtdos_de_la_Empresa8[[#This Row],[Fecha de Facturacion]])/3, 0)","v":1}]
[40299,"Agencia","Italia-Francia",295264,2068.5,{"$f":"VLOOKUP(Rtdos_de_la_Empresa8[[#This Row],[Canales]],Tabla39[],2,FALSE)","v":0.2},{"$f":"Rtdos_de_la_Empresa8[[#This Row],[Margen]]*Rtdos_de_la_Empresa8[[#This Row],[Facturación]]","v":59052.800000000003},{"$f":"YEAR(Rtdos_de_la_Empresa8[[#This Row],[Fecha de Facturacion]])","v":2010},{"$f":"ROUNDUP(MONTH(Rtdos_de_la_Empresa8[[#This Row],[Fecha de Facturacion]])/3, 0)","v":2}]
[39934,"Agencia","Resto de Europa",259764,2118,{"$f":"VLOOKUP(Rtdos_de_la_Empresa8[[#This Row],[Canales]],Tabla39[],2,FALSE)","v":0.2},{"$f":"Rtdos_de_la_Empresa8[[#This Row],[Margen]]*Rtdos_de_la_Empresa8[[#This Row],[Facturación]]","v":51952.800000000003},{"$f":"YEAR(Rtdos_de_la_Empresa8[[#This Row],[Fecha de Facturacion]])","v":2009},{"$f":"ROUNDUP(MONTH(Rtdos_de_la_Empresa8[[#This Row],[Fecha de Facturacion]])/3, 0)","v":2}]
[40452,"Agencia","Rusia-Paises del Este",257216,2955,{"$f":"VLOOKUP(Rtdos_de_la_Empresa8[[#This Row],[Canales]],Tabla39[],2,FALSE)","v":0.2},{"$f":"Rtdos_de_la_Empresa8[[#This Row],[Margen]]*Rtdos_de_la_Empresa8[[#This Row],[Facturación]]","v":51443.200000000004},{"$f":"YEAR(Rtdos_de_la_Empresa8[[#This Row],[Fecha de Facturacion]])","v":2010},{"$f":"ROUNDUP(MONTH(Rtdos_de_la_Empresa8[[#This Row],[Fecha de Facturacion]])/3, 0)","v":4}]
[39873,"Directo","Reino Unido",376154,2863.5,{"$f":"VLOOKUP(Rtdos_de_la_Empresa8[[#This Row],[Canales]],Tabla39[],2,FALSE)","v":0.4},{"$f":"Rtdos_de_la_Empresa8[[#This Row],[Margen]]*Rtdos_de_la_Empresa8[[#This Row],[Facturación]]","v":150461.6},{"$f":"YEAR(Rtdos_de_la_Empresa8[[#This Row],[Fecha de Facturacion]])","v":2009},{"$f":"ROUNDUP(MONTH(Rtdos_de_la_Empresa8[[#This Row],[Fecha de Facturacion]])/3, 0)","v":1}]
[39753,"Agencia","America Norte-Sur",267673,1993.5,{"$f":"VLOOKUP(Rtdos_de_la_Empresa8[[#This Row],[Canales]],Tabla39[],2,FALSE)","v":0.2},{"$f":"Rtdos_de_la_Empresa8[[#This Row],[Margen]]*Rtdos_de_la_Empresa8[[#This Row],[Facturación]]","v":53534.600000000006},{"$f":"YEAR(Rtdos_de_la_Empresa8[[#This Row],[Fecha de Facturacion]])","v":2008},{"$f":"ROUNDUP(MONTH(Rtdos_de_la_Empresa8[[#This Row],[Fecha de Facturacion]])/3, 0)","v":4}]
[40330,"Agencia","Italia-Francia",287183,1554,{"$f":"VLOOKUP(Rtdos_de_la_Empresa8[[#This Row],[Canales]],Tabla39[],2,FALSE)","v":0.2},{"$f":"Rtdos_de_la_Empresa8[[#This Row],[Margen]]*Rtdos_de_la_Empresa8[[#This Row],[Facturación]]","v":57436.600000000006},{"$f":"YEAR(Rtdos_de_la_Empresa8[[#This Row],[Fecha de Facturacion]])","v":2010},{"$f":"ROUNDUP(MONTH(Rtdos_de_la_Empresa8[[#This Row],[Fecha de Facturacion]])/3, 0)","v":2}]
[40210,"Agencia","America Norte-Sur",249931,784.5,{"$f":"VLOOKUP(Rtdos_de_la_Empresa8[[#This Row],[Canales]],Tabla39[],2,FALSE)","v":0.2},{"$f":"Rtdos_de_la_Empresa8[[#This Row],[Margen]]*Rtdos_de_la_Empresa8[[#This Row],[Facturación]]","v":49986.200000000004},{"$f":"YEAR(Rtdos_de_la_Empresa8[[#This Row],[Fecha de Facturacion]])","v":2010},{"$f":"ROUNDUP(MONTH(Rtdos_de_la_Empresa8[[#This Row],[Fecha de Facturacion]])/3, 0)","v":1}]
[39508,"Internet","España",284319,2907,{"$f":"VLOOKUP(Rtdos_de_la_Empresa8[[#This Row],[Canales]],Tabla39[],2,FALSE)","v":0.4},{"$f":"Rtdos_de_la_Empresa8[[#This Row],[Margen]]*Rtdos_de_la_Empresa8[[#This Row],[Facturación]]","v":113727.6},{"$f":"YEAR(Rtdos_de_la_Empresa8[[#This Row],[Fecha de Facturacion]])","v":2008},{"$f":"ROUNDUP(MONTH(Rtdos_de_la_Empresa8[[#This Row],[Fecha de Facturacion]])/3, 0)","v":1}]
[40238,"Hoteles","Alemania",263487,529.5,{"$f":"VLOOKUP(Rtdos_de_la_Empresa8[[#This Row],[Canales]],Tabla39[],2,FALSE)","v":0.15},{"$f":"Rtdos_de_la_Empresa8[[#This Row],[Margen]]*Rtdos_de_la_Empresa8[[#This Row],[Facturación]]","v":39523.049999999996},{"$f":"YEAR(Rtdos_de_la_Empresa8[[#This Row],[Fecha de Facturacion]])","v":2010},{"$f":"ROUNDUP(MONTH(Rtdos_de_la_Empresa8[[#This Row],[Fecha de Facturacion]])/3, 0)","v":1}]
[39539,"Hoteles","Resto de Paises",231499,1321.5,{"$f":"VLOOKUP(Rtdos_de_la_Empresa8[[#This Row],[Canales]],Tabla39[],2,FALSE)","v":0.15},{"$f":"Rtdos_de_la_Empresa8[[#This Row],[Margen]]*Rtdos_de_la_Empresa8[[#This Row],[Facturación]]","v":34724.85},{"$f":"YEAR(Rtdos_de_la_Empresa8[[#This Row],[Fecha de Facturacion]])","v":2008},{"$f":"ROUNDUP(MONTH(Rtdos_de_la_Empresa8[[#This Row],[Fecha de Facturacion]])/3, 0)","v":2}]
[39539,"Internet","España",273436,2196,{"$f":"VLOOKUP(Rtdos_de_la_Empresa8[[#This Row],[Canales]],Tabla39[],2,FALSE)","v":0.4},{"$f":"Rtdos_de_la_Empresa8[[#This Row],[Margen]]*Rtdos_de_la_Empresa8[[#This Row],[Facturación]]","v":109374.40000000001},{"$f":"YEAR(Rtdos_de_la_Empresa8[[#This Row],[Fecha de Facturacion]])","v":2008},{"$f":"ROUNDUP(MONTH(Rtdos_de_la_Empresa8[[#This Row],[Fecha de Facturacion]])/3, 0)","v":2}]
[40330,"Agencia","Alemania",254791,441,{"$f":"VLOOKUP(Rtdos_de_la_Empresa8[[#This Row],[Canales]],Tabla39[],2,FALSE)","v":0.2},{"$f":"Rtdos_de_la_Empresa8[[#This Row],[Margen]]*Rtdos_de_la_Empresa8[[#This Row],[Facturación]]","v":50958.200000000004},{"$f":"YEAR(Rtdos_de_la_Empresa8[[#This Row],[Fecha de Facturacion]])","v":2010},{"$f":"ROUNDUP(MONTH(Rtdos_de_la_Empresa8[[#This Row],[Fecha de Facturacion]])/3, 0)","v":2}]
[40360,"Agencia","Italia-Francia",275861,2061,{"$f":"VLOOKUP(Rtdos_de_la_Empresa8[[#This Row],[Canales]],Tabla39[],2,FALSE)","v":0.2},{"$f":"Rtdos_de_la_Empresa8[[#This Row],[Margen]]*Rtdos_de_la_Empresa8[[#This Row],[Facturación]]","v":55172.200000000004},{"$f":"YEAR(Rtdos_de_la_Empresa8[[#This Row],[Fecha de Facturacion]])","v":2010},{"$f":"ROUNDUP(MONTH(Rtdos_de_la_Empresa8[[#This Row],[Fecha de Facturacion]])/3, 0)","v":3}]
[39904,"Directo","Reino Unido",358080,1635,{"$f":"VLOOKUP(Rtdos_de_la_Empresa8[[#This Row],[Canales]],Tabla39[],2,FALSE)","v":0.4},{"$f":"Rtdos_de_la_Empresa8[[#This Row],[Margen]]*Rtdos_de_la_Empresa8[[#This Row],[Facturación]]","v":143232},{"$f":"YEAR(Rtdos_de_la_Empresa8[[#This Row],[Fecha de Facturacion]])","v":2009},{"$f":"ROUNDUP(MONTH(Rtdos_de_la_Empresa8[[#This Row],[Fecha de Facturacion]])/3, 0)","v":2}]
[39904,"Hoteles","Paises Nórdicos",313684,1452,{"$f":"VLOOKUP(Rtdos_de_la_Empresa8[[#This Row],[Canales]],Tabla39[],2,FALSE)","v":0.15},{"$f":"Rtdos_de_la_Empresa8[[#This Row],[Margen]]*Rtdos_de_la_Empresa8[[#This Row],[Facturación]]","v":47052.6},{"$f":"YEAR(Rtdos_de_la_Empresa8[[#This Row],[Fecha de Facturacion]])","v":2009},{"$f":"ROUNDUP(MONTH(Rtdos_de_la_Empresa8[[#This Row],[Fecha de Facturacion]])/3, 0)","v":2}]
[39904,"Hoteles","Benelux",259205,2203.5,{"$f":"VLOOKUP(Rtdos_de_la_Empresa8[[#This Row],[Canales]],Tabla39[],2,FALSE)","v":0.15},{"$f":"Rtdos_de_la_Empresa8[[#This Row],[Margen]]*Rtdos_de_la_Empresa8[[#This Row],[Facturación]]","v":38880.75},{"$f":"YEAR(Rtdos_de_la_Empresa8[[#This Row],[Fecha de Facturacion]])","v":2009},{"$f":"ROUNDUP(MONTH(Rtdos_de_la_Empresa8[[#This Row],[Fecha de Facturacion]])/3, 0)","v":2}]
[39965,"Agencia","Resto de Europa",259022,1017,{"$f":"VLOOKUP(Rtdos_de_la_Empresa8[[#This Row],[Canales]],Tabla39[],2,FALSE)","v":0.2},{"$f":"Rtdos_de_la_Empresa8[[#This Row],[Margen]]*Rtdos_de_la_Empresa8[[#This Row],[Facturación]]","v":51804.4},{"$f":"YEAR(Rtdos_de_la_Empresa8[[#This Row],[Fecha de Facturacion]])","v":2009},{"$f":"ROUNDUP(MONTH(Rtdos_de_la_Empresa8[[#This Row],[Fecha de Facturacion]])/3, 0)","v":2}]
[40360,"Agencia","Resto de Europa",252631,1878,{"$f":"VLOOKUP(Rtdos_de_la_Empresa8[[#This Row],[Canales]],Tabla39[],2,FALSE)","v":0.2},{"$f":"Rtdos_de_la_Empresa8[[#This Row],[Margen]]*Rtdos_de_la_Empresa8[[#This Row],[Facturación]]","v":50526.200000000004},{"$f":"YEAR(Rtdos_de_la_Empresa8[[#This Row],[Fecha de Facturacion]])","v":2010},{"$f":"ROUNDUP(MONTH(Rtdos_de_la_Empresa8[[#This Row],[Fecha de Facturacion]])/3, 0)","v":3}]
[40087,"Agencia","Rusia-Paises del Este",256887,2871,{"$f":"VLOOKUP(Rtdos_de_la_Empresa8[[#This Row],[Canales]],Tabla39[],2,FALSE)","v":0.2},{"$f":"Rtdos_de_la_Empresa8[[#This Row],[Margen]]*Rtdos_de_la_Empresa8[[#This Row],[Facturación]]","v":51377.4},{"$f":"YEAR(Rtdos_de_la_Empresa8[[#This Row],[Fecha de Facturacion]])","v":2009},{"$f":"ROUNDUP(MONTH(Rtdos_de_la_Empresa8[[#This Row],[Fecha de Facturacion]])/3, 0)","v":4}]
[39904,"Directo","Reino Unido",208243,2401.5,{"$f":"VLOOKUP(Rtdos_de_la_Empresa8[[#This Row],[Canales]],Tabla39[],2,FALSE)","v":0.4},{"$f":"Rtdos_de_la_Empresa8[[#This Row],[Margen]]*Rtdos_de_la_Empresa8[[#This Row],[Facturación]]","v":83297.200000000012},{"$f":"YEAR(Rtdos_de_la_Empresa8[[#This Row],[Fecha de Facturacion]])","v":2009},{"$f":"ROUNDUP(MONTH(Rtdos_de_la_Empresa8[[#This Row],[Fecha de Facturacion]])/3, 0)","v":2}]
[40179,"Agencia","America Norte-Sur",241840,1125,{"$f":"VLOOKUP(Rtdos_de_la_Empresa8[[#This Row],[Canales]],Tabla39[],2,FALSE)","v":0.2},{"$f":"Rtdos_de_la_Empresa8[[#This Row],[Margen]]*Rtdos_de_la_Empresa8[[#This Row],[Facturación]]","v":48368},{"$f":"YEAR(Rtdos_de_la_Empresa8[[#This Row],[Fecha de Facturacion]])","v":2010},{"$f":"ROUNDUP(MONTH(Rtdos_de_la_Empresa8[[#This Row],[Fecha de Facturacion]])/3, 0)","v":1}]
[39904,"Hoteles","Paises Nórdicos",136087,2985,{"$f":"VLOOKUP(Rtdos_de_la_Empresa8[[#This Row],[Canales]],Tabla39[],2,FALSE)","v":0.15},{"$f":"Rtdos_de_la_Empresa8[[#This Row],[Margen]]*Rtdos_de_la_Empresa8[[#This Row],[Facturación]]","v":20413.05},{"$f":"YEAR(Rtdos_de_la_Empresa8[[#This Row],[Fecha de Facturacion]])","v":2009},{"$f":"ROUNDUP(MONTH(Rtdos_de_la_Empresa8[[#This Row],[Fecha de Facturacion]])/3, 0)","v":2}]
[39569,"Hoteles","America Norte-Sur",235232,2454,{"$f":"VLOOKUP(Rtdos_de_la_Empresa8[[#This Row],[Canales]],Tabla39[],2,FALSE)","v":0.15},{"$f":"Rtdos_de_la_Empresa8[[#This Row],[Margen]]*Rtdos_de_la_Empresa8[[#This Row],[Facturación]]","v":35284.799999999996},{"$f":"YEAR(Rtdos_de_la_Empresa8[[#This Row],[Fecha de Facturacion]])","v":2008},{"$f":"ROUNDUP(MONTH(Rtdos_de_la_Empresa8[[#This Row],[Fecha de Facturacion]])/3, 0)","v":2}]
[40391,"Hoteles","Rusia-Paises del Este",251375,2082,{"$f":"VLOOKUP(Rtdos_de_la_Empresa8[[#This Row],[Canales]],Tabla39[],2,FALSE)","v":0.15},{"$f":"Rtdos_de_la_Empresa8[[#This Row],[Margen]]*Rtdos_de_la_Empresa8[[#This Row],[Facturación]]","v":37706.25},{"$f":"YEAR(Rtdos_de_la_Empresa8[[#This Row],[Fecha de Facturacion]])","v":2010},{"$f":"ROUNDUP(MONTH(Rtdos_de_la_Empresa8[[#This Row],[Fecha de Facturacion]])/3, 0)","v":3}]
[40391,"Agencia","Alemania",251548,2856,{"$f":"VLOOKUP(Rtdos_de_la_Empresa8[[#This Row],[Canales]],Tabla39[],2,FALSE)","v":0.2},{"$f":"Rtdos_de_la_Empresa8[[#This Row],[Margen]]*Rtdos_de_la_Empresa8[[#This Row],[Facturación]]","v":50309.600000000006},{"$f":"YEAR(Rtdos_de_la_Empresa8[[#This Row],[Fecha de Facturacion]])","v":2010},{"$f":"ROUNDUP(MONTH(Rtdos_de_la_Empresa8[[#This Row],[Fecha de Facturacion]])/3, 0)","v":3}]
[39448,"Hoteles","Benelux",255907,390,{"$f":"VLOOKUP(Rtdos_de_la_Empresa8[[#This Row],[Canales]],Tabla39[],2,FALSE)","v":0.15},{"$f":"Rtdos_de_la_Empresa8[[#This Row],[Margen]]*Rtdos_de_la_Empresa8[[#This Row],[Facturación]]","v":38386.049999999996},{"$f":"YEAR(Rtdos_de_la_Empresa8[[#This Row],[Fecha de Facturacion]])","v":2008},{"$f":"ROUNDUP(MONTH(Rtdos_de_la_Empresa8[[#This Row],[Fecha de Facturacion]])/3, 0)","v":1}]
[39934,"Directo","Reino Unido",362713,2185.5,{"$f":"VLOOKUP(Rtdos_de_la_Empresa8[[#This Row],[Canales]],Tabla39[],2,FALSE)","v":0.4},{"$f":"Rtdos_de_la_Empresa8[[#This Row],[Margen]]*Rtdos_de_la_Empresa8[[#This Row],[Facturación]]","v":145085.20000000001},{"$f":"YEAR(Rtdos_de_la_Empresa8[[#This Row],[Fecha de Facturacion]])","v":2009},{"$f":"ROUNDUP(MONTH(Rtdos_de_la_Empresa8[[#This Row],[Fecha de Facturacion]])/3, 0)","v":2}]
[40452,"Agencia","Benelux",242044,934.5,{"$f":"VLOOKUP(Rtdos_de_la_Empresa8[[#This Row],[Canales]],Tabla39[],2,FALSE)","v":0.2},{"$f":"Rtdos_de_la_Empresa8[[#This Row],[Margen]]*Rtdos_de_la_Empresa8[[#This Row],[Facturación]]","v":48408.800000000003},{"$f":"YEAR(Rtdos_de_la_Empresa8[[#This Row],[Fecha de Facturacion]])","v":2010},{"$f":"ROUNDUP(MONTH(Rtdos_de_la_Empresa8[[#This Row],[Fecha de Facturacion]])/3, 0)","v":4}]
[39783,"Internet","España",266499,2452.5,{"$f":"VLOOKUP(Rtdos_de_la_Empresa8[[#This Row],[Canales]],Tabla39[],2,FALSE)","v":0.4},{"$f":"Rtdos_de_la_Empresa8[[#This Row],[Margen]]*Rtdos_de_la_Empresa8[[#This Row],[Facturación]]","v":106599.6},{"$f":"YEAR(Rtdos_de_la_Empresa8[[#This Row],[Fecha de Facturacion]])","v":2008},{"$f":"ROUNDUP(MONTH(Rtdos_de_la_Empresa8[[#This Row],[Fecha de Facturacion]])/3, 0)","v":4}]
[39934,"Hoteles","Paises Nórdicos",355833,2763,{"$f":"VLOOKUP(Rtdos_de_la_Empresa8[[#This Row],[Canales]],Tabla39[],2,FALSE)","v":0.15},{"$f":"Rtdos_de_la_Empresa8[[#This Row],[Margen]]*Rtdos_de_la_Empresa8[[#This Row],[Facturación]]","v":53374.95},{"$f":"YEAR(Rtdos_de_la_Empresa8[[#This Row],[Fecha de Facturacion]])","v":2009},{"$f":"ROUNDUP(MONTH(Rtdos_de_la_Empresa8[[#This Row],[Fecha de Facturacion]])/3, 0)","v":2}]
[40299,"Hoteles","Resto de Paises",222172,2394,{"$f":"VLOOKUP(Rtdos_de_la_Empresa8[[#This Row],[Canales]],Tabla39[],2,FALSE)","v":0.15},{"$f":"Rtdos_de_la_Empresa8[[#This Row],[Margen]]*Rtdos_de_la_Empresa8[[#This Row],[Facturación]]","v":33325.799999999996},{"$f":"YEAR(Rtdos_de_la_Empresa8[[#This Row],[Fecha de Facturacion]])","v":2010},{"$f":"ROUNDUP(MONTH(Rtdos_de_la_Empresa8[[#This Row],[Fecha de Facturacion]])/3, 0)","v":2}]
[39692,"Agencia","Resto de Europa",250500,379.5,{"$f":"VLOOKUP(Rtdos_de_la_Empresa8[[#This Row],[Canales]],Tabla39[],2,FALSE)","v":0.2},{"$f":"Rtdos_de_la_Empresa8[[#This Row],[Margen]]*Rtdos_de_la_Empresa8[[#This Row],[Facturación]]","v":50100},{"$f":"YEAR(Rtdos_de_la_Empresa8[[#This Row],[Fecha de Facturacion]])","v":2008},{"$f":"ROUNDUP(MONTH(Rtdos_de_la_Empresa8[[#This Row],[Fecha de Facturacion]])/3, 0)","v":3}]
[39508,"Hoteles","Italia-Francia",273642,1738.5,{"$f":"VLOOKUP(Rtdos_de_la_Empresa8[[#This Row],[Canales]],Tabla39[],2,FALSE)","v":0.15},{"$f":"Rtdos_de_la_Empresa8[[#This Row],[Margen]]*Rtdos_de_la_Empresa8[[#This Row],[Facturación]]","v":41046.299999999996},{"$f":"YEAR(Rtdos_de_la_Empresa8[[#This Row],[Fecha de Facturacion]])","v":2008},{"$f":"ROUNDUP(MONTH(Rtdos_de_la_Empresa8[[#This Row],[Fecha de Facturacion]])/3, 0)","v":1}]
[40422,"Agencia","Alemania",245293,651,{"$f":"VLOOKUP(Rtdos_de_la_Empresa8[[#This Row],[Canales]],Tabla39[],2,FALSE)","v":0.2},{"$f":"Rtdos_de_la_Empresa8[[#This Row],[Margen]]*Rtdos_de_la_Empresa8[[#This Row],[Facturación]]","v":49058.600000000006},{"$f":"YEAR(Rtdos_de_la_Empresa8[[#This Row],[Fecha de Facturacion]])","v":2010},{"$f":"ROUNDUP(MONTH(Rtdos_de_la_Empresa8[[#This Row],[Fecha de Facturacion]])/3, 0)","v":3}]
[40118,"Internet","España",265073,1908,{"$f":"VLOOKUP(Rtdos_de_la_Empresa8[[#This Row],[Canales]],Tabla39[],2,FALSE)","v":0.4},{"$f":"Rtdos_de_la_Empresa8[[#This Row],[Margen]]*Rtdos_de_la_Empresa8[[#This Row],[Facturación]]","v":106029.20000000001},{"$f":"YEAR(Rtdos_de_la_Empresa8[[#This Row],[Fecha de Facturacion]])","v":2009},{"$f":"ROUNDUP(MONTH(Rtdos_de_la_Empresa8[[#This Row],[Fecha de Facturacion]])/3, 0)","v":4}]
[39783,"Hoteles","America Norte-Sur",223163,2568,{"$f":"VLOOKUP(Rtdos_de_la_Empresa8[[#This Row],[Canales]],Tabla39[],2,FALSE)","v":0.15},{"$f":"Rtdos_de_la_Empresa8[[#This Row],[Margen]]*Rtdos_de_la_Empresa8[[#This Row],[Facturación]]","v":33474.449999999997},{"$f":"YEAR(Rtdos_de_la_Empresa8[[#This Row],[Fecha de Facturacion]])","v":2008},{"$f":"ROUNDUP(MONTH(Rtdos_de_la_Empresa8[[#This Row],[Fecha de Facturacion]])/3, 0)","v":4}]
[39934,"Hoteles","Italia-Francia",265882,2703,{"$f":"VLOOKUP(Rtdos_de_la_Empresa8[[#This Row],[Canales]],Tabla39[],2,FALSE)","v":0.15},{"$f":"Rtdos_de_la_Empresa8[[#This Row],[Margen]]*Rtdos_de_la_Empresa8[[#This Row],[Facturación]]","v":39882.299999999996},{"$f":"YEAR(Rtdos_de_la_Empresa8[[#This Row],[Fecha de Facturacion]])","v":2009},{"$f":"ROUNDUP(MONTH(Rtdos_de_la_Empresa8[[#This Row],[Fecha de Facturacion]])/3, 0)","v":2}]
[40148,"Directo","Benelux",219568,2565,{"$f":"VLOOKUP(Rtdos_de_la_Empresa8[[#This Row],[Canales]],Tabla39[],2,FALSE)","v":0.4},{"$f":"Rtdos_de_la_Empresa8[[#This Row],[Margen]]*Rtdos_de_la_Empresa8[[#This Row],[Facturación]]","v":87827.200000000012},{"$f":"YEAR(Rtdos_de_la_Empresa8[[#This Row],[Fecha de Facturacion]])","v":2009},{"$f":"ROUNDUP(MONTH(Rtdos_de_la_Empresa8[[#This Row],[Fecha de Facturacion]])/3, 0)","v":4}]
[40269,"Hoteles","Italia-Francia",252811,2455.5,{"$f":"VLOOKUP(Rtdos_de_la_Empresa8[[#This Row],[Canales]],Tabla39[],2,FALSE)","v":0.15},{"$f":"Rtdos_de_la_Empresa8[[#This Row],[Margen]]*Rtdos_de_la_Empresa8[[#This Row],[Facturación]]","v":37921.65},{"$f":"YEAR(Rtdos_de_la_Empresa8[[#This Row],[Fecha de Facturacion]])","v":2010},{"$f":"ROUNDUP(MONTH(Rtdos_de_la_Empresa8[[#This Row],[Fecha de Facturacion]])/3, 0)","v":2}]
[39814,"Agencia","Resto de Europa",232615,1491,{"$f":"VLOOKUP(Rtdos_de_la_Empresa8[[#This Row],[Canales]],Tabla39[],2,FALSE)","v":0.2},{"$f":"Rtdos_de_la_Empresa8[[#This Row],[Margen]]*Rtdos_de_la_Empresa8[[#This Row],[Facturación]]","v":46523},{"$f":"YEAR(Rtdos_de_la_Empresa8[[#This Row],[Fecha de Facturacion]])","v":2009},{"$f":"ROUNDUP(MONTH(Rtdos_de_la_Empresa8[[#This Row],[Fecha de Facturacion]])/3, 0)","v":1}]
[39479,"Hoteles","Rusia-Paises del Este",244651,1360.5,{"$f":"VLOOKUP(Rtdos_de_la_Empresa8[[#This Row],[Canales]],Tabla39[],2,FALSE)","v":0.15},{"$f":"Rtdos_de_la_Empresa8[[#This Row],[Margen]]*Rtdos_de_la_Empresa8[[#This Row],[Facturación]]","v":36697.65},{"$f":"YEAR(Rtdos_de_la_Empresa8[[#This Row],[Fecha de Facturacion]])","v":2008},{"$f":"ROUNDUP(MONTH(Rtdos_de_la_Empresa8[[#This Row],[Fecha de Facturacion]])/3, 0)","v":1}]
[39965,"Internet","Reino Unido",228049,1633.5,{"$f":"VLOOKUP(Rtdos_de_la_Empresa8[[#This Row],[Canales]],Tabla39[],2,FALSE)","v":0.4},{"$f":"Rtdos_de_la_Empresa8[[#This Row],[Margen]]*Rtdos_de_la_Empresa8[[#This Row],[Facturación]]","v":91219.6},{"$f":"YEAR(Rtdos_de_la_Empresa8[[#This Row],[Fecha de Facturacion]])","v":2009},{"$f":"ROUNDUP(MONTH(Rtdos_de_la_Empresa8[[#This Row],[Fecha de Facturacion]])/3, 0)","v":2}]
[39569,"Agencia","Alemania",245087,2517,{"$f":"VLOOKUP(Rtdos_de_la_Empresa8[[#This Row],[Canales]],Tabla39[],2,FALSE)","v":0.2},{"$f":"Rtdos_de_la_Empresa8[[#This Row],[Margen]]*Rtdos_de_la_Empresa8[[#This Row],[Facturación]]","v":49017.4},{"$f":"YEAR(Rtdos_de_la_Empresa8[[#This Row],[Fecha de Facturacion]])","v":2008},{"$f":"ROUNDUP(MONTH(Rtdos_de_la_Empresa8[[#This Row],[Fecha de Facturacion]])/3, 0)","v":2}]
[39965,"Directo","Paises Nórdicos",317336,2847,{"$f":"VLOOKUP(Rtdos_de_la_Empresa8[[#This Row],[Canales]],Tabla39[],2,FALSE)","v":0.4},{"$f":"Rtdos_de_la_Empresa8[[#This Row],[Margen]]*Rtdos_de_la_Empresa8[[#This Row],[Facturación]]","v":126934.40000000001},{"$f":"YEAR(Rtdos_de_la_Empresa8[[#This Row],[Fecha de Facturacion]])","v":2009},{"$f":"ROUNDUP(MONTH(Rtdos_de_la_Empresa8[[#This Row],[Fecha de Facturacion]])/3, 0)","v":2}]
[40452,"Internet","España",259992,1366.5,{"$f":"VLOOKUP(Rtdos_de_la_Empresa8[[#This Row],[Canales]],Tabla39[],2,FALSE)","v":0.4},{"$f":"Rtdos_de_la_Empresa8[[#This Row],[Margen]]*Rtdos_de_la_Empresa8[[#This Row],[Facturación]]","v":103996.8},{"$f":"YEAR(Rtdos_de_la_Empresa8[[#This Row],[Fecha de Facturacion]])","v":2010},{"$f":"ROUNDUP(MONTH(Rtdos_de_la_Empresa8[[#This Row],[Fecha de Facturacion]])/3, 0)","v":4}]
[39722,"Agencia","Resto de Paises",221504,1465.5,{"$f":"VLOOKUP(Rtdos_de_la_Empresa8[[#This Row],[Canales]],Tabla39[],2,FALSE)","v":0.2},{"$f":"Rtdos_de_la_Empresa8[[#This Row],[Margen]]*Rtdos_de_la_Empresa8[[#This Row],[Facturación]]","v":44300.800000000003},{"$f":"YEAR(Rtdos_de_la_Empresa8[[#This Row],[Fecha de Facturacion]])","v":2008},{"$f":"ROUNDUP(MONTH(Rtdos_de_la_Empresa8[[#This Row],[Fecha de Facturacion]])/3, 0)","v":4}]
[39873,"Hoteles","Rusia-Paises del Este",243565,1804.5,{"$f":"VLOOKUP(Rtdos_de_la_Empresa8[[#This Row],[Canales]],Tabla39[],2,FALSE)","v":0.15},{"$f":"Rtdos_de_la_Empresa8[[#This Row],[Margen]]*Rtdos_de_la_Empresa8[[#This Row],[Facturación]]","v":36534.75},{"$f":"YEAR(Rtdos_de_la_Empresa8[[#This Row],[Fecha de Facturacion]])","v":2009},{"$f":"ROUNDUP(MONTH(Rtdos_de_la_Empresa8[[#This Row],[Fecha de Facturacion]])/3, 0)","v":1}]
[39965,"Agencia","Resto de Paises",220389,2665.5,{"$f":"VLOOKUP(Rtdos_de_la_Empresa8[[#This Row],[Canales]],Tabla39[],2,FALSE)","v":0.2},{"$f":"Rtdos_de_la_Empresa8[[#This Row],[Margen]]*Rtdos_de_la_Empresa8[[#This Row],[Facturación]]","v":44077.8},{"$f":"YEAR(Rtdos_de_la_Empresa8[[#This Row],[Fecha de Facturacion]])","v":2009},{"$f":"ROUNDUP(MONTH(Rtdos_de_la_Empresa8[[#This Row],[Fecha de Facturacion]])/3, 0)","v":2}]
[39995,"Directo","Paises Nórdicos",368954,1077,{"$f":"VLOOKUP(Rtdos_de_la_Empresa8[[#This Row],[Canales]],Tabla39[],2,FALSE)","v":0.4},{"$f":"Rtdos_de_la_Empresa8[[#This Row],[Margen]]*Rtdos_de_la_Empresa8[[#This Row],[Facturación]]","v":147581.6},{"$f":"YEAR(Rtdos_de_la_Empresa8[[#This Row],[Fecha de Facturacion]])","v":2009},{"$f":"ROUNDUP(MONTH(Rtdos_de_la_Empresa8[[#This Row],[Fecha de Facturacion]])/3, 0)","v":3}]
[39995,"Internet","Reino Unido",368937,1477.5,{"$f":"VLOOKUP(Rtdos_de_la_Empresa8[[#This Row],[Canales]],Tabla39[],2,FALSE)","v":0.4},{"$f":"Rtdos_de_la_Empresa8[[#This Row],[Margen]]*Rtdos_de_la_Empresa8[[#This Row],[Facturación]]","v":147574.80000000002},{"$f":"YEAR(Rtdos_de_la_Empresa8[[#This Row],[Fecha de Facturacion]])","v":2009},{"$f":"ROUNDUP(MONTH(Rtdos_de_la_Empresa8[[#This Row],[Fecha de Facturacion]])/3, 0)","v":3}]
[39995,"Directo","Paises Nórdicos",366171,1560,{"$f":"VLOOKUP(Rtdos_de_la_Empresa8[[#This Row],[Canales]],Tabla39[],2,FALSE)","v":0.4},{"$f":"Rtdos_de_la_Empresa8[[#This Row],[Margen]]*Rtdos_de_la_Empresa8[[#This Row],[Facturación]]","v":146468.4},{"$f":"YEAR(Rtdos_de_la_Empresa8[[#This Row],[Fecha de Facturacion]])","v":2009},{"$f":"ROUNDUP(MONTH(Rtdos_de_la_Empresa8[[#This Row],[Fecha de Facturacion]])/3, 0)","v":3}]
[39995,"Directo","Alemania",244966,1090.5,{"$f":"VLOOKUP(Rtdos_de_la_Empresa8[[#This Row],[Canales]],Tabla39[],2,FALSE)","v":0.4},{"$f":"Rtdos_de_la_Empresa8[[#This Row],[Margen]]*Rtdos_de_la_Empresa8[[#This Row],[Facturación]]","v":97986.400000000009},{"$f":"YEAR(Rtdos_de_la_Empresa8[[#This Row],[Fecha de Facturacion]])","v":2009},{"$f":"ROUNDUP(MONTH(Rtdos_de_la_Empresa8[[#This Row],[Fecha de Facturacion]])/3, 0)","v":3}]
[39783,"Hoteles","America Norte-Sur",221410,1890,{"$f":"VLOOKUP(Rtdos_de_la_Empresa8[[#This Row],[Canales]],Tabla39[],2,FALSE)","v":0.15},{"$f":"Rtdos_de_la_Empresa8[[#This Row],[Margen]]*Rtdos_de_la_Empresa8[[#This Row],[Facturación]]","v":33211.5},{"$f":"YEAR(Rtdos_de_la_Empresa8[[#This Row],[Fecha de Facturacion]])","v":2008},{"$f":"ROUNDUP(MONTH(Rtdos_de_la_Empresa8[[#This Row],[Fecha de Facturacion]])/3, 0)","v":4}]
[40360,"Hoteles","America Norte-Sur",210379,1344,{"$f":"VLOOKUP(Rtdos_de_la_Empresa8[[#This Row],[Canales]],Tabla39[],2,FALSE)","v":0.15},{"$f":"Rtdos_de_la_Empresa8[[#This Row],[Margen]]*Rtdos_de_la_Empresa8[[#This Row],[Facturación]]","v":31556.85},{"$f":"YEAR(Rtdos_de_la_Empresa8[[#This Row],[Fecha de Facturacion]])","v":2010},{"$f":"ROUNDUP(MONTH(Rtdos_de_la_Empresa8[[#This Row],[Fecha de Facturacion]])/3, 0)","v":3}]
[39539,"Agencia","Resto de Europa",216191,783,{"$f":"VLOOKUP(Rtdos_de_la_Empresa8[[#This Row],[Canales]],Tabla39[],2,FALSE)","v":0.2},{"$f":"Rtdos_de_la_Empresa8[[#This Row],[Margen]]*Rtdos_de_la_Empresa8[[#This Row],[Facturación]]","v":43238.200000000004},{"$f":"YEAR(Rtdos_de_la_Empresa8[[#This Row],[Fecha de Facturacion]])","v":2008},{"$f":"ROUNDUP(MONTH(Rtdos_de_la_Empresa8[[#This Row],[Fecha de Facturacion]])/3, 0)","v":2}]
[39692,"Hoteles","Rusia-Paises del Este",236646,541.5,{"$f":"VLOOKUP(Rtdos_de_la_Empresa8[[#This Row],[Canales]],Tabla39[],2,FALSE)","v":0.15},{"$f":"Rtdos_de_la_Empresa8[[#This Row],[Margen]]*Rtdos_de_la_Empresa8[[#This Row],[Facturación]]","v":35496.9},{"$f":"YEAR(Rtdos_de_la_Empresa8[[#This Row],[Fecha de Facturacion]])","v":2008},{"$f":"ROUNDUP(MONTH(Rtdos_de_la_Empresa8[[#This Row],[Fecha de Facturacion]])/3, 0)","v":3}]
[40238,"Directo","Italia-Francia",251073,2745,{"$f":"VLOOKUP(Rtdos_de_la_Empresa8[[#This Row],[Canales]],Tabla39[],2,FALSE)","v":0.4},{"$f":"Rtdos_de_la_Empresa8[[#This Row],[Margen]]*Rtdos_de_la_Empresa8[[#This Row],[Facturación]]","v":100429.20000000001},{"$f":"YEAR(Rtdos_de_la_Empresa8[[#This Row],[Fecha de Facturacion]])","v":2010},{"$f":"ROUNDUP(MONTH(Rtdos_de_la_Empresa8[[#This Row],[Fecha de Facturacion]])/3, 0)","v":1}]
[39569,"Agencia","Resto de Paises",204706,2874,{"$f":"VLOOKUP(Rtdos_de_la_Empresa8[[#This Row],[Canales]],Tabla39[],2,FALSE)","v":0.2},{"$f":"Rtdos_de_la_Empresa8[[#This Row],[Margen]]*Rtdos_de_la_Empresa8[[#This Row],[Facturación]]","v":40941.200000000004},{"$f":"YEAR(Rtdos_de_la_Empresa8[[#This Row],[Fecha de Facturacion]])","v":2008},{"$f":"ROUNDUP(MONTH(Rtdos_de_la_Empresa8[[#This Row],[Fecha de Facturacion]])/3, 0)","v":2}]
[40452,"Directo","Benelux",219131,996,{"$f":"VLOOKUP(Rtdos_de_la_Empresa8[[#This Row],[Canales]],Tabla39[],2,FALSE)","v":0.4},{"$f":"Rtdos_de_la_Empresa8[[#This Row],[Margen]]*Rtdos_de_la_Empresa8[[#This Row],[Facturación]]","v":87652.400000000009},{"$f":"YEAR(Rtdos_de_la_Empresa8[[#This Row],[Fecha de Facturacion]])","v":2010},{"$f":"ROUNDUP(MONTH(Rtdos_de_la_Empresa8[[#This Row],[Fecha de Facturacion]])/3, 0)","v":4}]
[39661,"Internet","España",255098,2151,{"$f":"VLOOKUP(Rtdos_de_la_Empresa8[[#This Row],[Canales]],Tabla39[],2,FALSE)","v":0.4},{"$f":"Rtdos_de_la_Empresa8[[#This Row],[Margen]]*Rtdos_de_la_Empresa8[[#This Row],[Facturación]]","v":102039.20000000001},{"$f":"YEAR(Rtdos_de_la_Empresa8[[#This Row],[Fecha de Facturacion]])","v":2008},{"$f":"ROUNDUP(MONTH(Rtdos_de_la_Empresa8[[#This Row],[Fecha de Facturacion]])/3, 0)","v":3}]
[39995,"Internet","Reino Unido",115488,2325,{"$f":"VLOOKUP(Rtdos_de_la_Empresa8[[#This Row],[Canales]],Tabla39[],2,FALSE)","v":0.4},{"$f":"Rtdos_de_la_Empresa8[[#This Row],[Margen]]*Rtdos_de_la_Empresa8[[#This Row],[Facturación]]","v":46195.200000000004},{"$f":"YEAR(Rtdos_de_la_Empresa8[[#This Row],[Fecha de Facturacion]])","v":2009},{"$f":"ROUNDUP(MONTH(Rtdos_de_la_Empresa8[[#This Row],[Fecha de Facturacion]])/3, 0)","v":3}]
[39508,"Directo","Alemania",244610,2830.5,{"$f":"VLOOKUP(Rtdos_de_la_Empresa8[[#This Row],[Canales]],Tabla39[],2,FALSE)","v":0.4},{"$f":"Rtdos_de_la_Empresa8[[#This Row],[Margen]]*Rtdos_de_la_Empresa8[[#This Row],[Facturación]]","v":97844},{"$f":"YEAR(Rtdos_de_la_Empresa8[[#This Row],[Fecha de Facturacion]])","v":2008},{"$f":"ROUNDUP(MONTH(Rtdos_de_la_Empresa8[[#This Row],[Fecha de Facturacion]])/3, 0)","v":1}]
[39539,"Internet","Benelux",215138,2254.5,{"$f":"VLOOKUP(Rtdos_de_la_Empresa8[[#This Row],[Canales]],Tabla39[],2,FALSE)","v":0.4},{"$f":"Rtdos_de_la_Empresa8[[#This Row],[Margen]]*Rtdos_de_la_Empresa8[[#This Row],[Facturación]]","v":86055.200000000012},{"$f":"YEAR(Rtdos_de_la_Empresa8[[#This Row],[Fecha de Facturacion]])","v":2008},{"$f":"ROUNDUP(MONTH(Rtdos_de_la_Empresa8[[#This Row],[Fecha de Facturacion]])/3, 0)","v":2}]
[39873,"Agencia","Resto de Europa",211396,1495.5,{"$f":"VLOOKUP(Rtdos_de_la_Empresa8[[#This Row],[Canales]],Tabla39[],2,FALSE)","v":0.2},{"$f":"Rtdos_de_la_Empresa8[[#This Row],[Margen]]*Rtdos_de_la_Empresa8[[#This Row],[Facturación]]","v":42279.200000000004},{"$f":"YEAR(Rtdos_de_la_Empresa8[[#This Row],[Fecha de Facturacion]])","v":2009},{"$f":"ROUNDUP(MONTH(Rtdos_de_la_Empresa8[[#This Row],[Fecha de Facturacion]])/3, 0)","v":1}]
[40118,"Hoteles","Rusia-Paises del Este",227822,1884,{"$f":"VLOOKUP(Rtdos_de_la_Empresa8[[#This Row],[Canales]],Tabla39[],2,FALSE)","v":0.15},{"$f":"Rtdos_de_la_Empresa8[[#This Row],[Margen]]*Rtdos_de_la_Empresa8[[#This Row],[Facturación]]","v":34173.299999999996},{"$f":"YEAR(Rtdos_de_la_Empresa8[[#This Row],[Fecha de Facturacion]])","v":2009},{"$f":"ROUNDUP(MONTH(Rtdos_de_la_Empresa8[[#This Row],[Fecha de Facturacion]])/3, 0)","v":4}]
[40026,"Directo","Paises Nórdicos",379575,1315.5,{"$f":"VLOOKUP(Rtdos_de_la_Empresa8[[#This Row],[Canales]],Tabla39[],2,FALSE)","v":0.4},{"$f":"Rtdos_de_la_Empresa8[[#This Row],[Margen]]*Rtdos_de_la_Empresa8[[#This Row],[Facturación]]","v":151830},{"$f":"YEAR(Rtdos_de_la_Empresa8[[#This Row],[Fecha de Facturacion]])","v":2009},{"$f":"ROUNDUP(MONTH(Rtdos_de_la_Empresa8[[#This Row],[Fecha de Facturacion]])/3, 0)","v":3}]
[39753,"Internet","Benelux",211749,1470,{"$f":"VLOOKUP(Rtdos_de_la_Empresa8[[#This Row],[Canales]],Tabla39[],2,FALSE)","v":0.4},{"$f":"Rtdos_de_la_Empresa8[[#This Row],[Margen]]*Rtdos_de_la_Empresa8[[#This Row],[Facturación]]","v":84699.6},{"$f":"YEAR(Rtdos_de_la_Empresa8[[#This Row],[Fecha de Facturacion]])","v":2008},{"$f":"ROUNDUP(MONTH(Rtdos_de_la_Empresa8[[#This Row],[Fecha de Facturacion]])/3, 0)","v":4}]
[39630,"Agencia","Alemania",241144,1950,{"$f":"VLOOKUP(Rtdos_de_la_Empresa8[[#This Row],[Canales]],Tabla39[],2,FALSE)","v":0.2},{"$f":"Rtdos_de_la_Empresa8[[#This Row],[Margen]]*Rtdos_de_la_Empresa8[[#This Row],[Facturación]]","v":48228.800000000003},{"$f":"YEAR(Rtdos_de_la_Empresa8[[#This Row],[Fecha de Facturacion]])","v":2008},{"$f":"ROUNDUP(MONTH(Rtdos_de_la_Empresa8[[#This Row],[Fecha de Facturacion]])/3, 0)","v":3}]
[39722,"Internet","España",254824,1134,{"$f":"VLOOKUP(Rtdos_de_la_Empresa8[[#This Row],[Canales]],Tabla39[],2,FALSE)","v":0.4},{"$f":"Rtdos_de_la_Empresa8[[#This Row],[Margen]]*Rtdos_de_la_Empresa8[[#This Row],[Facturación]]","v":101929.60000000001},{"$f":"YEAR(Rtdos_de_la_Empresa8[[#This Row],[Fecha de Facturacion]])","v":2008},{"$f":"ROUNDUP(MONTH(Rtdos_de_la_Empresa8[[#This Row],[Fecha de Facturacion]])/3, 0)","v":4}]
[39995,"Directo","Italia-Francia",249405,2394,{"$f":"VLOOKUP(Rtdos_de_la_Empresa8[[#This Row],[Canales]],Tabla39[],2,FALSE)","v":0.4},{"$f":"Rtdos_de_la_Empresa8[[#This Row],[Margen]]*Rtdos_de_la_Empresa8[[#This Row],[Facturación]]","v":99762},{"$f":"YEAR(Rtdos_de_la_Empresa8[[#This Row],[Fecha de Facturacion]])","v":2009},{"$f":"ROUNDUP(MONTH(Rtdos_de_la_Empresa8[[#This Row],[Fecha de Facturacion]])/3, 0)","v":3}]
[39965,"Agencia","Resto de Paises",196790,2916,{"$f":"VLOOKUP(Rtdos_de_la_Empresa8[[#This Row],[Canales]],Tabla39[],2,FALSE)","v":0.2},{"$f":"Rtdos_de_la_Empresa8[[#This Row],[Margen]]*Rtdos_de_la_Empresa8[[#This Row],[Facturación]]","v":39358},{"$f":"YEAR(Rtdos_de_la_Empresa8[[#This Row],[Fecha de Facturacion]])","v":2009},{"$f":"ROUNDUP(MONTH(Rtdos_de_la_Empresa8[[#This Row],[Fecha de Facturacion]])/3, 0)","v":2}]
[40026,"Internet","Reino Unido",324117,2376,{"$f":"VLOOKUP(Rtdos_de_la_Empresa8[[#This Row],[Canales]],Tabla39[],2,FALSE)","v":0.4},{"$f":"Rtdos_de_la_Empresa8[[#This Row],[Margen]]*Rtdos_de_la_Empresa8[[#This Row],[Facturación]]","v":129646.8},{"$f":"YEAR(Rtdos_de_la_Empresa8[[#This Row],[Fecha de Facturacion]])","v":2009},{"$f":"ROUNDUP(MONTH(Rtdos_de_la_Empresa8[[#This Row],[Fecha de Facturacion]])/3, 0)","v":3}]
[39904,"Agencia","Resto de Europa",205210,1849.5,{"$f":"VLOOKUP(Rtdos_de_la_Empresa8[[#This Row],[Canales]],Tabla39[],2,FALSE)","v":0.2},{"$f":"Rtdos_de_la_Empresa8[[#This Row],[Margen]]*Rtdos_de_la_Empresa8[[#This Row],[Facturación]]","v":41042},{"$f":"YEAR(Rtdos_de_la_Empresa8[[#This Row],[Fecha de Facturacion]])","v":2009},{"$f":"ROUNDUP(MONTH(Rtdos_de_la_Empresa8[[#This Row],[Fecha de Facturacion]])/3, 0)","v":2}]
[40452,"Agencia","America Norte-Sur",206873,2854.5,{"$f":"VLOOKUP(Rtdos_de_la_Empresa8[[#This Row],[Canales]],Tabla39[],2,FALSE)","v":0.2},{"$f":"Rtdos_de_la_Empresa8[[#This Row],[Margen]]*Rtdos_de_la_Empresa8[[#This Row],[Facturación]]","v":41374.600000000006},{"$f":"YEAR(Rtdos_de_la_Empresa8[[#This Row],[Fecha de Facturacion]])","v":2010},{"$f":"ROUNDUP(MONTH(Rtdos_de_la_Empresa8[[#This Row],[Fecha de Facturacion]])/3, 0)","v":4}]
[39508,"Directo","Alemania",226230,2692.5,{"$f":"VLOOKUP(Rtdos_de_la_Empresa8[[#This Row],[Canales]],Tabla39[],2,FALSE)","v":0.4},{"$f":"Rtdos_de_la_Empresa8[[#This Row],[Margen]]*Rtdos_de_la_Empresa8[[#This Row],[Facturación]]","v":90492},{"$f":"YEAR(Rtdos_de_la_Empresa8[[#This Row],[Fecha de Facturacion]])","v":2008},{"$f":"ROUNDUP(MONTH(Rtdos_de_la_Empresa8[[#This Row],[Fecha de Facturacion]])/3, 0)","v":1}]
[39722,"Agencia","America Norte-Sur",203347,439.5,{"$f":"VLOOKUP(Rtdos_de_la_Empresa8[[#This Row],[Canales]],Tabla39[],2,FALSE)","v":0.2},{"$f":"Rtdos_de_la_Empresa8[[#This Row],[Margen]]*Rtdos_de_la_Empresa8[[#This Row],[Facturación]]","v":40669.4},{"$f":"YEAR(Rtdos_de_la_Empresa8[[#This Row],[Fecha de Facturacion]])","v":2008},{"$f":"ROUNDUP(MONTH(Rtdos_de_la_Empresa8[[#This Row],[Fecha de Facturacion]])/3, 0)","v":4}]
[39539,"Hoteles","Rusia-Paises del Este",226466,417,{"$f":"VLOOKUP(Rtdos_de_la_Empresa8[[#This Row],[Canales]],Tabla39[],2,FALSE)","v":0.15},{"$f":"Rtdos_de_la_Empresa8[[#This Row],[Margen]]*Rtdos_de_la_Empresa8[[#This Row],[Facturación]]","v":33969.9},{"$f":"YEAR(Rtdos_de_la_Empresa8[[#This Row],[Fecha de Facturacion]])","v":2008},{"$f":"ROUNDUP(MONTH(Rtdos_de_la_Empresa8[[#This Row],[Fecha de Facturacion]])/3, 0)","v":2}]
[40452,"Directo","Italia-Francia",249005,606,{"$f":"VLOOKUP(Rtdos_de_la_Empresa8[[#This Row],[Canales]],Tabla39[],2,FALSE)","v":0.4},{"$f":"Rtdos_de_la_Empresa8[[#This Row],[Margen]]*Rtdos_de_la_Empresa8[[#This Row],[Facturación]]","v":99602},{"$f":"YEAR(Rtdos_de_la_Empresa8[[#This Row],[Fecha de Facturacion]])","v":2010},{"$f":"ROUNDUP(MONTH(Rtdos_de_la_Empresa8[[#This Row],[Fecha de Facturacion]])/3, 0)","v":4}]
[39630,"Directo","Benelux",206164,871.5,{"$f":"VLOOKUP(Rtdos_de_la_Empresa8[[#This Row],[Canales]],Tabla39[],2,FALSE)","v":0.4},{"$f":"Rtdos_de_la_Empresa8[[#This Row],[Margen]]*Rtdos_de_la_Empresa8[[#This Row],[Facturación]]","v":82465.600000000006},{"$f":"YEAR(Rtdos_de_la_Empresa8[[#This Row],[Fecha de Facturacion]])","v":2008},{"$f":"ROUNDUP(MONTH(Rtdos_de_la_Empresa8[[#This Row],[Fecha de Facturacion]])/3, 0)","v":3}]
[40057,"Directo","Paises Nórdicos",278530,1759.5,{"$f":"VLOOKUP(Rtdos_de_la_Empresa8[[#This Row],[Canales]],Tabla39[],2,FALSE)","v":0.4},{"$f":"Rtdos_de_la_Empresa8[[#This Row],[Margen]]*Rtdos_de_la_Empresa8[[#This Row],[Facturación]]","v":111412},{"$f":"YEAR(Rtdos_de_la_Empresa8[[#This Row],[Fecha de Facturacion]])","v":2009},{"$f":"ROUNDUP(MONTH(Rtdos_de_la_Empresa8[[#This Row],[Fecha de Facturacion]])/3, 0)","v":3}]
[40452,"Internet","España",245514,903,{"$f":"VLOOKUP(Rtdos_de_la_Empresa8[[#This Row],[Canales]],Tabla39[],2,FALSE)","v":0.4},{"$f":"Rtdos_de_la_Empresa8[[#This Row],[Margen]]*Rtdos_de_la_Empresa8[[#This Row],[Facturación]]","v":98205.6},{"$f":"YEAR(Rtdos_de_la_Empresa8[[#This Row],[Fecha de Facturacion]])","v":2010},{"$f":"ROUNDUP(MONTH(Rtdos_de_la_Empresa8[[#This Row],[Fecha de Facturacion]])/3, 0)","v":4}]
[40179,"Directo","Italia-Francia",242265,946.5,{"$f":"VLOOKUP(Rtdos_de_la_Empresa8[[#This Row],[Canales]],Tabla39[],2,FALSE)","v":0.4},{"$f":"Rtdos_de_la_Empresa8[[#This Row],[Margen]]*Rtdos_de_la_Empresa8[[#This Row],[Facturación]]","v":96906},{"$f":"YEAR(Rtdos_de_la_Empresa8[[#This Row],[Fecha de Facturacion]])","v":2010},{"$f":"ROUNDUP(MONTH(Rtdos_de_la_Empresa8[[#This Row],[Fecha de Facturacion]])/3, 0)","v":1}]
[40057,"Internet","Reino Unido",311089,2914.5,{"$f":"VLOOKUP(Rtdos_de_la_Empresa8[[#This Row],[Canales]],Tabla39[],2,FALSE)","v":0.4},{"$f":"Rtdos_de_la_Empresa8[[#This Row],[Margen]]*Rtdos_de_la_Empresa8[[#This Row],[Facturación]]","v":124435.6},{"$f":"YEAR(Rtdos_de_la_Empresa8[[#This Row],[Fecha de Facturacion]])","v":2009},{"$f":"ROUNDUP(MONTH(Rtdos_de_la_Empresa8[[#This Row],[Fecha de Facturacion]])/3, 0)","v":3}]
[40148,"Agencia","Resto de Paises",195688,1753.5,{"$f":"VLOOKUP(Rtdos_de_la_Empresa8[[#This Row],[Canales]],Tabla39[],2,FALSE)","v":0.2},{"$f":"Rtdos_de_la_Empresa8[[#This Row],[Margen]]*Rtdos_de_la_Empresa8[[#This Row],[Facturación]]","v":39137.599999999999},{"$f":"YEAR(Rtdos_de_la_Empresa8[[#This Row],[Fecha de Facturacion]])","v":2009},{"$f":"ROUNDUP(MONTH(Rtdos_de_la_Empresa8[[#This Row],[Fecha de Facturacion]])/3, 0)","v":4}]
[40026,"Hoteles","Resto de Europa",195920,513,{"$f":"VLOOKUP(Rtdos_de_la_Empresa8[[#This Row],[Canales]],Tabla39[],2,FALSE)","v":0.15},{"$f":"Rtdos_de_la_Empresa8[[#This Row],[Margen]]*Rtdos_de_la_Empresa8[[#This Row],[Facturación]]","v":29388},{"$f":"YEAR(Rtdos_de_la_Empresa8[[#This Row],[Fecha de Facturacion]])","v":2009},{"$f":"ROUNDUP(MONTH(Rtdos_de_la_Empresa8[[#This Row],[Fecha de Facturacion]])/3, 0)","v":3}]
[39934,"Agencia","España",242306,1839,{"$f":"VLOOKUP(Rtdos_de_la_Empresa8[[#This Row],[Canales]],Tabla39[],2,FALSE)","v":0.2},{"$f":"Rtdos_de_la_Empresa8[[#This Row],[Margen]]*Rtdos_de_la_Empresa8[[#This Row],[Facturación]]","v":48461.200000000004},{"$f":"YEAR(Rtdos_de_la_Empresa8[[#This Row],[Fecha de Facturacion]])","v":2009},{"$f":"ROUNDUP(MONTH(Rtdos_de_la_Empresa8[[#This Row],[Fecha de Facturacion]])/3, 0)","v":2}]
[40269,"Hoteles","Rusia-Paises del Este",217349,1806,{"$f":"VLOOKUP(Rtdos_de_la_Empresa8[[#This Row],[Canales]],Tabla39[],2,FALSE)","v":0.15},{"$f":"Rtdos_de_la_Empresa8[[#This Row],[Margen]]*Rtdos_de_la_Empresa8[[#This Row],[Facturación]]","v":32602.35},{"$f":"YEAR(Rtdos_de_la_Empresa8[[#This Row],[Fecha de Facturacion]])","v":2010},{"$f":"ROUNDUP(MONTH(Rtdos_de_la_Empresa8[[#This Row],[Fecha de Facturacion]])/3, 0)","v":2}]
[40360,"Directo","Italia-Francia",233351,2911.5,{"$f":"VLOOKUP(Rtdos_de_la_Empresa8[[#This Row],[Canales]],Tabla39[],2,FALSE)","v":0.4},{"$f":"Rtdos_de_la_Empresa8[[#This Row],[Margen]]*Rtdos_de_la_Empresa8[[#This Row],[Facturación]]","v":93340.400000000009},{"$f":"YEAR(Rtdos_de_la_Empresa8[[#This Row],[Fecha de Facturacion]])","v":2010},{"$f":"ROUNDUP(MONTH(Rtdos_de_la_Empresa8[[#This Row],[Fecha de Facturacion]])/3, 0)","v":3}]
[40118,"Agencia","America Norte-Sur",192095,1854,{"$f":"VLOOKUP(Rtdos_de_la_Empresa8[[#This Row],[Canales]],Tabla39[],2,FALSE)","v":0.2},{"$f":"Rtdos_de_la_Empresa8[[#This Row],[Margen]]*Rtdos_de_la_Empresa8[[#This Row],[Facturación]]","v":38419},{"$f":"YEAR(Rtdos_de_la_Empresa8[[#This Row],[Fecha de Facturacion]])","v":2009},{"$f":"ROUNDUP(MONTH(Rtdos_de_la_Empresa8[[#This Row],[Fecha de Facturacion]])/3, 0)","v":4}]
[39753,"Agencia","España",233573,2107.5,{"$f":"VLOOKUP(Rtdos_de_la_Empresa8[[#This Row],[Canales]],Tabla39[],2,FALSE)","v":0.2},{"$f":"Rtdos_de_la_Empresa8[[#This Row],[Margen]]*Rtdos_de_la_Empresa8[[#This Row],[Facturación]]","v":46714.600000000006},{"$f":"YEAR(Rtdos_de_la_Empresa8[[#This Row],[Fecha de Facturacion]])","v":2008},{"$f":"ROUNDUP(MONTH(Rtdos_de_la_Empresa8[[#This Row],[Fecha de Facturacion]])/3, 0)","v":4}]
[40057,"Agencia","Resto de Paises",191371,2173.5,{"$f":"VLOOKUP(Rtdos_de_la_Empresa8[[#This Row],[Canales]],Tabla39[],2,FALSE)","v":0.2},{"$f":"Rtdos_de_la_Empresa8[[#This Row],[Margen]]*Rtdos_de_la_Empresa8[[#This Row],[Facturación]]","v":38274.200000000004},{"$f":"YEAR(Rtdos_de_la_Empresa8[[#This Row],[Fecha de Facturacion]])","v":2009},{"$f":"ROUNDUP(MONTH(Rtdos_de_la_Empresa8[[#This Row],[Fecha de Facturacion]])/3, 0)","v":3}]
[40087,"Internet","Reino Unido",235053,1270.5,{"$f":"VLOOKUP(Rtdos_de_la_Empresa8[[#This Row],[Canales]],Tabla39[],2,FALSE)","v":0.4},{"$f":"Rtdos_de_la_Empresa8[[#This Row],[Margen]]*Rtdos_de_la_Empresa8[[#This Row],[Facturación]]","v":94021.200000000012},{"$f":"YEAR(Rtdos_de_la_Empresa8[[#This Row],[Fecha de Facturacion]])","v":2009},{"$f":"ROUNDUP(MONTH(Rtdos_de_la_Empresa8[[#This Row],[Fecha de Facturacion]])/3, 0)","v":4}]
[40118,"Internet","Alemania",210419,2296.5,{"$f":"VLOOKUP(Rtdos_de_la_Empresa8[[#This Row],[Canales]],Tabla39[],2,FALSE)","v":0.4},{"$f":"Rtdos_de_la_Empresa8[[#This Row],[Margen]]*Rtdos_de_la_Empresa8[[#This Row],[Facturación]]","v":84167.6},{"$f":"YEAR(Rtdos_de_la_Empresa8[[#This Row],[Fecha de Facturacion]])","v":2009},{"$f":"ROUNDUP(MONTH(Rtdos_de_la_Empresa8[[#This Row],[Fecha de Facturacion]])/3, 0)","v":4}]
[40238,"Agencia","Benelux",194737,1872,{"$f":"VLOOKUP(Rtdos_de_la_Empresa8[[#This Row],[Canales]],Tabla39[],2,FALSE)","v":0.2},{"$f":"Rtdos_de_la_Empresa8[[#This Row],[Margen]]*Rtdos_de_la_Empresa8[[#This Row],[Facturación]]","v":38947.4},{"$f":"YEAR(Rtdos_de_la_Empresa8[[#This Row],[Fecha de Facturacion]])","v":2010},{"$f":"ROUNDUP(MONTH(Rtdos_de_la_Empresa8[[#This Row],[Fecha de Facturacion]])/3, 0)","v":1}]
[39479,"Hoteles","America Norte-Sur",176151,1092,{"$f":"VLOOKUP(Rtdos_de_la_Empresa8[[#This Row],[Canales]],Tabla39[],2,FALSE)","v":0.15},{"$f":"Rtdos_de_la_Empresa8[[#This Row],[Margen]]*Rtdos_de_la_Empresa8[[#This Row],[Facturación]]","v":26422.649999999998},{"$f":"YEAR(Rtdos_de_la_Empresa8[[#This Row],[Fecha de Facturacion]])","v":2008},{"$f":"ROUNDUP(MONTH(Rtdos_de_la_Empresa8[[#This Row],[Fecha de Facturacion]])/3, 0)","v":1}]
[40238,"Hoteles","Resto de Europa",194149,654,{"$f":"VLOOKUP(Rtdos_de_la_Empresa8[[#This Row],[Canales]],Tabla39[],2,FALSE)","v":0.15},{"$f":"Rtdos_de_la_Empresa8[[#This Row],[Margen]]*Rtdos_de_la_Empresa8[[#This Row],[Facturación]]","v":29122.35},{"$f":"YEAR(Rtdos_de_la_Empresa8[[#This Row],[Fecha de Facturacion]])","v":2010},{"$f":"ROUNDUP(MONTH(Rtdos_de_la_Empresa8[[#This Row],[Fecha de Facturacion]])/3, 0)","v":1}]
[39904,"Agencia","Resto de Paises",189940,532.5,{"$f":"VLOOKUP(Rtdos_de_la_Empresa8[[#This Row],[Canales]],Tabla39[],2,FALSE)","v":0.2},{"$f":"Rtdos_de_la_Empresa8[[#This Row],[Margen]]*Rtdos_de_la_Empresa8[[#This Row],[Facturación]]","v":37988},{"$f":"YEAR(Rtdos_de_la_Empresa8[[#This Row],[Fecha de Facturacion]])","v":2009},{"$f":"ROUNDUP(MONTH(Rtdos_de_la_Empresa8[[#This Row],[Fecha de Facturacion]])/3, 0)","v":2}]
[40087,"Internet","Reino Unido",279086,2907,{"$f":"VLOOKUP(Rtdos_de_la_Empresa8[[#This Row],[Canales]],Tabla39[],2,FALSE)","v":0.4},{"$f":"Rtdos_de_la_Empresa8[[#This Row],[Margen]]*Rtdos_de_la_Empresa8[[#This Row],[Facturación]]","v":111634.40000000001},{"$f":"YEAR(Rtdos_de_la_Empresa8[[#This Row],[Fecha de Facturacion]])","v":2009},{"$f":"ROUNDUP(MONTH(Rtdos_de_la_Empresa8[[#This Row],[Fecha de Facturacion]])/3, 0)","v":4}]
[39904,"Hoteles","Rusia-Paises del Este",212260,2025,{"$f":"VLOOKUP(Rtdos_de_la_Empresa8[[#This Row],[Canales]],Tabla39[],2,FALSE)","v":0.15},{"$f":"Rtdos_de_la_Empresa8[[#This Row],[Margen]]*Rtdos_de_la_Empresa8[[#This Row],[Facturación]]","v":31839},{"$f":"YEAR(Rtdos_de_la_Empresa8[[#This Row],[Fecha de Facturacion]])","v":2009},{"$f":"ROUNDUP(MONTH(Rtdos_de_la_Empresa8[[#This Row],[Fecha de Facturacion]])/3, 0)","v":2}]
[40087,"Directo","Paises Nórdicos",234993,2667,{"$f":"VLOOKUP(Rtdos_de_la_Empresa8[[#This Row],[Canales]],Tabla39[],2,FALSE)","v":0.4},{"$f":"Rtdos_de_la_Empresa8[[#This Row],[Margen]]*Rtdos_de_la_Empresa8[[#This Row],[Facturación]]","v":93997.200000000012},{"$f":"YEAR(Rtdos_de_la_Empresa8[[#This Row],[Fecha de Facturacion]])","v":2009},{"$f":"ROUNDUP(MONTH(Rtdos_de_la_Empresa8[[#This Row],[Fecha de Facturacion]])/3, 0)","v":4}]
[40210,"Hoteles","Benelux",193438,1464,{"$f":"VLOOKUP(Rtdos_de_la_Empresa8[[#This Row],[Canales]],Tabla39[],2,FALSE)","v":0.15},{"$f":"Rtdos_de_la_Empresa8[[#This Row],[Margen]]*Rtdos_de_la_Empresa8[[#This Row],[Facturación]]","v":29015.7},{"$f":"YEAR(Rtdos_de_la_Empresa8[[#This Row],[Fecha de Facturacion]])","v":2010},{"$f":"ROUNDUP(MONTH(Rtdos_de_la_Empresa8[[#This Row],[Fecha de Facturacion]])/3, 0)","v":1}]
[40118,"Internet","Reino Unido",284503,510,{"$f":"VLOOKUP(Rtdos_de_la_Empresa8[[#This Row],[Canales]],Tabla39[],2,FALSE)","v":0.4},{"$f":"Rtdos_de_la_Empresa8[[#This Row],[Margen]]*Rtdos_de_la_Empresa8[[#This Row],[Facturación]]","v":113801.20000000001},{"$f":"YEAR(Rtdos_de_la_Empresa8[[#This Row],[Fecha de Facturacion]])","v":2009},{"$f":"ROUNDUP(MONTH(Rtdos_de_la_Empresa8[[#This Row],[Fecha de Facturacion]])/3, 0)","v":4}]
[40118,"Directo","Paises Nórdicos",382503,799.5,{"$f":"VLOOKUP(Rtdos_de_la_Empresa8[[#This Row],[Canales]],Tabla39[],2,FALSE)","v":0.4},{"$f":"Rtdos_de_la_Empresa8[[#This Row],[Margen]]*Rtdos_de_la_Empresa8[[#This Row],[Facturación]]","v":153001.20000000001},{"$f":"YEAR(Rtdos_de_la_Empresa8[[#This Row],[Fecha de Facturacion]])","v":2009},{"$f":"ROUNDUP(MONTH(Rtdos_de_la_Empresa8[[#This Row],[Fecha de Facturacion]])/3, 0)","v":4}]
[39448,"Agencia","Resto de Paises",182093,2193,{"$f":"VLOOKUP(Rtdos_de_la_Empresa8[[#This Row],[Canales]],Tabla39[],2,FALSE)","v":0.2},{"$f":"Rtdos_de_la_Empresa8[[#This Row],[Margen]]*Rtdos_de_la_Empresa8[[#This Row],[Facturación]]","v":36418.6},{"$f":"YEAR(Rtdos_de_la_Empresa8[[#This Row],[Fecha de Facturacion]])","v":2008},{"$f":"ROUNDUP(MONTH(Rtdos_de_la_Empresa8[[#This Row],[Fecha de Facturacion]])/3, 0)","v":1}]
[40057,"Internet","Alemania",208730,435,{"$f":"VLOOKUP(Rtdos_de_la_Empresa8[[#This Row],[Canales]],Tabla39[],2,FALSE)","v":0.4},{"$f":"Rtdos_de_la_Empresa8[[#This Row],[Margen]]*Rtdos_de_la_Empresa8[[#This Row],[Facturación]]","v":83492},{"$f":"YEAR(Rtdos_de_la_Empresa8[[#This Row],[Fecha de Facturacion]])","v":2009},{"$f":"ROUNDUP(MONTH(Rtdos_de_la_Empresa8[[#This Row],[Fecha de Facturacion]])/3, 0)","v":3}]
[40148,"Internet","Italia-Francia",220829,1441.5,{"$f":"VLOOKUP(Rtdos_de_la_Empresa8[[#This Row],[Canales]],Tabla39[],2,FALSE)","v":0.4},{"$f":"Rtdos_de_la_Empresa8[[#This Row],[Margen]]*Rtdos_de_la_Empresa8[[#This Row],[Facturación]]","v":88331.6},{"$f":"YEAR(Rtdos_de_la_Empresa8[[#This Row],[Fecha de Facturacion]])","v":2009},{"$f":"ROUNDUP(MONTH(Rtdos_de_la_Empresa8[[#This Row],[Fecha de Facturacion]])/3, 0)","v":4}]
[39753,"Agencia","España",209568,1822.5,{"$f":"VLOOKUP(Rtdos_de_la_Empresa8[[#This Row],[Canales]],Tabla39[],2,FALSE)","v":0.2},{"$f":"Rtdos_de_la_Empresa8[[#This Row],[Margen]]*Rtdos_de_la_Empresa8[[#This Row],[Facturación]]","v":41913.600000000006},{"$f":"YEAR(Rtdos_de_la_Empresa8[[#This Row],[Fecha de Facturacion]])","v":2008},{"$f":"ROUNDUP(MONTH(Rtdos_de_la_Empresa8[[#This Row],[Fecha de Facturacion]])/3, 0)","v":4}]
[39965,"Hoteles","Rusia-Paises del Este",209163,2580,{"$f":"VLOOKUP(Rtdos_de_la_Empresa8[[#This Row],[Canales]],Tabla39[],2,FALSE)","v":0.15},{"$f":"Rtdos_de_la_Empresa8[[#This Row],[Margen]]*Rtdos_de_la_Empresa8[[#This Row],[Facturación]]","v":31374.449999999997},{"$f":"YEAR(Rtdos_de_la_Empresa8[[#This Row],[Fecha de Facturacion]])","v":2009},{"$f":"ROUNDUP(MONTH(Rtdos_de_la_Empresa8[[#This Row],[Fecha de Facturacion]])/3, 0)","v":2}]
[39448,"Hoteles","America Norte-Sur",175541,733.5,{"$f":"VLOOKUP(Rtdos_de_la_Empresa8[[#This Row],[Canales]],Tabla39[],2,FALSE)","v":0.15},{"$f":"Rtdos_de_la_Empresa8[[#This Row],[Margen]]*Rtdos_de_la_Empresa8[[#This Row],[Facturación]]","v":26331.149999999998},{"$f":"YEAR(Rtdos_de_la_Empresa8[[#This Row],[Fecha de Facturacion]])","v":2008},{"$f":"ROUNDUP(MONTH(Rtdos_de_la_Empresa8[[#This Row],[Fecha de Facturacion]])/3, 0)","v":1}]
[40118,"Internet","Paises Nórdicos",291557,2860.5,{"$f":"VLOOKUP(Rtdos_de_la_Empresa8[[#This Row],[Canales]],Tabla39[],2,FALSE)","v":0.4},{"$f":"Rtdos_de_la_Empresa8[[#This Row],[Margen]]*Rtdos_de_la_Empresa8[[#This Row],[Facturación]]","v":116622.8},{"$f":"YEAR(Rtdos_de_la_Empresa8[[#This Row],[Fecha de Facturacion]])","v":2009},{"$f":"ROUNDUP(MONTH(Rtdos_de_la_Empresa8[[#This Row],[Fecha de Facturacion]])/3, 0)","v":4}]
[39661,"Internet","Alemania",199937,2139,{"$f":"VLOOKUP(Rtdos_de_la_Empresa8[[#This Row],[Canales]],Tabla39[],2,FALSE)","v":0.4},{"$f":"Rtdos_de_la_Empresa8[[#This Row],[Margen]]*Rtdos_de_la_Empresa8[[#This Row],[Facturación]]","v":79974.8},{"$f":"YEAR(Rtdos_de_la_Empresa8[[#This Row],[Fecha de Facturacion]])","v":2008},{"$f":"ROUNDUP(MONTH(Rtdos_de_la_Empresa8[[#This Row],[Fecha de Facturacion]])/3, 0)","v":3}]
[40026,"Hoteles","Resto de Europa",193726,2391,{"$f":"VLOOKUP(Rtdos_de_la_Empresa8[[#This Row],[Canales]],Tabla39[],2,FALSE)","v":0.15},{"$f":"Rtdos_de_la_Empresa8[[#This Row],[Margen]]*Rtdos_de_la_Empresa8[[#This Row],[Facturación]]","v":29058.899999999998},{"$f":"YEAR(Rtdos_de_la_Empresa8[[#This Row],[Fecha de Facturacion]])","v":2009},{"$f":"ROUNDUP(MONTH(Rtdos_de_la_Empresa8[[#This Row],[Fecha de Facturacion]])/3, 0)","v":3}]
[39479,"Directo","Resto de Europa",182711,1068,{"$f":"VLOOKUP(Rtdos_de_la_Empresa8[[#This Row],[Canales]],Tabla39[],2,FALSE)","v":0.4},{"$f":"Rtdos_de_la_Empresa8[[#This Row],[Margen]]*Rtdos_de_la_Empresa8[[#This Row],[Facturación]]","v":73084.400000000009},{"$f":"YEAR(Rtdos_de_la_Empresa8[[#This Row],[Fecha de Facturacion]])","v":2008},{"$f":"ROUNDUP(MONTH(Rtdos_de_la_Empresa8[[#This Row],[Fecha de Facturacion]])/3, 0)","v":1}]
[39845,"Directo","Alemania",197283,1267.5,{"$f":"VLOOKUP(Rtdos_de_la_Empresa8[[#This Row],[Canales]],Tabla39[],2,FALSE)","v":0.4},{"$f":"Rtdos_de_la_Empresa8[[#This Row],[Margen]]*Rtdos_de_la_Empresa8[[#This Row],[Facturación]]","v":78913.200000000012},{"$f":"YEAR(Rtdos_de_la_Empresa8[[#This Row],[Fecha de Facturacion]])","v":2009},{"$f":"ROUNDUP(MONTH(Rtdos_de_la_Empresa8[[#This Row],[Fecha de Facturacion]])/3, 0)","v":1}]
[40179,"Directo","Resto de Europa",171705,2172,{"$f":"VLOOKUP(Rtdos_de_la_Empresa8[[#This Row],[Canales]],Tabla39[],2,FALSE)","v":0.4},{"$f":"Rtdos_de_la_Empresa8[[#This Row],[Margen]]*Rtdos_de_la_Empresa8[[#This Row],[Facturación]]","v":68682},{"$f":"YEAR(Rtdos_de_la_Empresa8[[#This Row],[Fecha de Facturacion]])","v":2010},{"$f":"ROUNDUP(MONTH(Rtdos_de_la_Empresa8[[#This Row],[Fecha de Facturacion]])/3, 0)","v":1}]
[40360,"Hoteles","Rusia-Paises del Este",207355,529.5,{"$f":"VLOOKUP(Rtdos_de_la_Empresa8[[#This Row],[Canales]],Tabla39[],2,FALSE)","v":0.15},{"$f":"Rtdos_de_la_Empresa8[[#This Row],[Margen]]*Rtdos_de_la_Empresa8[[#This Row],[Facturación]]","v":31103.25},{"$f":"YEAR(Rtdos_de_la_Empresa8[[#This Row],[Fecha de Facturacion]])","v":2010},{"$f":"ROUNDUP(MONTH(Rtdos_de_la_Empresa8[[#This Row],[Fecha de Facturacion]])/3, 0)","v":3}]
[40179,"Internet","Italia-Francia",219347,381,{"$f":"VLOOKUP(Rtdos_de_la_Empresa8[[#This Row],[Canales]],Tabla39[],2,FALSE)","v":0.4},{"$f":"Rtdos_de_la_Empresa8[[#This Row],[Margen]]*Rtdos_de_la_Empresa8[[#This Row],[Facturación]]","v":87738.8},{"$f":"YEAR(Rtdos_de_la_Empresa8[[#This Row],[Fecha de Facturacion]])","v":2010},{"$f":"ROUNDUP(MONTH(Rtdos_de_la_Empresa8[[#This Row],[Fecha de Facturacion]])/3, 0)","v":1}]
[40330,"Agencia","España",207811,2740.5,{"$f":"VLOOKUP(Rtdos_de_la_Empresa8[[#This Row],[Canales]],Tabla39[],2,FALSE)","v":0.2},{"$f":"Rtdos_de_la_Empresa8[[#This Row],[Margen]]*Rtdos_de_la_Empresa8[[#This Row],[Facturación]]","v":41562.200000000004},{"$f":"YEAR(Rtdos_de_la_Empresa8[[#This Row],[Fecha de Facturacion]])","v":2010},{"$f":"ROUNDUP(MONTH(Rtdos_de_la_Empresa8[[#This Row],[Fecha de Facturacion]])/3, 0)","v":2}]
[40269,"Agencia","Rusia-Paises del Este",200510,1546.5,{"$f":"VLOOKUP(Rtdos_de_la_Empresa8[[#This Row],[Canales]],Tabla39[],2,FALSE)","v":0.2},{"$f":"Rtdos_de_la_Empresa8[[#This Row],[Margen]]*Rtdos_de_la_Empresa8[[#This Row],[Facturación]]","v":40102},{"$f":"YEAR(Rtdos_de_la_Empresa8[[#This Row],[Fecha de Facturacion]])","v":2010},{"$f":"ROUNDUP(MONTH(Rtdos_de_la_Empresa8[[#This Row],[Fecha de Facturacion]])/3, 0)","v":2}]
[39814,"Internet","Resto de Paises",181389,1813.5,{"$f":"VLOOKUP(Rtdos_de_la_Empresa8[[#This Row],[Canales]],Tabla39[],2,FALSE)","v":0.4},{"$f":"Rtdos_de_la_Empresa8[[#This Row],[Margen]]*Rtdos_de_la_Empresa8[[#This Row],[Facturación]]","v":72555.600000000006},{"$f":"YEAR(Rtdos_de_la_Empresa8[[#This Row],[Fecha de Facturacion]])","v":2009},{"$f":"ROUNDUP(MONTH(Rtdos_de_la_Empresa8[[#This Row],[Fecha de Facturacion]])/3, 0)","v":1}]
[40238,"Hoteles","Benelux",187401,622.5,{"$f":"VLOOKUP(Rtdos_de_la_Empresa8[[#This Row],[Canales]],Tabla39[],2,FALSE)","v":0.15},{"$f":"Rtdos_de_la_Empresa8[[#This Row],[Margen]]*Rtdos_de_la_Empresa8[[#This Row],[Facturación]]","v":28110.149999999998},{"$f":"YEAR(Rtdos_de_la_Empresa8[[#This Row],[Fecha de Facturacion]])","v":2010},{"$f":"ROUNDUP(MONTH(Rtdos_de_la_Empresa8[[#This Row],[Fecha de Facturacion]])/3, 0)","v":1}]
[39965,"Agencia","España",203635,1875,{"$f":"VLOOKUP(Rtdos_de_la_Empresa8[[#This Row],[Canales]],Tabla39[],2,FALSE)","v":0.2},{"$f":"Rtdos_de_la_Empresa8[[#This Row],[Margen]]*Rtdos_de_la_Empresa8[[#This Row],[Facturación]]","v":40727},{"$f":"YEAR(Rtdos_de_la_Empresa8[[#This Row],[Fecha de Facturacion]])","v":2009},{"$f":"ROUNDUP(MONTH(Rtdos_de_la_Empresa8[[#This Row],[Fecha de Facturacion]])/3, 0)","v":2}]
[39661,"Hoteles","America Norte-Sur",167356,2814,{"$f":"VLOOKUP(Rtdos_de_la_Empresa8[[#This Row],[Canales]],Tabla39[],2,FALSE)","v":0.15},{"$f":"Rtdos_de_la_Empresa8[[#This Row],[Margen]]*Rtdos_de_la_Empresa8[[#This Row],[Facturación]]","v":25103.399999999998},{"$f":"YEAR(Rtdos_de_la_Empresa8[[#This Row],[Fecha de Facturacion]])","v":2008},{"$f":"ROUNDUP(MONTH(Rtdos_de_la_Empresa8[[#This Row],[Fecha de Facturacion]])/3, 0)","v":3}]
[40148,"Internet","Reino Unido",142308,2167.5,{"$f":"VLOOKUP(Rtdos_de_la_Empresa8[[#This Row],[Canales]],Tabla39[],2,FALSE)","v":0.4},{"$f":"Rtdos_de_la_Empresa8[[#This Row],[Margen]]*Rtdos_de_la_Empresa8[[#This Row],[Facturación]]","v":56923.200000000004},{"$f":"YEAR(Rtdos_de_la_Empresa8[[#This Row],[Fecha de Facturacion]])","v":2009},{"$f":"ROUNDUP(MONTH(Rtdos_de_la_Empresa8[[#This Row],[Fecha de Facturacion]])/3, 0)","v":4}]
[40148,"Internet","Paises Nórdicos",146173,2352,{"$f":"VLOOKUP(Rtdos_de_la_Empresa8[[#This Row],[Canales]],Tabla39[],2,FALSE)","v":0.4},{"$f":"Rtdos_de_la_Empresa8[[#This Row],[Margen]]*Rtdos_de_la_Empresa8[[#This Row],[Facturación]]","v":58469.200000000004},{"$f":"YEAR(Rtdos_de_la_Empresa8[[#This Row],[Fecha de Facturacion]])","v":2009},{"$f":"ROUNDUP(MONTH(Rtdos_de_la_Empresa8[[#This Row],[Fecha de Facturacion]])/3, 0)","v":4}]
[39630,"Hoteles","Benelux",182235,513,{"$f":"VLOOKUP(Rtdos_de_la_Empresa8[[#This Row],[Canales]],Tabla39[],2,FALSE)","v":0.15},{"$f":"Rtdos_de_la_Empresa8[[#This Row],[Margen]]*Rtdos_de_la_Empresa8[[#This Row],[Facturación]]","v":27335.25},{"$f":"YEAR(Rtdos_de_la_Empresa8[[#This Row],[Fecha de Facturacion]])","v":2008},{"$f":"ROUNDUP(MONTH(Rtdos_de_la_Empresa8[[#This Row],[Fecha de Facturacion]])/3, 0)","v":3}]
[40210,"Internet","Italia-Francia",206255,2845.5,{"$f":"VLOOKUP(Rtdos_de_la_Empresa8[[#This Row],[Canales]],Tabla39[],2,FALSE)","v":0.4},{"$f":"Rtdos_de_la_Empresa8[[#This Row],[Margen]]*Rtdos_de_la_Empresa8[[#This Row],[Facturación]]","v":82502},{"$f":"YEAR(Rtdos_de_la_Empresa8[[#This Row],[Fecha de Facturacion]])","v":2010},{"$f":"ROUNDUP(MONTH(Rtdos_de_la_Empresa8[[#This Row],[Fecha de Facturacion]])/3, 0)","v":1}]
[40179,"Agencia","Reino Unido",319192,1231.5,{"$f":"VLOOKUP(Rtdos_de_la_Empresa8[[#This Row],[Canales]],Tabla39[],2,FALSE)","v":0.2},{"$f":"Rtdos_de_la_Empresa8[[#This Row],[Margen]]*Rtdos_de_la_Empresa8[[#This Row],[Facturación]]","v":63838.400000000001},{"$f":"YEAR(Rtdos_de_la_Empresa8[[#This Row],[Fecha de Facturacion]])","v":2010},{"$f":"ROUNDUP(MONTH(Rtdos_de_la_Empresa8[[#This Row],[Fecha de Facturacion]])/3, 0)","v":1}]
[39814,"Directo","Italia-Francia",200639,2898,{"$f":"VLOOKUP(Rtdos_de_la_Empresa8[[#This Row],[Canales]],Tabla39[],2,FALSE)","v":0.4},{"$f":"Rtdos_de_la_Empresa8[[#This Row],[Margen]]*Rtdos_de_la_Empresa8[[#This Row],[Facturación]]","v":80255.600000000006},{"$f":"YEAR(Rtdos_de_la_Empresa8[[#This Row],[Fecha de Facturacion]])","v":2009},{"$f":"ROUNDUP(MONTH(Rtdos_de_la_Empresa8[[#This Row],[Fecha de Facturacion]])/3, 0)","v":1}]
[40057,"Agencia","America Norte-Sur",164646,741,{"$f":"VLOOKUP(Rtdos_de_la_Empresa8[[#This Row],[Canales]],Tabla39[],2,FALSE)","v":0.2},{"$f":"Rtdos_de_la_Empresa8[[#This Row],[Margen]]*Rtdos_de_la_Empresa8[[#This Row],[Facturación]]","v":32929.200000000004},{"$f":"YEAR(Rtdos_de_la_Empresa8[[#This Row],[Fecha de Facturacion]])","v":2009},{"$f":"ROUNDUP(MONTH(Rtdos_de_la_Empresa8[[#This Row],[Fecha de Facturacion]])/3, 0)","v":3}]
[39661,"Directo","Resto de Paises",175883,2986.5,{"$f":"VLOOKUP(Rtdos_de_la_Empresa8[[#This Row],[Canales]],Tabla39[],2,FALSE)","v":0.4},{"$f":"Rtdos_de_la_Empresa8[[#This Row],[Margen]]*Rtdos_de_la_Empresa8[[#This Row],[Facturación]]","v":70353.2},{"$f":"YEAR(Rtdos_de_la_Empresa8[[#This Row],[Fecha de Facturacion]])","v":2008},{"$f":"ROUNDUP(MONTH(Rtdos_de_la_Empresa8[[#This Row],[Fecha de Facturacion]])/3, 0)","v":3}]
[40299,"Hoteles","Rusia-Paises del Este",191076,988.5,{"$f":"VLOOKUP(Rtdos_de_la_Empresa8[[#This Row],[Canales]],Tabla39[],2,FALSE)","v":0.15},{"$f":"Rtdos_de_la_Empresa8[[#This Row],[Margen]]*Rtdos_de_la_Empresa8[[#This Row],[Facturación]]","v":28661.399999999998},{"$f":"YEAR(Rtdos_de_la_Empresa8[[#This Row],[Fecha de Facturacion]])","v":2010},{"$f":"ROUNDUP(MONTH(Rtdos_de_la_Empresa8[[#This Row],[Fecha de Facturacion]])/3, 0)","v":2}]
[40026,"Agencia","Benelux",178073,432,{"$f":"VLOOKUP(Rtdos_de_la_Empresa8[[#This Row],[Canales]],Tabla39[],2,FALSE)","v":0.2},{"$f":"Rtdos_de_la_Empresa8[[#This Row],[Margen]]*Rtdos_de_la_Empresa8[[#This Row],[Facturación]]","v":35614.6},{"$f":"YEAR(Rtdos_de_la_Empresa8[[#This Row],[Fecha de Facturacion]])","v":2009},{"$f":"ROUNDUP(MONTH(Rtdos_de_la_Empresa8[[#This Row],[Fecha de Facturacion]])/3, 0)","v":3}]
[40179,"Internet","Paises Nórdicos",289397,1921.5,{"$f":"VLOOKUP(Rtdos_de_la_Empresa8[[#This Row],[Canales]],Tabla39[],2,FALSE)","v":0.4},{"$f":"Rtdos_de_la_Empresa8[[#This Row],[Margen]]*Rtdos_de_la_Empresa8[[#This Row],[Facturación]]","v":115758.8},{"$f":"YEAR(Rtdos_de_la_Empresa8[[#This Row],[Fecha de Facturacion]])","v":2010},{"$f":"ROUNDUP(MONTH(Rtdos_de_la_Empresa8[[#This Row],[Fecha de Facturacion]])/3, 0)","v":1}]
[39539,"Directo","España",202802,2128.5,{"$f":"VLOOKUP(Rtdos_de_la_Empresa8[[#This Row],[Canales]],Tabla39[],2,FALSE)","v":0.4},{"$f":"Rtdos_de_la_Empresa8[[#This Row],[Margen]]*Rtdos_de_la_Empresa8[[#This Row],[Facturación]]","v":81120.800000000003},{"$f":"YEAR(Rtdos_de_la_Empresa8[[#This Row],[Fecha de Facturacion]])","v":2008},{"$f":"ROUNDUP(MONTH(Rtdos_de_la_Empresa8[[#This Row],[Fecha de Facturacion]])/3, 0)","v":2}]
[39904,"Hoteles","America Norte-Sur",160498,2598,{"$f":"VLOOKUP(Rtdos_de_la_Empresa8[[#This Row],[Canales]],Tabla39[],2,FALSE)","v":0.15},{"$f":"Rtdos_de_la_Empresa8[[#This Row],[Margen]]*Rtdos_de_la_Empresa8[[#This Row],[Facturación]]","v":24074.7},{"$f":"YEAR(Rtdos_de_la_Empresa8[[#This Row],[Fecha de Facturacion]])","v":2009},{"$f":"ROUNDUP(MONTH(Rtdos_de_la_Empresa8[[#This Row],[Fecha de Facturacion]])/3, 0)","v":2}]
[40057,"Directo","Resto de Europa",166997,2221.5,{"$f":"VLOOKUP(Rtdos_de_la_Empresa8[[#This Row],[Canales]],Tabla39[],2,FALSE)","v":0.4},{"$f":"Rtdos_de_la_Empresa8[[#This Row],[Margen]]*Rtdos_de_la_Empresa8[[#This Row],[Facturación]]","v":66798.8},{"$f":"YEAR(Rtdos_de_la_Empresa8[[#This Row],[Fecha de Facturacion]])","v":2009},{"$f":"ROUNDUP(MONTH(Rtdos_de_la_Empresa8[[#This Row],[Fecha de Facturacion]])/3, 0)","v":3}]
[39934,"Directo","Resto de Paises",165051,1284,{"$f":"VLOOKUP(Rtdos_de_la_Empresa8[[#This Row],[Canales]],Tabla39[],2,FALSE)","v":0.4},{"$f":"Rtdos_de_la_Empresa8[[#This Row],[Margen]]*Rtdos_de_la_Empresa8[[#This Row],[Facturación]]","v":66020.400000000009},{"$f":"YEAR(Rtdos_de_la_Empresa8[[#This Row],[Fecha de Facturacion]])","v":2009},{"$f":"ROUNDUP(MONTH(Rtdos_de_la_Empresa8[[#This Row],[Fecha de Facturacion]])/3, 0)","v":2}]
[39783,"Directo","Alemania",197229,2385,{"$f":"VLOOKUP(Rtdos_de_la_Empresa8[[#This Row],[Canales]],Tabla39[],2,FALSE)","v":0.4},{"$f":"Rtdos_de_la_Empresa8[[#This Row],[Margen]]*Rtdos_de_la_Empresa8[[#This Row],[Facturación]]","v":78891.600000000006},{"$f":"YEAR(Rtdos_de_la_Empresa8[[#This Row],[Fecha de Facturacion]])","v":2008},{"$f":"ROUNDUP(MONTH(Rtdos_de_la_Empresa8[[#This Row],[Fecha de Facturacion]])/3, 0)","v":4}]
[40360,"Hoteles","Rusia-Paises del Este",187598,2121,{"$f":"VLOOKUP(Rtdos_de_la_Empresa8[[#This Row],[Canales]],Tabla39[],2,FALSE)","v":0.15},{"$f":"Rtdos_de_la_Empresa8[[#This Row],[Margen]]*Rtdos_de_la_Empresa8[[#This Row],[Facturación]]","v":28139.7},{"$f":"YEAR(Rtdos_de_la_Empresa8[[#This Row],[Fecha de Facturacion]])","v":2010},{"$f":"ROUNDUP(MONTH(Rtdos_de_la_Empresa8[[#This Row],[Fecha de Facturacion]])/3, 0)","v":3}]
[40148,"Hoteles","America Norte-Sur",156505,2311.5,{"$f":"VLOOKUP(Rtdos_de_la_Empresa8[[#This Row],[Canales]],Tabla39[],2,FALSE)","v":0.15},{"$f":"Rtdos_de_la_Empresa8[[#This Row],[Margen]]*Rtdos_de_la_Empresa8[[#This Row],[Facturación]]","v":23475.75},{"$f":"YEAR(Rtdos_de_la_Empresa8[[#This Row],[Fecha de Facturacion]])","v":2009},{"$f":"ROUNDUP(MONTH(Rtdos_de_la_Empresa8[[#This Row],[Fecha de Facturacion]])/3, 0)","v":4}]
[39873,"Directo","Resto de Paises",161611,448.5,{"$f":"VLOOKUP(Rtdos_de_la_Empresa8[[#This Row],[Canales]],Tabla39[],2,FALSE)","v":0.4},{"$f":"Rtdos_de_la_Empresa8[[#This Row],[Margen]]*Rtdos_de_la_Empresa8[[#This Row],[Facturación]]","v":64644.4},{"$f":"YEAR(Rtdos_de_la_Empresa8[[#This Row],[Fecha de Facturacion]])","v":2009},{"$f":"ROUNDUP(MONTH(Rtdos_de_la_Empresa8[[#This Row],[Fecha de Facturacion]])/3, 0)","v":1}]
[40148,"Directo","España",202522,2932.5,{"$f":"VLOOKUP(Rtdos_de_la_Empresa8[[#This Row],[Canales]],Tabla39[],2,FALSE)","v":0.4},{"$f":"Rtdos_de_la_Empresa8[[#This Row],[Margen]]*Rtdos_de_la_Empresa8[[#This Row],[Facturación]]","v":81008.800000000003},{"$f":"YEAR(Rtdos_de_la_Empresa8[[#This Row],[Fecha de Facturacion]])","v":2009},{"$f":"ROUNDUP(MONTH(Rtdos_de_la_Empresa8[[#This Row],[Fecha de Facturacion]])/3, 0)","v":4}]
[39934,"Directo","Alemania",187427,2128.5,{"$f":"VLOOKUP(Rtdos_de_la_Empresa8[[#This Row],[Canales]],Tabla39[],2,FALSE)","v":0.4},{"$f":"Rtdos_de_la_Empresa8[[#This Row],[Margen]]*Rtdos_de_la_Empresa8[[#This Row],[Facturación]]","v":74970.8},{"$f":"YEAR(Rtdos_de_la_Empresa8[[#This Row],[Fecha de Facturacion]])","v":2009},{"$f":"ROUNDUP(MONTH(Rtdos_de_la_Empresa8[[#This Row],[Fecha de Facturacion]])/3, 0)","v":2}]
[40087,"Agencia","Benelux",177451,1402.5,{"$f":"VLOOKUP(Rtdos_de_la_Empresa8[[#This Row],[Canales]],Tabla39[],2,FALSE)","v":0.2},{"$f":"Rtdos_de_la_Empresa8[[#This Row],[Margen]]*Rtdos_de_la_Empresa8[[#This Row],[Facturación]]","v":35490.200000000004},{"$f":"YEAR(Rtdos_de_la_Empresa8[[#This Row],[Fecha de Facturacion]])","v":2009},{"$f":"ROUNDUP(MONTH(Rtdos_de_la_Empresa8[[#This Row],[Fecha de Facturacion]])/3, 0)","v":4}]
[40210,"Internet","Paises Nórdicos",369877,2812.5,{"$f":"VLOOKUP(Rtdos_de_la_Empresa8[[#This Row],[Canales]],Tabla39[],2,FALSE)","v":0.4},{"$f":"Rtdos_de_la_Empresa8[[#This Row],[Margen]]*Rtdos_de_la_Empresa8[[#This Row],[Facturación]]","v":147950.80000000002},{"$f":"YEAR(Rtdos_de_la_Empresa8[[#This Row],[Fecha de Facturacion]])","v":2010},{"$f":"ROUNDUP(MONTH(Rtdos_de_la_Empresa8[[#This Row],[Fecha de Facturacion]])/3, 0)","v":1}]
[40210,"Agencia","Reino Unido",325366,2503.5,{"$f":"VLOOKUP(Rtdos_de_la_Empresa8[[#This Row],[Canales]],Tabla39[],2,FALSE)","v":0.2},{"$f":"Rtdos_de_la_Empresa8[[#This Row],[Margen]]*Rtdos_de_la_Empresa8[[#This Row],[Facturación]]","v":65073.200000000004},{"$f":"YEAR(Rtdos_de_la_Empresa8[[#This Row],[Fecha de Facturacion]])","v":2010},{"$f":"ROUNDUP(MONTH(Rtdos_de_la_Empresa8[[#This Row],[Fecha de Facturacion]])/3, 0)","v":1}]
[39661,"Directo","Resto de Europa",165619,1998,{"$f":"VLOOKUP(Rtdos_de_la_Empresa8[[#This Row],[Canales]],Tabla39[],2,FALSE)","v":0.4},{"$f":"Rtdos_de_la_Empresa8[[#This Row],[Margen]]*Rtdos_de_la_Empresa8[[#This Row],[Facturación]]","v":66247.600000000006},{"$f":"YEAR(Rtdos_de_la_Empresa8[[#This Row],[Fecha de Facturacion]])","v":2008},{"$f":"ROUNDUP(MONTH(Rtdos_de_la_Empresa8[[#This Row],[Fecha de Facturacion]])/3, 0)","v":3}]
[40391,"Directo","Italia-Francia",199606,1681.5,{"$f":"VLOOKUP(Rtdos_de_la_Empresa8[[#This Row],[Canales]],Tabla39[],2,FALSE)","v":0.4},{"$f":"Rtdos_de_la_Empresa8[[#This Row],[Margen]]*Rtdos_de_la_Empresa8[[#This Row],[Facturación]]","v":79842.400000000009},{"$f":"YEAR(Rtdos_de_la_Empresa8[[#This Row],[Fecha de Facturacion]])","v":2010},{"$f":"ROUNDUP(MONTH(Rtdos_de_la_Empresa8[[#This Row],[Fecha de Facturacion]])/3, 0)","v":3}]
[40118,"Directo","Resto de Europa",161196,1864.5,{"$f":"VLOOKUP(Rtdos_de_la_Empresa8[[#This Row],[Canales]],Tabla39[],2,FALSE)","v":0.4},{"$f":"Rtdos_de_la_Empresa8[[#This Row],[Margen]]*Rtdos_de_la_Empresa8[[#This Row],[Facturación]]","v":64478.400000000001},{"$f":"YEAR(Rtdos_de_la_Empresa8[[#This Row],[Fecha de Facturacion]])","v":2009},{"$f":"ROUNDUP(MONTH(Rtdos_de_la_Empresa8[[#This Row],[Fecha de Facturacion]])/3, 0)","v":4}]
[40210,"Agencia","Reino Unido",111440,1999.5,{"$f":"VLOOKUP(Rtdos_de_la_Empresa8[[#This Row],[Canales]],Tabla39[],2,FALSE)","v":0.2},{"$f":"Rtdos_de_la_Empresa8[[#This Row],[Margen]]*Rtdos_de_la_Empresa8[[#This Row],[Facturación]]","v":22288},{"$f":"YEAR(Rtdos_de_la_Empresa8[[#This Row],[Fecha de Facturacion]])","v":2010},{"$f":"ROUNDUP(MONTH(Rtdos_de_la_Empresa8[[#This Row],[Fecha de Facturacion]])/3, 0)","v":1}]
[40210,"Internet","Paises Nórdicos",106717,2488.5,{"$f":"VLOOKUP(Rtdos_de_la_Empresa8[[#This Row],[Canales]],Tabla39[],2,FALSE)","v":0.4},{"$f":"Rtdos_de_la_Empresa8[[#This Row],[Margen]]*Rtdos_de_la_Empresa8[[#This Row],[Facturación]]","v":42686.8},{"$f":"YEAR(Rtdos_de_la_Empresa8[[#This Row],[Fecha de Facturacion]])","v":2010},{"$f":"ROUNDUP(MONTH(Rtdos_de_la_Empresa8[[#This Row],[Fecha de Facturacion]])/3, 0)","v":1}]
[40422,"Directo","Resto de Paises",160930,1575,{"$f":"VLOOKUP(Rtdos_de_la_Empresa8[[#This Row],[Canales]],Tabla39[],2,FALSE)","v":0.4},{"$f":"Rtdos_de_la_Empresa8[[#This Row],[Margen]]*Rtdos_de_la_Empresa8[[#This Row],[Facturación]]","v":64372},{"$f":"YEAR(Rtdos_de_la_Empresa8[[#This Row],[Fecha de Facturacion]])","v":2010},{"$f":"ROUNDUP(MONTH(Rtdos_de_la_Empresa8[[#This Row],[Fecha de Facturacion]])/3, 0)","v":3}]
[40179,"Hoteles","Alemania",176790,2335.5,{"$f":"VLOOKUP(Rtdos_de_la_Empresa8[[#This Row],[Canales]],Tabla39[],2,FALSE)","v":0.15},{"$f":"Rtdos_de_la_Empresa8[[#This Row],[Margen]]*Rtdos_de_la_Empresa8[[#This Row],[Facturación]]","v":26518.5},{"$f":"YEAR(Rtdos_de_la_Empresa8[[#This Row],[Fecha de Facturacion]])","v":2010},{"$f":"ROUNDUP(MONTH(Rtdos_de_la_Empresa8[[#This Row],[Fecha de Facturacion]])/3, 0)","v":1}]
[39814,"Hoteles","Alemania",175104,1627.5,{"$f":"VLOOKUP(Rtdos_de_la_Empresa8[[#This Row],[Canales]],Tabla39[],2,FALSE)","v":0.15},{"$f":"Rtdos_de_la_Empresa8[[#This Row],[Margen]]*Rtdos_de_la_Empresa8[[#This Row],[Facturación]]","v":26265.599999999999},{"$f":"YEAR(Rtdos_de_la_Empresa8[[#This Row],[Fecha de Facturacion]])","v":2009},{"$f":"ROUNDUP(MONTH(Rtdos_de_la_Empresa8[[#This Row],[Fecha de Facturacion]])/3, 0)","v":1}]
[39661,"Hoteles","Benelux",170385,2785.5,{"$f":"VLOOKUP(Rtdos_de_la_Empresa8[[#This Row],[Canales]],Tabla39[],2,FALSE)","v":0.15},{"$f":"Rtdos_de_la_Empresa8[[#This Row],[Margen]]*Rtdos_de_la_Empresa8[[#This Row],[Facturación]]","v":25557.75},{"$f":"YEAR(Rtdos_de_la_Empresa8[[#This Row],[Fecha de Facturacion]])","v":2008},{"$f":"ROUNDUP(MONTH(Rtdos_de_la_Empresa8[[#This Row],[Fecha de Facturacion]])/3, 0)","v":3}]
[39569,"Directo","Resto de Europa",151628,1752,{"$f":"VLOOKUP(Rtdos_de_la_Empresa8[[#This Row],[Canales]],Tabla39[],2,FALSE)","v":0.4},{"$f":"Rtdos_de_la_Empresa8[[#This Row],[Margen]]*Rtdos_de_la_Empresa8[[#This Row],[Facturación]]","v":60651.200000000004},{"$f":"YEAR(Rtdos_de_la_Empresa8[[#This Row],[Fecha de Facturacion]])","v":2008},{"$f":"ROUNDUP(MONTH(Rtdos_de_la_Empresa8[[#This Row],[Fecha de Facturacion]])/3, 0)","v":2}]
[39692,"Hoteles","America Norte-Sur",153765,1818,{"$f":"VLOOKUP(Rtdos_de_la_Empresa8[[#This Row],[Canales]],Tabla39[],2,FALSE)","v":0.15},{"$f":"Rtdos_de_la_Empresa8[[#This Row],[Margen]]*Rtdos_de_la_Empresa8[[#This Row],[Facturación]]","v":23064.75},{"$f":"YEAR(Rtdos_de_la_Empresa8[[#This Row],[Fecha de Facturacion]])","v":2008},{"$f":"ROUNDUP(MONTH(Rtdos_de_la_Empresa8[[#This Row],[Fecha de Facturacion]])/3, 0)","v":3}]
[39479,"Internet","España",200007,979.5,{"$f":"VLOOKUP(Rtdos_de_la_Empresa8[[#This Row],[Canales]],Tabla39[],2,FALSE)","v":0.4},{"$f":"Rtdos_de_la_Empresa8[[#This Row],[Margen]]*Rtdos_de_la_Empresa8[[#This Row],[Facturación]]","v":80002.8},{"$f":"YEAR(Rtdos_de_la_Empresa8[[#This Row],[Fecha de Facturacion]])","v":2008},{"$f":"ROUNDUP(MONTH(Rtdos_de_la_Empresa8[[#This Row],[Fecha de Facturacion]])/3, 0)","v":1}]
[40238,"Agencia","Reino Unido",304559,1375.5,{"$f":"VLOOKUP(Rtdos_de_la_Empresa8[[#This Row],[Canales]],Tabla39[],2,FALSE)","v":0.2},{"$f":"Rtdos_de_la_Empresa8[[#This Row],[Margen]]*Rtdos_de_la_Empresa8[[#This Row],[Facturación]]","v":60911.8},{"$f":"YEAR(Rtdos_de_la_Empresa8[[#This Row],[Fecha de Facturacion]])","v":2010},{"$f":"ROUNDUP(MONTH(Rtdos_de_la_Empresa8[[#This Row],[Fecha de Facturacion]])/3, 0)","v":1}]
[40057,"Internet","España",195164,2887.5,{"$f":"VLOOKUP(Rtdos_de_la_Empresa8[[#This Row],[Canales]],Tabla39[],2,FALSE)","v":0.4},{"$f":"Rtdos_de_la_Empresa8[[#This Row],[Margen]]*Rtdos_de_la_Empresa8[[#This Row],[Facturación]]","v":78065.600000000006},{"$f":"YEAR(Rtdos_de_la_Empresa8[[#This Row],[Fecha de Facturacion]])","v":2009},{"$f":"ROUNDUP(MONTH(Rtdos_de_la_Empresa8[[#This Row],[Fecha de Facturacion]])/3, 0)","v":3}]
[40238,"Internet","Paises Nórdicos",175061,1281,{"$f":"VLOOKUP(Rtdos_de_la_Empresa8[[#This Row],[Canales]],Tabla39[],2,FALSE)","v":0.4},{"$f":"Rtdos_de_la_Empresa8[[#This Row],[Margen]]*Rtdos_de_la_Empresa8[[#This Row],[Facturación]]","v":70024.400000000009},{"$f":"YEAR(Rtdos_de_la_Empresa8[[#This Row],[Fecha de Facturacion]])","v":2010},{"$f":"ROUNDUP(MONTH(Rtdos_de_la_Empresa8[[#This Row],[Fecha de Facturacion]])/3, 0)","v":1}]
[39934,"Hoteles","Benelux",163930,784.5,{"$f":"VLOOKUP(Rtdos_de_la_Empresa8[[#This Row],[Canales]],Tabla39[],2,FALSE)","v":0.15},{"$f":"Rtdos_de_la_Empresa8[[#This Row],[Margen]]*Rtdos_de_la_Empresa8[[#This Row],[Facturación]]","v":24589.5},{"$f":"YEAR(Rtdos_de_la_Empresa8[[#This Row],[Fecha de Facturacion]])","v":2009},{"$f":"ROUNDUP(MONTH(Rtdos_de_la_Empresa8[[#This Row],[Fecha de Facturacion]])/3, 0)","v":2}]
[39661,"Directo","Italia-Francia",181089,1051.5,{"$f":"VLOOKUP(Rtdos_de_la_Empresa8[[#This Row],[Canales]],Tabla39[],2,FALSE)","v":0.4},{"$f":"Rtdos_de_la_Empresa8[[#This Row],[Margen]]*Rtdos_de_la_Empresa8[[#This Row],[Facturación]]","v":72435.600000000006},{"$f":"YEAR(Rtdos_de_la_Empresa8[[#This Row],[Fecha de Facturacion]])","v":2008},{"$f":"ROUNDUP(MONTH(Rtdos_de_la_Empresa8[[#This Row],[Fecha de Facturacion]])/3, 0)","v":3}]
[39845,"Hoteles","Rusia-Paises del Este",187172,967.5,{"$f":"VLOOKUP(Rtdos_de_la_Empresa8[[#This Row],[Canales]],Tabla39[],2,FALSE)","v":0.15},{"$f":"Rtdos_de_la_Empresa8[[#This Row],[Margen]]*Rtdos_de_la_Empresa8[[#This Row],[Facturación]]","v":28075.8},{"$f":"YEAR(Rtdos_de_la_Empresa8[[#This Row],[Fecha de Facturacion]])","v":2009},{"$f":"ROUNDUP(MONTH(Rtdos_de_la_Empresa8[[#This Row],[Fecha de Facturacion]])/3, 0)","v":1}]
[39722,"Directo","Italia-Francia",176744,2929.5,{"$f":"VLOOKUP(Rtdos_de_la_Empresa8[[#This Row],[Canales]],Tabla39[],2,FALSE)","v":0.4},{"$f":"Rtdos_de_la_Empresa8[[#This Row],[Margen]]*Rtdos_de_la_Empresa8[[#This Row],[Facturación]]","v":70697.600000000006},{"$f":"YEAR(Rtdos_de_la_Empresa8[[#This Row],[Fecha de Facturacion]])","v":2008},{"$f":"ROUNDUP(MONTH(Rtdos_de_la_Empresa8[[#This Row],[Fecha de Facturacion]])/3, 0)","v":4}]
[39448,"Hoteles","Alemania",169918,621,{"$f":"VLOOKUP(Rtdos_de_la_Empresa8[[#This Row],[Canales]],Tabla39[],2,FALSE)","v":0.15},{"$f":"Rtdos_de_la_Empresa8[[#This Row],[Margen]]*Rtdos_de_la_Empresa8[[#This Row],[Facturación]]","v":25487.7},{"$f":"YEAR(Rtdos_de_la_Empresa8[[#This Row],[Fecha de Facturacion]])","v":2008},{"$f":"ROUNDUP(MONTH(Rtdos_de_la_Empresa8[[#This Row],[Fecha de Facturacion]])/3, 0)","v":1}]
[39630,"Hoteles","España",155829,2559,{"$f":"VLOOKUP(Rtdos_de_la_Empresa8[[#This Row],[Canales]],Tabla39[],2,FALSE)","v":0.15},{"$f":"Rtdos_de_la_Empresa8[[#This Row],[Margen]]*Rtdos_de_la_Empresa8[[#This Row],[Facturación]]","v":23374.35},{"$f":"YEAR(Rtdos_de_la_Empresa8[[#This Row],[Fecha de Facturacion]])","v":2008},{"$f":"ROUNDUP(MONTH(Rtdos_de_la_Empresa8[[#This Row],[Fecha de Facturacion]])/3, 0)","v":3}]
[39448,"Directo","Resto de Europa",148554,796.5,{"$f":"VLOOKUP(Rtdos_de_la_Empresa8[[#This Row],[Canales]],Tabla39[],2,FALSE)","v":0.4},{"$f":"Rtdos_de_la_Empresa8[[#This Row],[Margen]]*Rtdos_de_la_Empresa8[[#This Row],[Facturación]]","v":59421.600000000006},{"$f":"YEAR(Rtdos_de_la_Empresa8[[#This Row],[Fecha de Facturacion]])","v":2008},{"$f":"ROUNDUP(MONTH(Rtdos_de_la_Empresa8[[#This Row],[Fecha de Facturacion]])/3, 0)","v":1}]
[40269,"Agencia","Reino Unido",302487,1887,{"$f":"VLOOKUP(Rtdos_de_la_Empresa8[[#This Row],[Canales]],Tabla39[],2,FALSE)","v":0.2},{"$f":"Rtdos_de_la_Empresa8[[#This Row],[Margen]]*Rtdos_de_la_Empresa8[[#This Row],[Facturación]]","v":60497.4},{"$f":"YEAR(Rtdos_de_la_Empresa8[[#This Row],[Fecha de Facturacion]])","v":2010},{"$f":"ROUNDUP(MONTH(Rtdos_de_la_Empresa8[[#This Row],[Fecha de Facturacion]])/3, 0)","v":2}]
[39753,"Directo","Resto de Paises",153077,2994,{"$f":"VLOOKUP(Rtdos_de_la_Empresa8[[#This Row],[Canales]],Tabla39[],2,FALSE)","v":0.4},{"$f":"Rtdos_de_la_Empresa8[[#This Row],[Margen]]*Rtdos_de_la_Empresa8[[#This Row],[Facturación]]","v":61230.8},{"$f":"YEAR(Rtdos_de_la_Empresa8[[#This Row],[Fecha de Facturacion]])","v":2008},{"$f":"ROUNDUP(MONTH(Rtdos_de_la_Empresa8[[#This Row],[Fecha de Facturacion]])/3, 0)","v":4}]
[39783,"Directo","Resto de Paises",150029,705,{"$f":"VLOOKUP(Rtdos_de_la_Empresa8[[#This Row],[Canales]],Tabla39[],2,FALSE)","v":0.4},{"$f":"Rtdos_de_la_Empresa8[[#This Row],[Margen]]*Rtdos_de_la_Empresa8[[#This Row],[Facturación]]","v":60011.600000000006},{"$f":"YEAR(Rtdos_de_la_Empresa8[[#This Row],[Fecha de Facturacion]])","v":2008},{"$f":"ROUNDUP(MONTH(Rtdos_de_la_Empresa8[[#This Row],[Fecha de Facturacion]])/3, 0)","v":4}]
[39448,"Hoteles","Rusia-Paises del Este",184212,1614,{"$f":"VLOOKUP(Rtdos_de_la_Empresa8[[#This Row],[Canales]],Tabla39[],2,FALSE)","v":0.15},{"$f":"Rtdos_de_la_Empresa8[[#This Row],[Margen]]*Rtdos_de_la_Empresa8[[#This Row],[Facturación]]","v":27631.8},{"$f":"YEAR(Rtdos_de_la_Empresa8[[#This Row],[Fecha de Facturacion]])","v":2008},{"$f":"ROUNDUP(MONTH(Rtdos_de_la_Empresa8[[#This Row],[Fecha de Facturacion]])/3, 0)","v":1}]
[40422,"Hoteles","Rusia-Paises del Este",166505,1582.5,{"$f":"VLOOKUP(Rtdos_de_la_Empresa8[[#This Row],[Canales]],Tabla39[],2,FALSE)","v":0.15},{"$f":"Rtdos_de_la_Empresa8[[#This Row],[Margen]]*Rtdos_de_la_Empresa8[[#This Row],[Facturación]]","v":24975.75},{"$f":"YEAR(Rtdos_de_la_Empresa8[[#This Row],[Fecha de Facturacion]])","v":2010},{"$f":"ROUNDUP(MONTH(Rtdos_de_la_Empresa8[[#This Row],[Fecha de Facturacion]])/3, 0)","v":3}]
[39873,"Directo","Italia-Francia",163430,2121,{"$f":"VLOOKUP(Rtdos_de_la_Empresa8[[#This Row],[Canales]],Tabla39[],2,FALSE)","v":0.4},{"$f":"Rtdos_de_la_Empresa8[[#This Row],[Margen]]*Rtdos_de_la_Empresa8[[#This Row],[Facturación]]","v":65372},{"$f":"YEAR(Rtdos_de_la_Empresa8[[#This Row],[Fecha de Facturacion]])","v":2009},{"$f":"ROUNDUP(MONTH(Rtdos_de_la_Empresa8[[#This Row],[Fecha de Facturacion]])/3, 0)","v":1}]
[40269,"Hoteles","Paises Nórdicos",241389,2389.5,{"$f":"VLOOKUP(Rtdos_de_la_Empresa8[[#This Row],[Canales]],Tabla39[],2,FALSE)","v":0.15},{"$f":"Rtdos_de_la_Empresa8[[#This Row],[Margen]]*Rtdos_de_la_Empresa8[[#This Row],[Facturación]]","v":36208.35},{"$f":"YEAR(Rtdos_de_la_Empresa8[[#This Row],[Fecha de Facturacion]])","v":2010},{"$f":"ROUNDUP(MONTH(Rtdos_de_la_Empresa8[[#This Row],[Fecha de Facturacion]])/3, 0)","v":2}]
[40026,"Agencia","America Norte-Sur",148685,2473.5,{"$f":"VLOOKUP(Rtdos_de_la_Empresa8[[#This Row],[Canales]],Tabla39[],2,FALSE)","v":0.2},{"$f":"Rtdos_de_la_Empresa8[[#This Row],[Margen]]*Rtdos_de_la_Empresa8[[#This Row],[Facturación]]","v":29737},{"$f":"YEAR(Rtdos_de_la_Empresa8[[#This Row],[Fecha de Facturacion]])","v":2009},{"$f":"ROUNDUP(MONTH(Rtdos_de_la_Empresa8[[#This Row],[Fecha de Facturacion]])/3, 0)","v":3}]
[39934,"Hoteles","Benelux",150516,1035,{"$f":"VLOOKUP(Rtdos_de_la_Empresa8[[#This Row],[Canales]],Tabla39[],2,FALSE)","v":0.15},{"$f":"Rtdos_de_la_Empresa8[[#This Row],[Margen]]*Rtdos_de_la_Empresa8[[#This Row],[Facturación]]","v":22577.399999999998},{"$f":"YEAR(Rtdos_de_la_Empresa8[[#This Row],[Fecha de Facturacion]])","v":2009},{"$f":"ROUNDUP(MONTH(Rtdos_de_la_Empresa8[[#This Row],[Fecha de Facturacion]])/3, 0)","v":2}]
[39814,"Hoteles","Benelux",149255,1417.5,{"$f":"VLOOKUP(Rtdos_de_la_Empresa8[[#This Row],[Canales]],Tabla39[],2,FALSE)","v":0.15},{"$f":"Rtdos_de_la_Empresa8[[#This Row],[Margen]]*Rtdos_de_la_Empresa8[[#This Row],[Facturación]]","v":22388.25},{"$f":"YEAR(Rtdos_de_la_Empresa8[[#This Row],[Fecha de Facturacion]])","v":2009},{"$f":"ROUNDUP(MONTH(Rtdos_de_la_Empresa8[[#This Row],[Fecha de Facturacion]])/3, 0)","v":1}]
[40299,"Hoteles","Paises Nórdicos",291580,573,{"$f":"VLOOKUP(Rtdos_de_la_Empresa8[[#This Row],[Canales]],Tabla39[],2,FALSE)","v":0.15},{"$f":"Rtdos_de_la_Empresa8[[#This Row],[Margen]]*Rtdos_de_la_Empresa8[[#This Row],[Facturación]]","v":43737},{"$f":"YEAR(Rtdos_de_la_Empresa8[[#This Row],[Fecha de Facturacion]])","v":2010},{"$f":"ROUNDUP(MONTH(Rtdos_de_la_Empresa8[[#This Row],[Fecha de Facturacion]])/3, 0)","v":2}]
[39600,"Hoteles","España",145675,1665,{"$f":"VLOOKUP(Rtdos_de_la_Empresa8[[#This Row],[Canales]],Tabla39[],2,FALSE)","v":0.15},{"$f":"Rtdos_de_la_Empresa8[[#This Row],[Margen]]*Rtdos_de_la_Empresa8[[#This Row],[Facturación]]","v":21851.25},{"$f":"YEAR(Rtdos_de_la_Empresa8[[#This Row],[Fecha de Facturacion]])","v":2008},{"$f":"ROUNDUP(MONTH(Rtdos_de_la_Empresa8[[#This Row],[Fecha de Facturacion]])/3, 0)","v":2}]
[40269,"Agencia","America Norte-Sur",141881,1843.5,{"$f":"VLOOKUP(Rtdos_de_la_Empresa8[[#This Row],[Canales]],Tabla39[],2,FALSE)","v":0.2},{"$f":"Rtdos_de_la_Empresa8[[#This Row],[Margen]]*Rtdos_de_la_Empresa8[[#This Row],[Facturación]]","v":28376.2},{"$f":"YEAR(Rtdos_de_la_Empresa8[[#This Row],[Fecha de Facturacion]])","v":2010},{"$f":"ROUNDUP(MONTH(Rtdos_de_la_Empresa8[[#This Row],[Fecha de Facturacion]])/3, 0)","v":2}]
[40238,"Directo","Alemania",155649,384,{"$f":"VLOOKUP(Rtdos_de_la_Empresa8[[#This Row],[Canales]],Tabla39[],2,FALSE)","v":0.4},{"$f":"Rtdos_de_la_Empresa8[[#This Row],[Margen]]*Rtdos_de_la_Empresa8[[#This Row],[Facturación]]","v":62259.600000000006},{"$f":"YEAR(Rtdos_de_la_Empresa8[[#This Row],[Fecha de Facturacion]])","v":2010},{"$f":"ROUNDUP(MONTH(Rtdos_de_la_Empresa8[[#This Row],[Fecha de Facturacion]])/3, 0)","v":1}]
[40238,"Hoteles","Rusia-Paises del Este",163791,1962,{"$f":"VLOOKUP(Rtdos_de_la_Empresa8[[#This Row],[Canales]],Tabla39[],2,FALSE)","v":0.15},{"$f":"Rtdos_de_la_Empresa8[[#This Row],[Margen]]*Rtdos_de_la_Empresa8[[#This Row],[Facturación]]","v":24568.649999999998},{"$f":"YEAR(Rtdos_de_la_Empresa8[[#This Row],[Fecha de Facturacion]])","v":2010},{"$f":"ROUNDUP(MONTH(Rtdos_de_la_Empresa8[[#This Row],[Fecha de Facturacion]])/3, 0)","v":1}]
[39753,"Internet","Resto de Europa",144678,393,{"$f":"VLOOKUP(Rtdos_de_la_Empresa8[[#This Row],[Canales]],Tabla39[],2,FALSE)","v":0.4},{"$f":"Rtdos_de_la_Empresa8[[#This Row],[Margen]]*Rtdos_de_la_Empresa8[[#This Row],[Facturación]]","v":57871.200000000004},{"$f":"YEAR(Rtdos_de_la_Empresa8[[#This Row],[Fecha de Facturacion]])","v":2008},{"$f":"ROUNDUP(MONTH(Rtdos_de_la_Empresa8[[#This Row],[Fecha de Facturacion]])/3, 0)","v":4}]
[40299,"Agencia","Reino Unido",343139,2265,{"$f":"VLOOKUP(Rtdos_de_la_Empresa8[[#This Row],[Canales]],Tabla39[],2,FALSE)","v":0.2},{"$f":"Rtdos_de_la_Empresa8[[#This Row],[Margen]]*Rtdos_de_la_Empresa8[[#This Row],[Facturación]]","v":68627.8},{"$f":"YEAR(Rtdos_de_la_Empresa8[[#This Row],[Fecha de Facturacion]])","v":2010},{"$f":"ROUNDUP(MONTH(Rtdos_de_la_Empresa8[[#This Row],[Fecha de Facturacion]])/3, 0)","v":2}]
[40299,"Hoteles","Paises Nórdicos",345026,2385,{"$f":"VLOOKUP(Rtdos_de_la_Empresa8[[#This Row],[Canales]],Tabla39[],2,FALSE)","v":0.15},{"$f":"Rtdos_de_la_Empresa8[[#This Row],[Margen]]*Rtdos_de_la_Empresa8[[#This Row],[Facturación]]","v":51753.9},{"$f":"YEAR(Rtdos_de_la_Empresa8[[#This Row],[Fecha de Facturacion]])","v":2010},{"$f":"ROUNDUP(MONTH(Rtdos_de_la_Empresa8[[#This Row],[Fecha de Facturacion]])/3, 0)","v":2}]
[39661,"Directo","Italia-Francia",150792,1363.5,{"$f":"VLOOKUP(Rtdos_de_la_Empresa8[[#This Row],[Canales]],Tabla39[],2,FALSE)","v":0.4},{"$f":"Rtdos_de_la_Empresa8[[#This Row],[Margen]]*Rtdos_de_la_Empresa8[[#This Row],[Facturación]]","v":60316.800000000003},{"$f":"YEAR(Rtdos_de_la_Empresa8[[#This Row],[Fecha de Facturacion]])","v":2008},{"$f":"ROUNDUP(MONTH(Rtdos_de_la_Empresa8[[#This Row],[Fecha de Facturacion]])/3, 0)","v":3}]
[40299,"Agencia","America Norte-Sur",134345,427.5,{"$f":"VLOOKUP(Rtdos_de_la_Empresa8[[#This Row],[Canales]],Tabla39[],2,FALSE)","v":0.2},{"$f":"Rtdos_de_la_Empresa8[[#This Row],[Margen]]*Rtdos_de_la_Empresa8[[#This Row],[Facturación]]","v":26869},{"$f":"YEAR(Rtdos_de_la_Empresa8[[#This Row],[Fecha de Facturacion]])","v":2010},{"$f":"ROUNDUP(MONTH(Rtdos_de_la_Empresa8[[#This Row],[Fecha de Facturacion]])/3, 0)","v":2}]
[40269,"Directo","Resto de Paises",146017,1006.5,{"$f":"VLOOKUP(Rtdos_de_la_Empresa8[[#This Row],[Canales]],Tabla39[],2,FALSE)","v":0.4},{"$f":"Rtdos_de_la_Empresa8[[#This Row],[Margen]]*Rtdos_de_la_Empresa8[[#This Row],[Facturación]]","v":58406.8},{"$f":"YEAR(Rtdos_de_la_Empresa8[[#This Row],[Fecha de Facturacion]])","v":2010},{"$f":"ROUNDUP(MONTH(Rtdos_de_la_Empresa8[[#This Row],[Fecha de Facturacion]])/3, 0)","v":2}]
[40299,"Agencia","Reino Unido",214516,2649,{"$f":"VLOOKUP(Rtdos_de_la_Empresa8[[#This Row],[Canales]],Tabla39[],2,FALSE)","v":0.2},{"$f":"Rtdos_de_la_Empresa8[[#This Row],[Margen]]*Rtdos_de_la_Empresa8[[#This Row],[Facturación]]","v":42903.200000000004},{"$f":"YEAR(Rtdos_de_la_Empresa8[[#This Row],[Fecha de Facturacion]])","v":2010},{"$f":"ROUNDUP(MONTH(Rtdos_de_la_Empresa8[[#This Row],[Fecha de Facturacion]])/3, 0)","v":2}]
[40026,"Directo","Alemania",152062,912,{"$f":"VLOOKUP(Rtdos_de_la_Empresa8[[#This Row],[Canales]],Tabla39[],2,FALSE)","v":0.4},{"$f":"Rtdos_de_la_Empresa8[[#This Row],[Margen]]*Rtdos_de_la_Empresa8[[#This Row],[Facturación]]","v":60824.800000000003},{"$f":"YEAR(Rtdos_de_la_Empresa8[[#This Row],[Fecha de Facturacion]])","v":2009},{"$f":"ROUNDUP(MONTH(Rtdos_de_la_Empresa8[[#This Row],[Fecha de Facturacion]])/3, 0)","v":3}]
[40391,"Agencia","America Norte-Sur",133994,943.5,{"$f":"VLOOKUP(Rtdos_de_la_Empresa8[[#This Row],[Canales]],Tabla39[],2,FALSE)","v":0.2},{"$f":"Rtdos_de_la_Empresa8[[#This Row],[Margen]]*Rtdos_de_la_Empresa8[[#This Row],[Facturación]]","v":26798.800000000003},{"$f":"YEAR(Rtdos_de_la_Empresa8[[#This Row],[Fecha de Facturacion]])","v":2010},{"$f":"ROUNDUP(MONTH(Rtdos_de_la_Empresa8[[#This Row],[Fecha de Facturacion]])/3, 0)","v":3}]
[40422,"Agencia","Benelux",148753,2307,{"$f":"VLOOKUP(Rtdos_de_la_Empresa8[[#This Row],[Canales]],Tabla39[],2,FALSE)","v":0.2},{"$f":"Rtdos_de_la_Empresa8[[#This Row],[Margen]]*Rtdos_de_la_Empresa8[[#This Row],[Facturación]]","v":29750.600000000002},{"$f":"YEAR(Rtdos_de_la_Empresa8[[#This Row],[Fecha de Facturacion]])","v":2010},{"$f":"ROUNDUP(MONTH(Rtdos_de_la_Empresa8[[#This Row],[Fecha de Facturacion]])/3, 0)","v":3}]
[39600,"Hoteles","Rusia-Paises del Este",158731,2731.5,{"$f":"VLOOKUP(Rtdos_de_la_Empresa8[[#This Row],[Canales]],Tabla39[],2,FALSE)","v":0.15},{"$f":"Rtdos_de_la_Empresa8[[#This Row],[Margen]]*Rtdos_de_la_Empresa8[[#This Row],[Facturación]]","v":23809.649999999998},{"$f":"YEAR(Rtdos_de_la_Empresa8[[#This Row],[Fecha de Facturacion]])","v":2008},{"$f":"ROUNDUP(MONTH(Rtdos_de_la_Empresa8[[#This Row],[Fecha de Facturacion]])/3, 0)","v":2}]
[40330,"Internet","Resto de Europa",143550,771,{"$f":"VLOOKUP(Rtdos_de_la_Empresa8[[#This Row],[Canales]],Tabla39[],2,FALSE)","v":0.4},{"$f":"Rtdos_de_la_Empresa8[[#This Row],[Margen]]*Rtdos_de_la_Empresa8[[#This Row],[Facturación]]","v":57420},{"$f":"YEAR(Rtdos_de_la_Empresa8[[#This Row],[Fecha de Facturacion]])","v":2010},{"$f":"ROUNDUP(MONTH(Rtdos_de_la_Empresa8[[#This Row],[Fecha de Facturacion]])/3, 0)","v":2}]
[39995,"Agencia","Benelux",146413,2041.5,{"$f":"VLOOKUP(Rtdos_de_la_Empresa8[[#This Row],[Canales]],Tabla39[],2,FALSE)","v":0.2},{"$f":"Rtdos_de_la_Empresa8[[#This Row],[Margen]]*Rtdos_de_la_Empresa8[[#This Row],[Facturación]]","v":29282.600000000002},{"$f":"YEAR(Rtdos_de_la_Empresa8[[#This Row],[Fecha de Facturacion]])","v":2009},{"$f":"ROUNDUP(MONTH(Rtdos_de_la_Empresa8[[#This Row],[Fecha de Facturacion]])/3, 0)","v":3}]
[40422,"Internet","Resto de Europa",141660,2722.5,{"$f":"VLOOKUP(Rtdos_de_la_Empresa8[[#This Row],[Canales]],Tabla39[],2,FALSE)","v":0.4},{"$f":"Rtdos_de_la_Empresa8[[#This Row],[Margen]]*Rtdos_de_la_Empresa8[[#This Row],[Facturación]]","v":56664},{"$f":"YEAR(Rtdos_de_la_Empresa8[[#This Row],[Fecha de Facturacion]])","v":2010},{"$f":"ROUNDUP(MONTH(Rtdos_de_la_Empresa8[[#This Row],[Fecha de Facturacion]])/3, 0)","v":3}]
[39753,"Directo","Italia-Francia",144680,2134.5,{"$f":"VLOOKUP(Rtdos_de_la_Empresa8[[#This Row],[Canales]],Tabla39[],2,FALSE)","v":0.4},{"$f":"Rtdos_de_la_Empresa8[[#This Row],[Margen]]*Rtdos_de_la_Empresa8[[#This Row],[Facturación]]","v":57872},{"$f":"YEAR(Rtdos_de_la_Empresa8[[#This Row],[Fecha de Facturacion]])","v":2008},{"$f":"ROUNDUP(MONTH(Rtdos_de_la_Empresa8[[#This Row],[Fecha de Facturacion]])/3, 0)","v":4}]
[39661,"Directo","Resto de Paises",123097,2596.5,{"$f":"VLOOKUP(Rtdos_de_la_Empresa8[[#This Row],[Canales]],Tabla39[],2,FALSE)","v":0.4},{"$f":"Rtdos_de_la_Empresa8[[#This Row],[Margen]]*Rtdos_de_la_Empresa8[[#This Row],[Facturación]]","v":49238.8},{"$f":"YEAR(Rtdos_de_la_Empresa8[[#This Row],[Fecha de Facturacion]])","v":2008},{"$f":"ROUNDUP(MONTH(Rtdos_de_la_Empresa8[[#This Row],[Fecha de Facturacion]])/3, 0)","v":3}]
[40330,"Agencia","Reino Unido",281915,1921.5,{"$f":"VLOOKUP(Rtdos_de_la_Empresa8[[#This Row],[Canales]],Tabla39[],2,FALSE)","v":0.2},{"$f":"Rtdos_de_la_Empresa8[[#This Row],[Margen]]*Rtdos_de_la_Empresa8[[#This Row],[Facturación]]","v":56383},{"$f":"YEAR(Rtdos_de_la_Empresa8[[#This Row],[Fecha de Facturacion]])","v":2010},{"$f":"ROUNDUP(MONTH(Rtdos_de_la_Empresa8[[#This Row],[Fecha de Facturacion]])/3, 0)","v":2}]
[40330,"Internet","Paises Nórdicos",388014,2884.5,{"$f":"VLOOKUP(Rtdos_de_la_Empresa8[[#This Row],[Canales]],Tabla39[],2,FALSE)","v":0.4},{"$f":"Rtdos_de_la_Empresa8[[#This Row],[Margen]]*Rtdos_de_la_Empresa8[[#This Row],[Facturación]]","v":155205.6},{"$f":"YEAR(Rtdos_de_la_Empresa8[[#This Row],[Fecha de Facturacion]])","v":2010},{"$f":"ROUNDUP(MONTH(Rtdos_de_la_Empresa8[[#This Row],[Fecha de Facturacion]])/3, 0)","v":2}]
[40422,"Directo","Alemania",147821,1066.5,{"$f":"VLOOKUP(Rtdos_de_la_Empresa8[[#This Row],[Canales]],Tabla39[],2,FALSE)","v":0.4},{"$f":"Rtdos_de_la_Empresa8[[#This Row],[Margen]]*Rtdos_de_la_Empresa8[[#This Row],[Facturación]]","v":59128.4},{"$f":"YEAR(Rtdos_de_la_Empresa8[[#This Row],[Fecha de Facturacion]])","v":2010},{"$f":"ROUNDUP(MONTH(Rtdos_de_la_Empresa8[[#This Row],[Fecha de Facturacion]])/3, 0)","v":3}]
[39995,"Hoteles","España",144573,2187,{"$f":"VLOOKUP(Rtdos_de_la_Empresa8[[#This Row],[Canales]],Tabla39[],2,FALSE)","v":0.15},{"$f":"Rtdos_de_la_Empresa8[[#This Row],[Margen]]*Rtdos_de_la_Empresa8[[#This Row],[Facturación]]","v":21685.95},{"$f":"YEAR(Rtdos_de_la_Empresa8[[#This Row],[Fecha de Facturacion]])","v":2009},{"$f":"ROUNDUP(MONTH(Rtdos_de_la_Empresa8[[#This Row],[Fecha de Facturacion]])/3, 0)","v":3}]
[39873,"Agencia","España",137047,2899.5,{"$f":"VLOOKUP(Rtdos_de_la_Empresa8[[#This Row],[Canales]],Tabla39[],2,FALSE)","v":0.2},{"$f":"Rtdos_de_la_Empresa8[[#This Row],[Margen]]*Rtdos_de_la_Empresa8[[#This Row],[Facturación]]","v":27409.4},{"$f":"YEAR(Rtdos_de_la_Empresa8[[#This Row],[Fecha de Facturacion]])","v":2009},{"$f":"ROUNDUP(MONTH(Rtdos_de_la_Empresa8[[#This Row],[Fecha de Facturacion]])/3, 0)","v":1}]
[39722,"Agencia","Alemania",143554,745.5,{"$f":"VLOOKUP(Rtdos_de_la_Empresa8[[#This Row],[Canales]],Tabla39[],2,FALSE)","v":0.2},{"$f":"Rtdos_de_la_Empresa8[[#This Row],[Margen]]*Rtdos_de_la_Empresa8[[#This Row],[Facturación]]","v":28710.800000000003},{"$f":"YEAR(Rtdos_de_la_Empresa8[[#This Row],[Fecha de Facturacion]])","v":2008},{"$f":"ROUNDUP(MONTH(Rtdos_de_la_Empresa8[[#This Row],[Fecha de Facturacion]])/3, 0)","v":4}]
[39783,"Directo","Resto de Paises",120223,813,{"$f":"VLOOKUP(Rtdos_de_la_Empresa8[[#This Row],[Canales]],Tabla39[],2,FALSE)","v":0.4},{"$f":"Rtdos_de_la_Empresa8[[#This Row],[Margen]]*Rtdos_de_la_Empresa8[[#This Row],[Facturación]]","v":48089.200000000004},{"$f":"YEAR(Rtdos_de_la_Empresa8[[#This Row],[Fecha de Facturacion]])","v":2008},{"$f":"ROUNDUP(MONTH(Rtdos_de_la_Empresa8[[#This Row],[Fecha de Facturacion]])/3, 0)","v":4}]
[39995,"Directo","Rusia-Paises del Este",148754,1156.5,{"$f":"VLOOKUP(Rtdos_de_la_Empresa8[[#This Row],[Canales]],Tabla39[],2,FALSE)","v":0.4},{"$f":"Rtdos_de_la_Empresa8[[#This Row],[Margen]]*Rtdos_de_la_Empresa8[[#This Row],[Facturación]]","v":59501.600000000006},{"$f":"YEAR(Rtdos_de_la_Empresa8[[#This Row],[Fecha de Facturacion]])","v":2009},{"$f":"ROUNDUP(MONTH(Rtdos_de_la_Empresa8[[#This Row],[Fecha de Facturacion]])/3, 0)","v":3}]
[39569,"Agencia","Benelux",143102,1618.5,{"$f":"VLOOKUP(Rtdos_de_la_Empresa8[[#This Row],[Canales]],Tabla39[],2,FALSE)","v":0.2},{"$f":"Rtdos_de_la_Empresa8[[#This Row],[Margen]]*Rtdos_de_la_Empresa8[[#This Row],[Facturación]]","v":28620.400000000001},{"$f":"YEAR(Rtdos_de_la_Empresa8[[#This Row],[Fecha de Facturacion]])","v":2008},{"$f":"ROUNDUP(MONTH(Rtdos_de_la_Empresa8[[#This Row],[Fecha de Facturacion]])/3, 0)","v":2}]
[39569,"Agencia","America Norte-Sur",132018,1428,{"$f":"VLOOKUP(Rtdos_de_la_Empresa8[[#This Row],[Canales]],Tabla39[],2,FALSE)","v":0.2},{"$f":"Rtdos_de_la_Empresa8[[#This Row],[Margen]]*Rtdos_de_la_Empresa8[[#This Row],[Facturación]]","v":26403.600000000002},{"$f":"YEAR(Rtdos_de_la_Empresa8[[#This Row],[Fecha de Facturacion]])","v":2008},{"$f":"ROUNDUP(MONTH(Rtdos_de_la_Empresa8[[#This Row],[Fecha de Facturacion]])/3, 0)","v":2}]
[40391,"Internet","Resto de Europa",132315,502.5,{"$f":"VLOOKUP(Rtdos_de_la_Empresa8[[#This Row],[Canales]],Tabla39[],2,FALSE)","v":0.4},{"$f":"Rtdos_de_la_Empresa8[[#This Row],[Margen]]*Rtdos_de_la_Empresa8[[#This Row],[Facturación]]","v":52926},{"$f":"YEAR(Rtdos_de_la_Empresa8[[#This Row],[Fecha de Facturacion]])","v":2010},{"$f":"ROUNDUP(MONTH(Rtdos_de_la_Empresa8[[#This Row],[Fecha de Facturacion]])/3, 0)","v":3}]
[39539,"Hoteles","Italia-Francia",137633,1249.5,{"$f":"VLOOKUP(Rtdos_de_la_Empresa8[[#This Row],[Canales]],Tabla39[],2,FALSE)","v":0.15},{"$f":"Rtdos_de_la_Empresa8[[#This Row],[Margen]]*Rtdos_de_la_Empresa8[[#This Row],[Facturación]]","v":20644.95},{"$f":"YEAR(Rtdos_de_la_Empresa8[[#This Row],[Fecha de Facturacion]])","v":2008},{"$f":"ROUNDUP(MONTH(Rtdos_de_la_Empresa8[[#This Row],[Fecha de Facturacion]])/3, 0)","v":2}]
[40360,"Hoteles","Reino Unido",388531,2946,{"$f":"VLOOKUP(Rtdos_de_la_Empresa8[[#This Row],[Canales]],Tabla39[],2,FALSE)","v":0.15},{"$f":"Rtdos_de_la_Empresa8[[#This Row],[Margen]]*Rtdos_de_la_Empresa8[[#This Row],[Facturación]]","v":58279.65},{"$f":"YEAR(Rtdos_de_la_Empresa8[[#This Row],[Fecha de Facturacion]])","v":2010},{"$f":"ROUNDUP(MONTH(Rtdos_de_la_Empresa8[[#This Row],[Fecha de Facturacion]])/3, 0)","v":3}]
[40360,"Internet","Paises Nórdicos",109834,985.5,{"$f":"VLOOKUP(Rtdos_de_la_Empresa8[[#This Row],[Canales]],Tabla39[],2,FALSE)","v":0.4},{"$f":"Rtdos_de_la_Empresa8[[#This Row],[Margen]]*Rtdos_de_la_Empresa8[[#This Row],[Facturación]]","v":43933.600000000006},{"$f":"YEAR(Rtdos_de_la_Empresa8[[#This Row],[Fecha de Facturacion]])","v":2010},{"$f":"ROUNDUP(MONTH(Rtdos_de_la_Empresa8[[#This Row],[Fecha de Facturacion]])/3, 0)","v":3}]
[40330,"Directo","Rusia-Paises del Este",137955,526.5,{"$f":"VLOOKUP(Rtdos_de_la_Empresa8[[#This Row],[Canales]],Tabla39[],2,FALSE)","v":0.4},{"$f":"Rtdos_de_la_Empresa8[[#This Row],[Margen]]*Rtdos_de_la_Empresa8[[#This Row],[Facturación]]","v":55182},{"$f":"YEAR(Rtdos_de_la_Empresa8[[#This Row],[Fecha de Facturacion]])","v":2010},{"$f":"ROUNDUP(MONTH(Rtdos_de_la_Empresa8[[#This Row],[Fecha de Facturacion]])/3, 0)","v":2}]
[39569,"Hoteles","Italia-Francia",119282,817.5,{"$f":"VLOOKUP(Rtdos_de_la_Empresa8[[#This Row],[Canales]],Tabla39[],2,FALSE)","v":0.15},{"$f":"Rtdos_de_la_Empresa8[[#This Row],[Margen]]*Rtdos_de_la_Empresa8[[#This Row],[Facturación]]","v":17892.3},{"$f":"YEAR(Rtdos_de_la_Empresa8[[#This Row],[Fecha de Facturacion]])","v":2008},{"$f":"ROUNDUP(MONTH(Rtdos_de_la_Empresa8[[#This Row],[Fecha de Facturacion]])/3, 0)","v":2}]
[39845,"Hoteles","España",128226,1723.5,{"$f":"VLOOKUP(Rtdos_de_la_Empresa8[[#This Row],[Canales]],Tabla39[],2,FALSE)","v":0.15},{"$f":"Rtdos_de_la_Empresa8[[#This Row],[Margen]]*Rtdos_de_la_Empresa8[[#This Row],[Facturación]]","v":19233.899999999998},{"$f":"YEAR(Rtdos_de_la_Empresa8[[#This Row],[Fecha de Facturacion]])","v":2009},{"$f":"ROUNDUP(MONTH(Rtdos_de_la_Empresa8[[#This Row],[Fecha de Facturacion]])/3, 0)","v":1}]
[40179,"Directo","Resto de Paises",118805,1557,{"$f":"VLOOKUP(Rtdos_de_la_Empresa8[[#This Row],[Canales]],Tabla39[],2,FALSE)","v":0.4},{"$f":"Rtdos_de_la_Empresa8[[#This Row],[Margen]]*Rtdos_de_la_Empresa8[[#This Row],[Facturación]]","v":47522},{"$f":"YEAR(Rtdos_de_la_Empresa8[[#This Row],[Fecha de Facturacion]])","v":2010},{"$f":"ROUNDUP(MONTH(Rtdos_de_la_Empresa8[[#This Row],[Fecha de Facturacion]])/3, 0)","v":1}]
[40391,"Hoteles","Reino Unido",177233,607.5,{"$f":"VLOOKUP(Rtdos_de_la_Empresa8[[#This Row],[Canales]],Tabla39[],2,FALSE)","v":0.15},{"$f":"Rtdos_de_la_Empresa8[[#This Row],[Margen]]*Rtdos_de_la_Empresa8[[#This Row],[Facturación]]","v":26584.95},{"$f":"YEAR(Rtdos_de_la_Empresa8[[#This Row],[Fecha de Facturacion]])","v":2010},{"$f":"ROUNDUP(MONTH(Rtdos_de_la_Empresa8[[#This Row],[Fecha de Facturacion]])/3, 0)","v":3}]
[40210,"Directo","Resto de Europa",130637,2251.5,{"$f":"VLOOKUP(Rtdos_de_la_Empresa8[[#This Row],[Canales]],Tabla39[],2,FALSE)","v":0.4},{"$f":"Rtdos_de_la_Empresa8[[#This Row],[Margen]]*Rtdos_de_la_Empresa8[[#This Row],[Facturación]]","v":52254.8},{"$f":"YEAR(Rtdos_de_la_Empresa8[[#This Row],[Fecha de Facturacion]])","v":2010},{"$f":"ROUNDUP(MONTH(Rtdos_de_la_Empresa8[[#This Row],[Fecha de Facturacion]])/3, 0)","v":1}]
[40360,"Hoteles","España",127537,1873.5,{"$f":"VLOOKUP(Rtdos_de_la_Empresa8[[#This Row],[Canales]],Tabla39[],2,FALSE)","v":0.15},{"$f":"Rtdos_de_la_Empresa8[[#This Row],[Margen]]*Rtdos_de_la_Empresa8[[#This Row],[Facturación]]","v":19130.55},{"$f":"YEAR(Rtdos_de_la_Empresa8[[#This Row],[Fecha de Facturacion]])","v":2010},{"$f":"ROUNDUP(MONTH(Rtdos_de_la_Empresa8[[#This Row],[Fecha de Facturacion]])/3, 0)","v":3}]
[39873,"Agencia","America Norte-Sur",131261,1840.5,{"$f":"VLOOKUP(Rtdos_de_la_Empresa8[[#This Row],[Canales]],Tabla39[],2,FALSE)","v":0.2},{"$f":"Rtdos_de_la_Empresa8[[#This Row],[Margen]]*Rtdos_de_la_Empresa8[[#This Row],[Facturación]]","v":26252.2},{"$f":"YEAR(Rtdos_de_la_Empresa8[[#This Row],[Fecha de Facturacion]])","v":2009},{"$f":"ROUNDUP(MONTH(Rtdos_de_la_Empresa8[[#This Row],[Fecha de Facturacion]])/3, 0)","v":1}]
[39630,"Hoteles","America Norte-Sur",127850,451.5,{"$f":"VLOOKUP(Rtdos_de_la_Empresa8[[#This Row],[Canales]],Tabla39[],2,FALSE)","v":0.15},{"$f":"Rtdos_de_la_Empresa8[[#This Row],[Margen]]*Rtdos_de_la_Empresa8[[#This Row],[Facturación]]","v":19177.5},{"$f":"YEAR(Rtdos_de_la_Empresa8[[#This Row],[Fecha de Facturacion]])","v":2008},{"$f":"ROUNDUP(MONTH(Rtdos_de_la_Empresa8[[#This Row],[Fecha de Facturacion]])/3, 0)","v":3}]
[40057,"Directo","Rusia-Paises del Este",130973,2139,{"$f":"VLOOKUP(Rtdos_de_la_Empresa8[[#This Row],[Canales]],Tabla39[],2,FALSE)","v":0.4},{"$f":"Rtdos_de_la_Empresa8[[#This Row],[Margen]]*Rtdos_de_la_Empresa8[[#This Row],[Facturación]]","v":52389.200000000004},{"$f":"YEAR(Rtdos_de_la_Empresa8[[#This Row],[Fecha de Facturacion]])","v":2009},{"$f":"ROUNDUP(MONTH(Rtdos_de_la_Empresa8[[#This Row],[Fecha de Facturacion]])/3, 0)","v":3}]
[40118,"Agencia","Italia-Francia",117256,463.5,{"$f":"VLOOKUP(Rtdos_de_la_Empresa8[[#This Row],[Canales]],Tabla39[],2,FALSE)","v":0.2},{"$f":"Rtdos_de_la_Empresa8[[#This Row],[Margen]]*Rtdos_de_la_Empresa8[[#This Row],[Facturación]]","v":23451.200000000001},{"$f":"YEAR(Rtdos_de_la_Empresa8[[#This Row],[Fecha de Facturacion]])","v":2009},{"$f":"ROUNDUP(MONTH(Rtdos_de_la_Empresa8[[#This Row],[Fecha de Facturacion]])/3, 0)","v":4}]
[40452,"Directo","Resto de Paises",114797,2551.5,{"$f":"VLOOKUP(Rtdos_de_la_Empresa8[[#This Row],[Canales]],Tabla39[],2,FALSE)","v":0.4},{"$f":"Rtdos_de_la_Empresa8[[#This Row],[Margen]]*Rtdos_de_la_Empresa8[[#This Row],[Facturación]]","v":45918.8},{"$f":"YEAR(Rtdos_de_la_Empresa8[[#This Row],[Fecha de Facturacion]])","v":2010},{"$f":"ROUNDUP(MONTH(Rtdos_de_la_Empresa8[[#This Row],[Fecha de Facturacion]])/3, 0)","v":4}]
[39904,"Agencia","Alemania",138095,589.5,{"$f":"VLOOKUP(Rtdos_de_la_Empresa8[[#This Row],[Canales]],Tabla39[],2,FALSE)","v":0.2},{"$f":"Rtdos_de_la_Empresa8[[#This Row],[Margen]]*Rtdos_de_la_Empresa8[[#This Row],[Facturación]]","v":27619},{"$f":"YEAR(Rtdos_de_la_Empresa8[[#This Row],[Fecha de Facturacion]])","v":2009},{"$f":"ROUNDUP(MONTH(Rtdos_de_la_Empresa8[[#This Row],[Fecha de Facturacion]])/3, 0)","v":2}]
[40391,"Internet","Paises Nórdicos",109050,1485,{"$f":"VLOOKUP(Rtdos_de_la_Empresa8[[#This Row],[Canales]],Tabla39[],2,FALSE)","v":0.4},{"$f":"Rtdos_de_la_Empresa8[[#This Row],[Margen]]*Rtdos_de_la_Empresa8[[#This Row],[Facturación]]","v":43620},{"$f":"YEAR(Rtdos_de_la_Empresa8[[#This Row],[Fecha de Facturacion]])","v":2010},{"$f":"ROUNDUP(MONTH(Rtdos_de_la_Empresa8[[#This Row],[Fecha de Facturacion]])/3, 0)","v":3}]
[40391,"Agencia","Benelux",139622,2079,{"$f":"VLOOKUP(Rtdos_de_la_Empresa8[[#This Row],[Canales]],Tabla39[],2,FALSE)","v":0.2},{"$f":"Rtdos_de_la_Empresa8[[#This Row],[Margen]]*Rtdos_de_la_Empresa8[[#This Row],[Facturación]]","v":27924.400000000001},{"$f":"YEAR(Rtdos_de_la_Empresa8[[#This Row],[Fecha de Facturacion]])","v":2010},{"$f":"ROUNDUP(MONTH(Rtdos_de_la_Empresa8[[#This Row],[Fecha de Facturacion]])/3, 0)","v":3}]
[40391,"Hoteles","Reino Unido",104816,2958,{"$f":"VLOOKUP(Rtdos_de_la_Empresa8[[#This Row],[Canales]],Tabla39[],2,FALSE)","v":0.15},{"$f":"Rtdos_de_la_Empresa8[[#This Row],[Margen]]*Rtdos_de_la_Empresa8[[#This Row],[Facturación]]","v":15722.4},{"$f":"YEAR(Rtdos_de_la_Empresa8[[#This Row],[Fecha de Facturacion]])","v":2010},{"$f":"ROUNDUP(MONTH(Rtdos_de_la_Empresa8[[#This Row],[Fecha de Facturacion]])/3, 0)","v":3}]
[39539,"Agencia","Alemania",126611,1992,{"$f":"VLOOKUP(Rtdos_de_la_Empresa8[[#This Row],[Canales]],Tabla39[],2,FALSE)","v":0.2},{"$f":"Rtdos_de_la_Empresa8[[#This Row],[Margen]]*Rtdos_de_la_Empresa8[[#This Row],[Facturación]]","v":25322.2},{"$f":"YEAR(Rtdos_de_la_Empresa8[[#This Row],[Fecha de Facturacion]])","v":2008},{"$f":"ROUNDUP(MONTH(Rtdos_de_la_Empresa8[[#This Row],[Fecha de Facturacion]])/3, 0)","v":2}]
[40422,"Internet","Paises Nórdicos",273999,1476,{"$f":"VLOOKUP(Rtdos_de_la_Empresa8[[#This Row],[Canales]],Tabla39[],2,FALSE)","v":0.4},{"$f":"Rtdos_de_la_Empresa8[[#This Row],[Margen]]*Rtdos_de_la_Empresa8[[#This Row],[Facturación]]","v":109599.6},{"$f":"YEAR(Rtdos_de_la_Empresa8[[#This Row],[Fecha de Facturacion]])","v":2010},{"$f":"ROUNDUP(MONTH(Rtdos_de_la_Empresa8[[#This Row],[Fecha de Facturacion]])/3, 0)","v":3}]
[39873,"Hoteles","America Norte-Sur",122301,1273.5,{"$f":"VLOOKUP(Rtdos_de_la_Empresa8[[#This Row],[Canales]],Tabla39[],2,FALSE)","v":0.15},{"$f":"Rtdos_de_la_Empresa8[[#This Row],[Margen]]*Rtdos_de_la_Empresa8[[#This Row],[Facturación]]","v":18345.149999999998},{"$f":"YEAR(Rtdos_de_la_Empresa8[[#This Row],[Fecha de Facturacion]])","v":2009},{"$f":"ROUNDUP(MONTH(Rtdos_de_la_Empresa8[[#This Row],[Fecha de Facturacion]])/3, 0)","v":1}]
[40087,"Hoteles","España",125281,580.5,{"$f":"VLOOKUP(Rtdos_de_la_Empresa8[[#This Row],[Canales]],Tabla39[],2,FALSE)","v":0.15},{"$f":"Rtdos_de_la_Empresa8[[#This Row],[Margen]]*Rtdos_de_la_Empresa8[[#This Row],[Facturación]]","v":18792.149999999998},{"$f":"YEAR(Rtdos_de_la_Empresa8[[#This Row],[Fecha de Facturacion]])","v":2009},{"$f":"ROUNDUP(MONTH(Rtdos_de_la_Empresa8[[#This Row],[Fecha de Facturacion]])/3, 0)","v":4}]
[39630,"Agencia","Alemania",122044,2272.5,{"$f":"VLOOKUP(Rtdos_de_la_Empresa8[[#This Row],[Canales]],Tabla39[],2,FALSE)","v":0.2},{"$f":"Rtdos_de_la_Empresa8[[#This Row],[Margen]]*Rtdos_de_la_Empresa8[[#This Row],[Facturación]]","v":24408.800000000003},{"$f":"YEAR(Rtdos_de_la_Empresa8[[#This Row],[Fecha de Facturacion]])","v":2008},{"$f":"ROUNDUP(MONTH(Rtdos_de_la_Empresa8[[#This Row],[Fecha de Facturacion]])/3, 0)","v":3}]
[39600,"Hoteles","Resto de Europa",126954,2496,{"$f":"VLOOKUP(Rtdos_de_la_Empresa8[[#This Row],[Canales]],Tabla39[],2,FALSE)","v":0.15},{"$f":"Rtdos_de_la_Empresa8[[#This Row],[Margen]]*Rtdos_de_la_Empresa8[[#This Row],[Facturación]]","v":19043.099999999999},{"$f":"YEAR(Rtdos_de_la_Empresa8[[#This Row],[Fecha de Facturacion]])","v":2008},{"$f":"ROUNDUP(MONTH(Rtdos_de_la_Empresa8[[#This Row],[Fecha de Facturacion]])/3, 0)","v":2}]
[40057,"Directo","Rusia-Paises del Este",127826,700.5,{"$f":"VLOOKUP(Rtdos_de_la_Empresa8[[#This Row],[Canales]],Tabla39[],2,FALSE)","v":0.4},{"$f":"Rtdos_de_la_Empresa8[[#This Row],[Margen]]*Rtdos_de_la_Empresa8[[#This Row],[Facturación]]","v":51130.400000000001},{"$f":"YEAR(Rtdos_de_la_Empresa8[[#This Row],[Fecha de Facturacion]])","v":2009},{"$f":"ROUNDUP(MONTH(Rtdos_de_la_Empresa8[[#This Row],[Fecha de Facturacion]])/3, 0)","v":3}]
[39508,"Directo","Resto de Paises",109036,1119,{"$f":"VLOOKUP(Rtdos_de_la_Empresa8[[#This Row],[Canales]],Tabla39[],2,FALSE)","v":0.4},{"$f":"Rtdos_de_la_Empresa8[[#This Row],[Margen]]*Rtdos_de_la_Empresa8[[#This Row],[Facturación]]","v":43614.400000000001},{"$f":"YEAR(Rtdos_de_la_Empresa8[[#This Row],[Fecha de Facturacion]])","v":2008},{"$f":"ROUNDUP(MONTH(Rtdos_de_la_Empresa8[[#This Row],[Fecha de Facturacion]])/3, 0)","v":1}]
[40422,"Internet","Paises Nórdicos",222539,2811,{"$f":"VLOOKUP(Rtdos_de_la_Empresa8[[#This Row],[Canales]],Tabla39[],2,FALSE)","v":0.4},{"$f":"Rtdos_de_la_Empresa8[[#This Row],[Margen]]*Rtdos_de_la_Empresa8[[#This Row],[Facturación]]","v":89015.6},{"$f":"YEAR(Rtdos_de_la_Empresa8[[#This Row],[Fecha de Facturacion]])","v":2010},{"$f":"ROUNDUP(MONTH(Rtdos_de_la_Empresa8[[#This Row],[Fecha de Facturacion]])/3, 0)","v":3}]
[39783,"Agencia","Benelux",138587,997.5,{"$f":"VLOOKUP(Rtdos_de_la_Empresa8[[#This Row],[Canales]],Tabla39[],2,FALSE)","v":0.2},{"$f":"Rtdos_de_la_Empresa8[[#This Row],[Margen]]*Rtdos_de_la_Empresa8[[#This Row],[Facturación]]","v":27717.4},{"$f":"YEAR(Rtdos_de_la_Empresa8[[#This Row],[Fecha de Facturacion]])","v":2008},{"$f":"ROUNDUP(MONTH(Rtdos_de_la_Empresa8[[#This Row],[Fecha de Facturacion]])/3, 0)","v":4}]
[40118,"Hoteles","Resto de Europa",119434,1422,{"$f":"VLOOKUP(Rtdos_de_la_Empresa8[[#This Row],[Canales]],Tabla39[],2,FALSE)","v":0.15},{"$f":"Rtdos_de_la_Empresa8[[#This Row],[Margen]]*Rtdos_de_la_Empresa8[[#This Row],[Facturación]]","v":17915.099999999999},{"$f":"YEAR(Rtdos_de_la_Empresa8[[#This Row],[Fecha de Facturacion]])","v":2009},{"$f":"ROUNDUP(MONTH(Rtdos_de_la_Empresa8[[#This Row],[Fecha de Facturacion]])/3, 0)","v":4}]
[40422,"Agencia","Italia-Francia",113978,2259,{"$f":"VLOOKUP(Rtdos_de_la_Empresa8[[#This Row],[Canales]],Tabla39[],2,FALSE)","v":0.2},{"$f":"Rtdos_de_la_Empresa8[[#This Row],[Margen]]*Rtdos_de_la_Empresa8[[#This Row],[Facturación]]","v":22795.600000000002},{"$f":"YEAR(Rtdos_de_la_Empresa8[[#This Row],[Fecha de Facturacion]])","v":2010},{"$f":"ROUNDUP(MONTH(Rtdos_de_la_Empresa8[[#This Row],[Fecha de Facturacion]])/3, 0)","v":3}]
[40422,"Hoteles","Reino Unido",104837,2563.5,{"$f":"VLOOKUP(Rtdos_de_la_Empresa8[[#This Row],[Canales]],Tabla39[],2,FALSE)","v":0.15},{"$f":"Rtdos_de_la_Empresa8[[#This Row],[Margen]]*Rtdos_de_la_Empresa8[[#This Row],[Facturación]]","v":15725.55},{"$f":"YEAR(Rtdos_de_la_Empresa8[[#This Row],[Fecha de Facturacion]])","v":2010},{"$f":"ROUNDUP(MONTH(Rtdos_de_la_Empresa8[[#This Row],[Fecha de Facturacion]])/3, 0)","v":3}]
[39630,"Agencia","Italia-Francia",105706,613.5,{"$f":"VLOOKUP(Rtdos_de_la_Empresa8[[#This Row],[Canales]],Tabla39[],2,FALSE)","v":0.2},{"$f":"Rtdos_de_la_Empresa8[[#This Row],[Margen]]*Rtdos_de_la_Empresa8[[#This Row],[Facturación]]","v":21141.200000000001},{"$f":"YEAR(Rtdos_de_la_Empresa8[[#This Row],[Fecha de Facturacion]])","v":2008},{"$f":"ROUNDUP(MONTH(Rtdos_de_la_Empresa8[[#This Row],[Fecha de Facturacion]])/3, 0)","v":3}]
[39934,"Agencia","España",111152,2005.5,{"$f":"VLOOKUP(Rtdos_de_la_Empresa8[[#This Row],[Canales]],Tabla39[],2,FALSE)","v":0.2},{"$f":"Rtdos_de_la_Empresa8[[#This Row],[Margen]]*Rtdos_de_la_Empresa8[[#This Row],[Facturación]]","v":22230.400000000001},{"$f":"YEAR(Rtdos_de_la_Empresa8[[#This Row],[Fecha de Facturacion]])","v":2009},{"$f":"ROUNDUP(MONTH(Rtdos_de_la_Empresa8[[#This Row],[Fecha de Facturacion]])/3, 0)","v":2}]
[40452,"Hoteles","Reino Unido",265392,996,{"$f":"VLOOKUP(Rtdos_de_la_Empresa8[[#This Row],[Canales]],Tabla39[],2,FALSE)","v":0.15},{"$f":"Rtdos_de_la_Empresa8[[#This Row],[Margen]]*Rtdos_de_la_Empresa8[[#This Row],[Facturación]]","v":39808.799999999996},{"$f":"YEAR(Rtdos_de_la_Empresa8[[#This Row],[Fecha de Facturacion]])","v":2010},{"$f":"ROUNDUP(MONTH(Rtdos_de_la_Empresa8[[#This Row],[Fecha de Facturacion]])/3, 0)","v":4}]
[40148,"Agencia","Benelux",119308,2242.5,{"$f":"VLOOKUP(Rtdos_de_la_Empresa8[[#This Row],[Canales]],Tabla39[],2,FALSE)","v":0.2},{"$f":"Rtdos_de_la_Empresa8[[#This Row],[Margen]]*Rtdos_de_la_Empresa8[[#This Row],[Facturación]]","v":23861.600000000002},{"$f":"YEAR(Rtdos_de_la_Empresa8[[#This Row],[Fecha de Facturacion]])","v":2009},{"$f":"ROUNDUP(MONTH(Rtdos_de_la_Empresa8[[#This Row],[Fecha de Facturacion]])/3, 0)","v":4}]
[40269,"Agencia","Benelux",117879,1807.5,{"$f":"VLOOKUP(Rtdos_de_la_Empresa8[[#This Row],[Canales]],Tabla39[],2,FALSE)","v":0.2},{"$f":"Rtdos_de_la_Empresa8[[#This Row],[Margen]]*Rtdos_de_la_Empresa8[[#This Row],[Facturación]]","v":23575.800000000003},{"$f":"YEAR(Rtdos_de_la_Empresa8[[#This Row],[Fecha de Facturacion]])","v":2010},{"$f":"ROUNDUP(MONTH(Rtdos_de_la_Empresa8[[#This Row],[Fecha de Facturacion]])/3, 0)","v":2}]
[40057,"Agencia","España",102111,694.5,{"$f":"VLOOKUP(Rtdos_de_la_Empresa8[[#This Row],[Canales]],Tabla39[],2,FALSE)","v":0.2},{"$f":"Rtdos_de_la_Empresa8[[#This Row],[Margen]]*Rtdos_de_la_Empresa8[[#This Row],[Facturación]]","v":20422.2},{"$f":"YEAR(Rtdos_de_la_Empresa8[[#This Row],[Fecha de Facturacion]])","v":2009},{"$f":"ROUNDUP(MONTH(Rtdos_de_la_Empresa8[[#This Row],[Fecha de Facturacion]])/3, 0)","v":3}]
[39569,"Directo","Rusia-Paises del Este",122974,2970,{"$f":"VLOOKUP(Rtdos_de_la_Empresa8[[#This Row],[Canales]],Tabla39[],2,FALSE)","v":0.4},{"$f":"Rtdos_de_la_Empresa8[[#This Row],[Margen]]*Rtdos_de_la_Empresa8[[#This Row],[Facturación]]","v":49189.600000000006},{"$f":"YEAR(Rtdos_de_la_Empresa8[[#This Row],[Fecha de Facturacion]])","v":2008},{"$f":"ROUNDUP(MONTH(Rtdos_de_la_Empresa8[[#This Row],[Fecha de Facturacion]])/3, 0)","v":2}]
[39873,"Agencia","Alemania",108743,2772,{"$f":"VLOOKUP(Rtdos_de_la_Empresa8[[#This Row],[Canales]],Tabla39[],2,FALSE)","v":0.2},{"$f":"Rtdos_de_la_Empresa8[[#This Row],[Margen]]*Rtdos_de_la_Empresa8[[#This Row],[Facturación]]","v":21748.600000000002},{"$f":"YEAR(Rtdos_de_la_Empresa8[[#This Row],[Fecha de Facturacion]])","v":2009},{"$f":"ROUNDUP(MONTH(Rtdos_de_la_Empresa8[[#This Row],[Fecha de Facturacion]])/3, 0)","v":1}]
[39783,"Hoteles","Resto de Europa",106386,2556,{"$f":"VLOOKUP(Rtdos_de_la_Empresa8[[#This Row],[Canales]],Tabla39[],2,FALSE)","v":0.15},{"$f":"Rtdos_de_la_Empresa8[[#This Row],[Margen]]*Rtdos_de_la_Empresa8[[#This Row],[Facturación]]","v":15957.9},{"$f":"YEAR(Rtdos_de_la_Empresa8[[#This Row],[Fecha de Facturacion]])","v":2008},{"$f":"ROUNDUP(MONTH(Rtdos_de_la_Empresa8[[#This Row],[Fecha de Facturacion]])/3, 0)","v":4}]
[40452,"Internet","Paises Nórdicos",315630,2509.5,{"$f":"VLOOKUP(Rtdos_de_la_Empresa8[[#This Row],[Canales]],Tabla39[],2,FALSE)","v":0.4},{"$f":"Rtdos_de_la_Empresa8[[#This Row],[Margen]]*Rtdos_de_la_Empresa8[[#This Row],[Facturación]]","v":126252},{"$f":"YEAR(Rtdos_de_la_Empresa8[[#This Row],[Fecha de Facturacion]])","v":2010},{"$f":"ROUNDUP(MONTH(Rtdos_de_la_Empresa8[[#This Row],[Fecha de Facturacion]])/3, 0)","v":4}]
[40452,"Internet","Rusia-Paises del Este",119407,796.5,{"$f":"VLOOKUP(Rtdos_de_la_Empresa8[[#This Row],[Canales]],Tabla39[],2,FALSE)","v":0.4},{"$f":"Rtdos_de_la_Empresa8[[#This Row],[Margen]]*Rtdos_de_la_Empresa8[[#This Row],[Facturación]]","v":47762.8},{"$f":"YEAR(Rtdos_de_la_Empresa8[[#This Row],[Fecha de Facturacion]])","v":2010},{"$f":"ROUNDUP(MONTH(Rtdos_de_la_Empresa8[[#This Row],[Fecha de Facturacion]])/3, 0)","v":4}]
[39814,"Hoteles","America Norte-Sur",105921,2569.5,{"$f":"VLOOKUP(Rtdos_de_la_Empresa8[[#This Row],[Canales]],Tabla39[],2,FALSE)","v":0.15},{"$f":"Rtdos_de_la_Empresa8[[#This Row],[Margen]]*Rtdos_de_la_Empresa8[[#This Row],[Facturación]]","v":15888.15},{"$f":"YEAR(Rtdos_de_la_Empresa8[[#This Row],[Fecha de Facturacion]])","v":2009},{"$f":"ROUNDUP(MONTH(Rtdos_de_la_Empresa8[[#This Row],[Fecha de Facturacion]])/3, 0)","v":1}]
[40087,"Directo","Resto de Paises",108573,1011,{"$f":"VLOOKUP(Rtdos_de_la_Empresa8[[#This Row],[Canales]],Tabla39[],2,FALSE)","v":0.4},{"$f":"Rtdos_de_la_Empresa8[[#This Row],[Margen]]*Rtdos_de_la_Empresa8[[#This Row],[Facturación]]","v":43429.200000000004},{"$f":"YEAR(Rtdos_de_la_Empresa8[[#This Row],[Fecha de Facturacion]])","v":2009},{"$f":"ROUNDUP(MONTH(Rtdos_de_la_Empresa8[[#This Row],[Fecha de Facturacion]])/3, 0)","v":4}]

{"sheet":"TD1","index":2,"n_rows":42,"n_cols":22,"rows_kept":42,"cut":false,"hidden":false,"merged":[[35,18,35,21]]}
[]
[]
[null,null,"Periodos"]
[null,null,2008,null,null,null,"Total 2008",2009,null,null,null,"Total 2009",2010,null,null,null,"Total 2010"]
[null,"Rótulos de fila",1,2,3,4,null,1,2,3,4,null,1,2,3,4]
[null,"Agencia"]
[null,"Total Contratos",6691.5,14202,8031,14512.5,43437,13869,20059.5,10309.5,14517,58755,12279,22764,17959.5,6744,59746.5]
[null,"Total Facturación",810301,1633472,1348101,2306217,6098091,1978000,2354089,1222764,1643265,7198118,2038427,3121246,2157767,706133,8023573]
[null,"Total Ganancia",162060.20000000001,326694.40000000002,269620.2,461243.40000000008,1219618.2000000002,395600,470817.80000000005,244552.80000000005,328653,1439623.6,407685.39999999997,624249.20000000007,431553.39999999997,141226.6,1604714.6]
[null,"Directo"]
[null,"Total Contratos",22180.5,25917,23274,33937.5,105309,28221,16377,24688.5,17917.5,87204,21984,12988.5,14394,4153.5,53520]
[null,"Total Facturación",3166637,3860161,3161373,4301563,14489734,4782378,3033620,4516076,3130286,15462360,3313170,2911850,2285576,582933,9093529]
[null,"Total Ganancia",1266654.7999999998,1544064.4,1264549.2000000002,1720625.2000000004,5795893.6000000006,1912951.2000000002,1213447.9999999998,1806430.4,1252114.3999999999,6184944,1325268.0000000002,1164740,914230.40000000014,233173.2,3637411.6000000006]
[null,"Hoteles"]
[null,"Total Contratos",9937.5,15588,13216.5,9645,48387,12724.5,23536.5,10159.5,13408.5,59829,10602,15736.5,20920.5,996,48255]
[null,"Total Facturación",1736571,1660301,1484930,827488,5709290,1692056,2492933,1101554,1964137,7250680,1768293,2661412,2186137,265392,6881234]
[null,"Total Ganancia",260485.64999999997,249045.15,222739.5,124123.19999999998,856393.49999999988,253808.39999999997,373939.95,165233.1,294620.55,1087602,265243.95,399211.8,327920.55,39808.799999999996,1032185.1000000001]
[null,"Internet"]
[null,"Total Contratos",18864,15811.5,22999.5,14886,72561,10090.5,8103,22923,21697.5,62814,21543,11707.5,15163.5,10503,58917]
[null,"Total Facturación",3572424,2515691,3201158,2663927,11953200,1901940,2278894,3156196,2719844,10056874,3173509,2173987,2412105,1616060,9375661]
[null,"Total Ganancia",1428969.6,1006276.4000000001,1280463.2,1065570.8,4781280,760776.00000000012,911557.6,1262478.4000000001,1087937.6000000001,4022749.6,1269403.6000000001,869594.79999999993,964841.99999999988,646424.00000000012,3750264.4]
[]
[]
[]
[]
[]
[]
[]
[]
[]
[]
[]
[]
[]
[]
[null,null,null,null,null,null,null,null,null,null,null,null,null,null,null,null,null,null,"Definición de Rangos"]
[null,null,null,null,null,null,null,null,null,null,null,null,null,null,null,null,null,null,"Años","Periodos","Canales","Variables"]
[null,null,null,null,null,null,null,null,null,null,null,null,null,null,null,null,null,null,2008,1,"Agencia","Total Contratos"]
[null,null,null,null,null,null,null,null,null,null,null,null,null,null,null,null,null,null,2009,2,"Directo","Total Facturación"]
[null,null,null,null,null,null,null,null,null,null,null,null,null,null,null,null,null,null,2010,3,"Hoteles","Total Ganancia"]
[null,null,null,null,null,null,null,null,null,null,null,null,null,null,null,null,null,null,null,4,"Internet"]
[null,null,null,null,null,null,null,null,null,null,null,null,null,null,null,null,null,null,null,"Todo"]

{"sheet":"CM1","index":3,"n_rows":17,"n_cols":9,"rows_kept":17,"cut":false,"hidden":false,"merged":[[0,1,0,6],[1,1,1,6],[4,2,5,2],[4,3,5,3],[4,4,5,4],[4,5,5,5],[6,2,7,2],[6,3,7,3],[6,4,7,4],[6,5,7,5],[10,2,10,4],[11,2,12,2],[11,3,12,3],[11,4,12,4],[11,5,12,5],[11,6,12,7],[11,8,12,9],[13,8,13,9],[14,8,14,9],[15,8,15,9],[16,8,16,9],[13,6,13,7],[14,6,14,7],[10,5,10,7],[15,6,15,7],[16,6,16,7]]}
[null,"Cuadro de Mando -KPI - Alquiler de Coches"]
[null,"Key Performance Indicators o Indicadores Clave de Desempeño"]
[null,"Area de Selección"]
[null,null,null,"Año","Trimestre","Canal"]
[null,null,"Opción 1",2009,"Todo","Agencia"]
[]
[null,null,"Opción 2",2008,"Todo","Agencia"]
[]
[]
[null,"Area de Resultados"]
[null,null,"Variables",null,null,"KPI"]
[null,null,"Total Contratos","Total Facturación","Total Ganancia","Facturación por Cliente","Ganancia por Cliente",null," % Ganancia"]
[]
[null,{"$f":"F5&\"-\"&D5&\"-\"&E5","v":"Agencia-2009-Todo"},{"$f":"IF($E$5=\"Todo\",GETPIVOTDATA(\"Total Contratos\",'TD1'!$B$3,\"Canales\",$F$5,\"Año\",$D$5),GETPIVOTDATA(\"Total Contratos\",'TD1'!$B$3,\"Canales\",$F$5,\"Año\",$D$5,\"Trimestre\",$E$5))","v":58755},{"$f":"IF($E$5=\"Todo\",GETPIVOTDATA(\"Total Facturación\",'TD1'!$B$3,\"Canales\",$F$5,\"Año\",$D$5),GETPIVOTDATA(\"Total Facturación\",'TD1'!$B$3,\"Canales\",$F$5,\"Año\",$D$5,\"Trimestre\",$E$5))","v":7198118},{"$f":"IF($E$5=\"Todo\",GETPIVOTDATA(\"Total Ganancia\",'TD1'!$B$3,\"Canales\",$F$5,\"Año\",$D$5),GETPIVOTDATA(\"Total Ganancia\",'TD1'!$B$3,\"Canales\",$F$5,\"Año\",$D$5,\"Trimestre\",$E$5))","v":1439623.6},{"$f":"D14/C14","v":122.51073100161689},{"$f":"E14/C14","v":24.502146200323377},null,{"$f":"E14/D14","v":0.2}]
[null,{"$f":"F7&\"-\"&D7&\"-\"&E7","v":"Agencia-2008-Todo"},{"$f":"IF($E$7=\"Todo\",GETPIVOTDATA(\"Total Contratos\",'TD1'!$B$3,\"Canales\",$F$7,\"Año\",$D$7),GETPIVOTDATA(\"Total Contratos\",'TD1'!$B$3,\"Canales\",$F$7,\"Año\",$D$7,\"Trimestre\",$E$7))","v":43437},{"$f":"IF($E$7=\"Todo\",GETPIVOTDATA(\"Total Facturación\",'TD1'!$B$3,\"Canales\",$F$7,\"Año\",$D$7),GETPIVOTDATA(\"Total Facturación\",'TD1'!$B$3,\"Canales\",$F$7,\"Año\",$D$7,\"Trimestre\",$E$7))","v":6098091},{"$f":"IF($E$7=\"Todo\",GETPIVOTDATA(\"Total Ganancia\",'TD1'!$B$3,\"Canales\",$F$7,\"Año\",$D$7),GETPIVOTDATA(\"Total Ganancia\",'TD1'!$B$3,\"Canales\",$F$7,\"Año\",$D$7,\"Trimestre\",$E$7))","v":1219618.2000000002},{"$f":"D15/C15","v":140.3893224670212},{"$f":"E15/C15","v":28.077864493404245},null,{"$f":"E15/D15","v":0.20000000000000004}]
[null,"Variación",{"$f":"C14-C15","v":15318},{"$f":"D14-D15","v":1100027},{"$f":"E14-E15","v":220005.39999999991},{"$f":"F14-F15","v":-17.878591465404313},{"$f":"G14-G15","v":-3.5757182930808682},null,{"$f":"I14-I15","v":0}]
[null,null,{"$f":"C16/C14","v":0.26070972683175903},{"$f":"D16/D14","v":0.15282147361296383},{"$f":"E16/E14","v":0.15282147361296375},{"$f":"F16/F14","v":-0.14593490153257146},{"$f":"G16/G14","v":-0.14593490153257171},null,{"$f":"I16/I14","v":0}]

{"sheet":"TD2","index":4,"n_rows":17,"n_cols":8,"rows_kept":17,"cut":false,"hidden":false,"merged":[]}
[null,"Año","(Todas)"]
[null,"Trimestre","(Todas)"]
[null,"Canales","(Todas)"]
[]
[null,null,"Valores",null,null,null,null,"Seleccionar Gráfico"]
[null,"Rótulos de fila","Total Contratos","Total Facturación","Total Ganancia","%  G",null,2]
[null,"Reino Unido",90157.5,12071542,4127891.7500000005,0.11656535813406183]
[null,"Italia-Francia",73461,11273182,4007910.7,0.11317727653949219]
[null,"España",80424,11471372,3943322.600000001,0.11135340724648118]
[null,"Paises Nórdicos",78864,11364002,3752118.35,0.10595409126926235]
[null,"Alemania",72909,11422135,3650052.5500000003,0.10307190897118258]
[null,"Benelux",67326,11224035,3445522.8,9.7296301227151952E-2]
[null,"Resto de Europa",72676.5,10729523,3400686.4000000008,9.6030189773661942E-2]
[null,"America Norte-Sur",72973.5,10602105,3158329.600000001,8.9186403914155041E-2]
[null,"Rusia-Paises del Este",75204,11190470,3098149.9499999993,8.7487022515737145E-2]
[null,"Resto de Paises",74739,10243978,2828695.5,7.9878040408813786E-2]
[null,"Total general",758734.5,111592344,35412680.200000003,1]

{"sheet":"Graficos","index":5,"n_rows":16,"n_cols":9,"rows_kept":16,"cut":false,"hidden":true,"merged":[]}
[]
[]
[]
[]
[null,null,null,null,null,null,null,"Lista"]
[null,null,null,null,null,null,null,"G Total Contratos"]
[null,null,null,null,null,null,null,"G Total Facturacion"]
[null,null,null,null,null,null,null,"G Total Ganancias"]
[null,null,null,null,null,null,null,"G Porcentaje de Ganancias"]
[]
[]
[null,null,null,null,null,null,null,"Xcontratos"," =Graficos!$A$5:$F$18"]
[null,null,null,null,null,null,null,"Xfacturacion"," =Graficos!$A$20:$F$33"]
[null,null,null,null,null,null,null,"Xganancias"," =Graficos!$A$35:$F$48"]
[null,null,null,null,null,null,null,"Xgananciasp"," =Graficos!$A$50:$F$63"]
[null,null,null,null,null,null,null,"T"," =ELEGIR('TD2'!$H$6;Xcontratos;Xfacturacion;Xganancias;Xgananciasp)"]

{"sheet":"Hoja1","index":6,"n_rows":0,"n_cols":0,"rows_kept":0,"cut":false,"hidden":false,"merged":[]}